Organisation Name,Organisation Code,Unique Ref No,Effective Date,Directorate where expenditure incurred, Supplier Name ,Payment Date, Net Amount ,Purpose of Spend,Proecurement Classification (Higher Level),Procurement Classification (Lower Level),CAPITAL / REVENUE
Walsall Council,http://opendatacommunities.org/id/metropolitan-district-council/walsall ,WC144-1,30.11.2022,CHILDRENS,247 CARS (WILLENHALL) LIMITED,08/11/2022," 1,850.00 ",6241-Hire of Vehicle with Driver,TRANSPORT,DIRECT TRANSPORT COSTS,REVENUE
Walsall Council,http://opendatacommunities.org/id/metropolitan-district-council/walsall ,WC144-2,30.11.2022,CHILDRENS,247 CARS (WILLENHALL) LIMITED,08/11/2022, 640.00 ,6241-Hire of Vehicle with Driver,TRANSPORT,DIRECT TRANSPORT COSTS,REVENUE
Walsall Council,http://opendatacommunities.org/id/metropolitan-district-council/walsall ,WC144-3,30.11.2022,CHILDRENS,247 CARS (WILLENHALL) LIMITED,08/11/2022," 1,761.20 ",6241-Hire of Vehicle with Driver,TRANSPORT,DIRECT TRANSPORT COSTS,REVENUE
Walsall Council,http://opendatacommunities.org/id/metropolitan-district-council/walsall ,WC144-4,30.11.2022,CHILDRENS,247 CARS (WILLENHALL) LIMITED,08/11/2022," 1,330.00 ",6241-Hire of Vehicle with Driver,TRANSPORT,DIRECT TRANSPORT COSTS,REVENUE
Walsall Council,http://opendatacommunities.org/id/metropolitan-district-council/walsall ,WC144-5,30.11.2022,CHILDRENS,247 CARS (WILLENHALL) LIMITED,08/11/2022," 2,140.00 ",6241-Hire of Vehicle with Driver,TRANSPORT,DIRECT TRANSPORT COSTS,REVENUE
Walsall Council,http://opendatacommunities.org/id/metropolitan-district-council/walsall ,WC144-6,30.11.2022,CHILDRENS,247 CARS (WILLENHALL) LIMITED,08/11/2022," 3,010.40 ",6241-Hire of Vehicle with Driver,TRANSPORT,DIRECT TRANSPORT COSTS,REVENUE
Walsall Council,http://opendatacommunities.org/id/metropolitan-district-council/walsall ,WC144-7,30.11.2022,CHILDRENS,247 CARS (WILLENHALL) LIMITED,08/11/2022," 1,500.00 ",6241-Hire of Vehicle with Driver,TRANSPORT,DIRECT TRANSPORT COSTS,REVENUE
Walsall Council,http://opendatacommunities.org/id/metropolitan-district-council/walsall ,WC144-8,30.11.2022,CHILDRENS,247 CARS (WILLENHALL) LIMITED,08/11/2022," 2,354.10 ",6241-Hire of Vehicle with Driver,TRANSPORT,DIRECT TRANSPORT COSTS,REVENUE
Walsall Council,http://opendatacommunities.org/id/metropolitan-district-council/walsall ,WC144-9,30.11.2022,CHILDRENS,247 CARS (WILLENHALL) LIMITED,08/11/2022," 1,850.00 ",6241-Hire of Vehicle with Driver,TRANSPORT,DIRECT TRANSPORT COSTS,REVENUE
Walsall Council,http://opendatacommunities.org/id/metropolitan-district-council/walsall ,WC144-10,30.11.2022,CHILDRENS,247 CARS (WILLENHALL) LIMITED,08/11/2022," 3,000.00 ",6241-Hire of Vehicle with Driver,TRANSPORT,DIRECT TRANSPORT COSTS,REVENUE
Walsall Council,http://opendatacommunities.org/id/metropolitan-district-council/walsall ,WC144-11,30.11.2022,CHILDRENS,247 CARS (WILLENHALL) LIMITED,08/11/2022, 560.00 ,6241-Hire of Vehicle with Driver,TRANSPORT,DIRECT TRANSPORT COSTS,REVENUE
Walsall Council,http://opendatacommunities.org/id/metropolitan-district-council/walsall ,WC144-12,30.11.2022,CHILDRENS,247 CARS (WILLENHALL) LIMITED,08/11/2022," 1,850.00 ",6241-Hire of Vehicle with Driver,TRANSPORT,DIRECT TRANSPORT COSTS,REVENUE
Walsall Council,http://opendatacommunities.org/id/metropolitan-district-council/walsall ,WC144-13,30.11.2022,CHILDRENS,247 CARS (WILLENHALL) LIMITED,08/11/2022," 1,850.00 ",6241-Hire of Vehicle with Driver,TRANSPORT,DIRECT TRANSPORT COSTS,REVENUE
Walsall Council,http://opendatacommunities.org/id/metropolitan-district-council/walsall ,WC144-14,30.11.2022,CHILDRENS,247 CARS (WILLENHALL) LIMITED,08/11/2022," 1,850.00 ",6241-Hire of Vehicle with Driver,TRANSPORT,DIRECT TRANSPORT COSTS,REVENUE
Walsall Council,http://opendatacommunities.org/id/metropolitan-district-council/walsall ,WC144-15,30.11.2022,CHILDRENS,247 CARS (WILLENHALL) LIMITED,08/11/2022," 3,600.00 ",6241-Hire of Vehicle with Driver,TRANSPORT,DIRECT TRANSPORT COSTS,REVENUE
Walsall Council,http://opendatacommunities.org/id/metropolitan-district-council/walsall ,WC144-16,30.11.2022,CHILDRENS,247 CARS (WILLENHALL) LIMITED,08/11/2022," 1,461.60 ",6241-Hire of Vehicle with Driver,TRANSPORT,DIRECT TRANSPORT COSTS,REVENUE
Walsall Council,http://opendatacommunities.org/id/metropolitan-district-council/walsall ,WC144-17,30.11.2022,CHILDRENS,247 CARS (WILLENHALL) LIMITED,08/11/2022," 2,530.00 ",6241-Hire of Vehicle with Driver,TRANSPORT,DIRECT TRANSPORT COSTS,REVENUE
Walsall Council,http://opendatacommunities.org/id/metropolitan-district-council/walsall ,WC144-18,30.11.2022,CHILDRENS,247 CARS (WILLENHALL) LIMITED,08/11/2022," 2,720.00 ",6241-Hire of Vehicle with Driver,TRANSPORT,DIRECT TRANSPORT COSTS,REVENUE
Walsall Council,http://opendatacommunities.org/id/metropolitan-district-council/walsall ,WC144-19,30.11.2022,CHILDRENS,247 CARS (WILLENHALL) LIMITED,08/11/2022," 3,010.40 ",6241-Hire of Vehicle with Driver,TRANSPORT,DIRECT TRANSPORT COSTS,REVENUE
Walsall Council,http://opendatacommunities.org/id/metropolitan-district-council/walsall ,WC144-20,30.11.2022,CHILDRENS,247 CARS (WILLENHALL) LIMITED,08/11/2022," 2,272.00 ",6241-Hire of Vehicle with Driver,TRANSPORT,DIRECT TRANSPORT COSTS,REVENUE
Walsall Council,http://opendatacommunities.org/id/metropolitan-district-council/walsall ,WC144-21,30.11.2022,CHILDRENS,247 CARS (WILLENHALL) LIMITED,08/11/2022," 2,272.00 ",6241-Hire of Vehicle with Driver,TRANSPORT,DIRECT TRANSPORT COSTS,REVENUE
Walsall Council,http://opendatacommunities.org/id/metropolitan-district-council/walsall ,WC144-22,30.11.2022,CHILDRENS,247 CARS (WILLENHALL) LIMITED,08/11/2022," 1,491.60 ",6241-Hire of Vehicle with Driver,TRANSPORT,DIRECT TRANSPORT COSTS,REVENUE
Walsall Council,http://opendatacommunities.org/id/metropolitan-district-council/walsall ,WC144-23,30.11.2022,CHILDRENS,247 CARS (WILLENHALL) LIMITED,08/11/2022," 1,805.60 ",6241-Hire of Vehicle with Driver,TRANSPORT,DIRECT TRANSPORT COSTS,REVENUE
Walsall Council,http://opendatacommunities.org/id/metropolitan-district-council/walsall ,WC144-24,30.11.2022,CHILDRENS,247 CARS (WILLENHALL) LIMITED,08/11/2022, 823.20 ,6241-Hire of Vehicle with Driver,TRANSPORT,DIRECT TRANSPORT COSTS,REVENUE
Walsall Council,http://opendatacommunities.org/id/metropolitan-district-council/walsall ,WC144-25,30.11.2022,CHILDRENS,247 CARS (WILLENHALL) LIMITED,08/11/2022," 3,010.40 ",6241-Hire of Vehicle with Driver,TRANSPORT,DIRECT TRANSPORT COSTS,REVENUE
Walsall Council,http://opendatacommunities.org/id/metropolitan-district-council/walsall ,WC144-26,30.11.2022,CHILDRENS,247 CARS (WILLENHALL) LIMITED,08/11/2022," 2,554.00 ",6241-Hire of Vehicle with Driver,TRANSPORT,DIRECT TRANSPORT COSTS,REVENUE
Walsall Council,http://opendatacommunities.org/id/metropolitan-district-council/walsall ,WC144-27,30.11.2022,RESOURCES AND TRANSFORMATION,3 SPIRIT UK TRAINING & CONSULTANCY,03/11/2022,-700.00 ,6625-Consultant Fees,SUPPLIES & SERVICES,SERVICES,REVENUE
Walsall Council,http://opendatacommunities.org/id/metropolitan-district-council/walsall ,WC144-28,30.11.2022,RESOURCES AND TRANSFORMATION,3 SPIRIT UK TRAINING & CONSULTANCY,03/11/2022, 700.00 ,6625-Consultant Fees,SUPPLIES & SERVICES,SERVICES,REVENUE
Walsall Council,http://opendatacommunities.org/id/metropolitan-district-council/walsall ,WC144-29,30.11.2022,RESOURCES AND TRANSFORMATION,3 SPIRIT UK TRAINING & CONSULTANCY,17/11/2022, 700.00 ,6625-Consultant Fees,SUPPLIES & SERVICES,SERVICES,REVENUE
Walsall Council,http://opendatacommunities.org/id/metropolitan-district-council/walsall ,WC144-30,30.11.2022,ADULT SOCIAL CARE,5 CARE SERVICES LTD,08/11/2022, 509.04 ,6541-Domiciliary Care,THIRD PARTY PAYMENTS,PRIVATE CONTRACTOR,REVENUE
Walsall Council,http://opendatacommunities.org/id/metropolitan-district-council/walsall ,WC144-31,30.11.2022,ADULT SOCIAL CARE,5 CARE SERVICES LTD,08/11/2022, 904.96 ,6541-Domiciliary Care,THIRD PARTY PAYMENTS,PRIVATE CONTRACTOR,REVENUE
Walsall Council,http://opendatacommunities.org/id/metropolitan-district-council/walsall ,WC144-32,30.11.2022,ADULT SOCIAL CARE,5 CARE SERVICES LTD,08/11/2022, 294.92 ,6541-Domiciliary Care,THIRD PARTY PAYMENTS,PRIVATE CONTRACTOR,REVENUE
Walsall Council,http://opendatacommunities.org/id/metropolitan-district-council/walsall ,WC144-33,30.11.2022,ADULT SOCIAL CARE,5 CARE SERVICES LTD,08/11/2022, 254.52 ,6541-Domiciliary Care,THIRD PARTY PAYMENTS,PRIVATE CONTRACTOR,REVENUE
Walsall Council,http://opendatacommunities.org/id/metropolitan-district-council/walsall ,WC144-34,30.11.2022,ADULT SOCIAL CARE,5 CARE SERVICES LTD,08/11/2022, 258.56 ,6541-Domiciliary Care,THIRD PARTY PAYMENTS,PRIVATE CONTRACTOR,REVENUE
Walsall Council,http://opendatacommunities.org/id/metropolitan-district-council/walsall ,WC144-35,30.11.2022,ADULT SOCIAL CARE,5 CARE SERVICES LTD,08/11/2022, 727.20 ,6541-Domiciliary Care,THIRD PARTY PAYMENTS,PRIVATE CONTRACTOR,REVENUE
Walsall Council,http://opendatacommunities.org/id/metropolitan-district-council/walsall ,WC144-36,30.11.2022,ADULT SOCIAL CARE,5 CARE SERVICES LTD,08/11/2022, 565.60 ,6541-Domiciliary Care,THIRD PARTY PAYMENTS,PRIVATE CONTRACTOR,REVENUE
Walsall Council,http://opendatacommunities.org/id/metropolitan-district-council/walsall ,WC144-37,30.11.2022,ADULT SOCIAL CARE,5 CARE SERVICES LTD,08/11/2022, 509.04 ,6541-Domiciliary Care,THIRD PARTY PAYMENTS,PRIVATE CONTRACTOR,REVENUE
Walsall Council,http://opendatacommunities.org/id/metropolitan-district-council/walsall ,WC144-38,30.11.2022,ADULT SOCIAL CARE,5 CARE SERVICES LTD,08/11/2022, 339.36 ,6541-Domiciliary Care,THIRD PARTY PAYMENTS,PRIVATE CONTRACTOR,REVENUE
Walsall Council,http://opendatacommunities.org/id/metropolitan-district-council/walsall ,WC144-39,30.11.2022,ADULT SOCIAL CARE,5 CARE SERVICES LTD,08/11/2022, 509.04 ,6541-Domiciliary Care,THIRD PARTY PAYMENTS,PRIVATE CONTRACTOR,REVENUE
Walsall Council,http://opendatacommunities.org/id/metropolitan-district-council/walsall ,WC144-40,30.11.2022,ADULT SOCIAL CARE,5 CARE SERVICES LTD,08/11/2022, 380.64 ,6541-Domiciliary Care,THIRD PARTY PAYMENTS,PRIVATE CONTRACTOR,REVENUE
Walsall Council,http://opendatacommunities.org/id/metropolitan-district-council/walsall ,WC144-41,30.11.2022,ADULT SOCIAL CARE,5 CARE SERVICES LTD,08/11/2022, 254.52 ,6541-Domiciliary Care,THIRD PARTY PAYMENTS,PRIVATE CONTRACTOR,REVENUE
Walsall Council,http://opendatacommunities.org/id/metropolitan-district-council/walsall ,WC144-42,30.11.2022,ADULT SOCIAL CARE,5 CARE SERVICES LTD,08/11/2022, 536.02 ,6541-Domiciliary Care,THIRD PARTY PAYMENTS,PRIVATE CONTRACTOR,REVENUE
Walsall Council,http://opendatacommunities.org/id/metropolitan-district-council/walsall ,WC144-43,30.11.2022,ADULT SOCIAL CARE,5 CARE SERVICES LTD,08/11/2022, 339.36 ,6541-Domiciliary Care,THIRD PARTY PAYMENTS,PRIVATE CONTRACTOR,REVENUE
Walsall Council,http://opendatacommunities.org/id/metropolitan-district-council/walsall ,WC144-44,30.11.2022,ADULT SOCIAL CARE,5 CARE SERVICES LTD,08/11/2022, 436.32 ,6541-Domiciliary Care,THIRD PARTY PAYMENTS,PRIVATE CONTRACTOR,REVENUE
Walsall Council,http://opendatacommunities.org/id/metropolitan-district-council/walsall ,WC144-45,30.11.2022,ADULT SOCIAL CARE,5 CARE SERVICES LTD,08/11/2022," 1,244.32 ",6541-Domiciliary Care,THIRD PARTY PAYMENTS,PRIVATE CONTRACTOR,REVENUE
Walsall Council,http://opendatacommunities.org/id/metropolitan-district-council/walsall ,WC144-46,30.11.2022,ADULT SOCIAL CARE,5 CARE SERVICES LTD,08/11/2022, 254.52 ,6541-Domiciliary Care,THIRD PARTY PAYMENTS,PRIVATE CONTRACTOR,REVENUE
Walsall Council,http://opendatacommunities.org/id/metropolitan-district-council/walsall ,WC144-47,30.11.2022,ADULT SOCIAL CARE,5 CARE SERVICES LTD,08/11/2022, 509.04 ,6541-Domiciliary Care,THIRD PARTY PAYMENTS,PRIVATE CONTRACTOR,REVENUE
Walsall Council,http://opendatacommunities.org/id/metropolitan-district-council/walsall ,WC144-48,30.11.2022,ADULT SOCIAL CARE,5 CARE SERVICES LTD,08/11/2022, 339.36 ,6541-Domiciliary Care,THIRD PARTY PAYMENTS,PRIVATE CONTRACTOR,REVENUE
Walsall Council,http://opendatacommunities.org/id/metropolitan-district-council/walsall ,WC144-49,30.11.2022,ADULT SOCIAL CARE,5 CARE SERVICES LTD,08/11/2022, 775.68 ,6541-Domiciliary Care,THIRD PARTY PAYMENTS,PRIVATE CONTRACTOR,REVENUE
Walsall Council,http://opendatacommunities.org/id/metropolitan-district-council/walsall ,WC144-50,30.11.2022,ADULT SOCIAL CARE,5 CARE SERVICES LTD,08/11/2022, 678.72 ,6541-Domiciliary Care,THIRD PARTY PAYMENTS,PRIVATE CONTRACTOR,REVENUE
Walsall Council,http://opendatacommunities.org/id/metropolitan-district-council/walsall ,WC144-51,30.11.2022,ADULT SOCIAL CARE,5 CARE SERVICES LTD,08/11/2022, 659.89 ,6541-Domiciliary Care,THIRD PARTY PAYMENTS,PRIVATE CONTRACTOR,REVENUE
Walsall Council,http://opendatacommunities.org/id/metropolitan-district-council/walsall ,WC144-52,30.11.2022,ADULT SOCIAL CARE,5 CARE SERVICES LTD,08/11/2022, 452.48 ,6541-Domiciliary Care,THIRD PARTY PAYMENTS,PRIVATE CONTRACTOR,REVENUE
Walsall Council,http://opendatacommunities.org/id/metropolitan-district-council/walsall ,WC144-53,30.11.2022,ADULT SOCIAL CARE,5 CARE SERVICES LTD,08/11/2022, 735.28 ,6541-Domiciliary Care,THIRD PARTY PAYMENTS,PRIVATE CONTRACTOR,REVENUE
Walsall Council,http://opendatacommunities.org/id/metropolitan-district-council/walsall ,WC144-54,30.11.2022,ADULT SOCIAL CARE,5 CARE SERVICES LTD,08/11/2022, 765.00 ,6541-Domiciliary Care,THIRD PARTY PAYMENTS,PRIVATE CONTRACTOR,REVENUE
Walsall Council,http://opendatacommunities.org/id/metropolitan-district-council/walsall ,WC144-55,30.11.2022,ADULT SOCIAL CARE,5 CARE SERVICES LTD,08/11/2022, 452.48 ,6541-Domiciliary Care,THIRD PARTY PAYMENTS,PRIVATE CONTRACTOR,REVENUE
Walsall Council,http://opendatacommunities.org/id/metropolitan-district-council/walsall ,WC144-56,30.11.2022,ADULT SOCIAL CARE,5 CARE SERVICES LTD,08/11/2022, 452.48 ,6541-Domiciliary Care,THIRD PARTY PAYMENTS,PRIVATE CONTRACTOR,REVENUE
Walsall Council,http://opendatacommunities.org/id/metropolitan-district-council/walsall ,WC144-57,30.11.2022,ADULT SOCIAL CARE,5 CARE SERVICES LTD,08/11/2022, 452.48 ,6541-Domiciliary Care,THIRD PARTY PAYMENTS,PRIVATE CONTRACTOR,REVENUE
Walsall Council,http://opendatacommunities.org/id/metropolitan-district-council/walsall ,WC144-58,30.11.2022,ADULT SOCIAL CARE,5 CARE SERVICES LTD,08/11/2022, 735.28 ,6541-Domiciliary Care,THIRD PARTY PAYMENTS,PRIVATE CONTRACTOR,REVENUE
Walsall Council,http://opendatacommunities.org/id/metropolitan-district-council/walsall ,WC144-59,30.11.2022,ADULT SOCIAL CARE,5 CARE SERVICES LTD,08/11/2022, 727.20 ,6541-Domiciliary Care,THIRD PARTY PAYMENTS,PRIVATE CONTRACTOR,REVENUE
Walsall Council,http://opendatacommunities.org/id/metropolitan-district-council/walsall ,WC144-60,30.11.2022,ADULT SOCIAL CARE,5 CARE SERVICES LTD,08/11/2022, 254.52 ,6541-Domiciliary Care,THIRD PARTY PAYMENTS,PRIVATE CONTRACTOR,REVENUE
Walsall Council,http://opendatacommunities.org/id/metropolitan-district-council/walsall ,WC144-61,30.11.2022,ADULT SOCIAL CARE,5 CARE SERVICES LTD,08/11/2022, 258.56 ,6541-Domiciliary Care,THIRD PARTY PAYMENTS,PRIVATE CONTRACTOR,REVENUE
Walsall Council,http://opendatacommunities.org/id/metropolitan-district-council/walsall ,WC144-62,30.11.2022,ADULT SOCIAL CARE,5 CARE SERVICES LTD,08/11/2022, 509.04 ,6541-Domiciliary Care,THIRD PARTY PAYMENTS,PRIVATE CONTRACTOR,REVENUE
Walsall Council,http://opendatacommunities.org/id/metropolitan-district-council/walsall ,WC144-63,30.11.2022,ADULT SOCIAL CARE,5 CARE SERVICES LTD,08/11/2022, 904.96 ,6541-Domiciliary Care,THIRD PARTY PAYMENTS,PRIVATE CONTRACTOR,REVENUE
Walsall Council,http://opendatacommunities.org/id/metropolitan-district-council/walsall ,WC144-64,30.11.2022,ADULT SOCIAL CARE,5 CARE SERVICES LTD,08/11/2022," 1,163.52 ",6541-Domiciliary Care,THIRD PARTY PAYMENTS,PRIVATE CONTRACTOR,REVENUE
Walsall Council,http://opendatacommunities.org/id/metropolitan-district-council/walsall ,WC144-65,30.11.2022,ADULT SOCIAL CARE,5 CARE SERVICES LTD,08/11/2022, 294.92 ,6541-Domiciliary Care,THIRD PARTY PAYMENTS,PRIVATE CONTRACTOR,REVENUE
Walsall Council,http://opendatacommunities.org/id/metropolitan-district-council/walsall ,WC144-66,30.11.2022,ADULT SOCIAL CARE,5 CARE SERVICES LTD,08/11/2022, 678.72 ,6541-Domiciliary Care,THIRD PARTY PAYMENTS,PRIVATE CONTRACTOR,REVENUE
Walsall Council,http://opendatacommunities.org/id/metropolitan-district-council/walsall ,WC144-67,30.11.2022,ADULT SOCIAL CARE,5 CARE SERVICES LTD,08/11/2022, 659.89 ,6541-Domiciliary Care,THIRD PARTY PAYMENTS,PRIVATE CONTRACTOR,REVENUE
Walsall Council,http://opendatacommunities.org/id/metropolitan-district-council/walsall ,WC144-68,30.11.2022,ADULT SOCIAL CARE,5 CARE SERVICES LTD,08/11/2022, 509.04 ,6541-Domiciliary Care,THIRD PARTY PAYMENTS,PRIVATE CONTRACTOR,REVENUE
Walsall Council,http://opendatacommunities.org/id/metropolitan-district-council/walsall ,WC144-69,30.11.2022,ADULT SOCIAL CARE,5 CARE SERVICES LTD,08/11/2022, 339.36 ,6541-Domiciliary Care,THIRD PARTY PAYMENTS,PRIVATE CONTRACTOR,REVENUE
Walsall Council,http://opendatacommunities.org/id/metropolitan-district-council/walsall ,WC144-70,30.11.2022,ADULT SOCIAL CARE,5 CARE SERVICES LTD,08/11/2022, 765.00 ,6541-Domiciliary Care,THIRD PARTY PAYMENTS,PRIVATE CONTRACTOR,REVENUE
Walsall Council,http://opendatacommunities.org/id/metropolitan-district-council/walsall ,WC144-71,30.11.2022,ADULT SOCIAL CARE,5 CARE SERVICES LTD,08/11/2022, 323.20 ,6541-Domiciliary Care,THIRD PARTY PAYMENTS,PRIVATE CONTRACTOR,REVENUE
Walsall Council,http://opendatacommunities.org/id/metropolitan-district-council/walsall ,WC144-72,30.11.2022,ADULT SOCIAL CARE,5 CARE SERVICES LTD,08/11/2022, 452.48 ,6541-Domiciliary Care,THIRD PARTY PAYMENTS,PRIVATE CONTRACTOR,REVENUE
Walsall Council,http://opendatacommunities.org/id/metropolitan-district-council/walsall ,WC144-73,30.11.2022,ADULT SOCIAL CARE,5 CARE SERVICES LTD,08/11/2022, 339.36 ,6541-Domiciliary Care,THIRD PARTY PAYMENTS,PRIVATE CONTRACTOR,REVENUE
Walsall Council,http://opendatacommunities.org/id/metropolitan-district-council/walsall ,WC144-74,30.11.2022,ADULT SOCIAL CARE,5 CARE SERVICES LTD,08/11/2022, 290.88 ,6541-Domiciliary Care,THIRD PARTY PAYMENTS,PRIVATE CONTRACTOR,REVENUE
Walsall Council,http://opendatacommunities.org/id/metropolitan-district-council/walsall ,WC144-75,30.11.2022,ADULT SOCIAL CARE,5 CARE SERVICES LTD,08/11/2022, 254.52 ,6541-Domiciliary Care,THIRD PARTY PAYMENTS,PRIVATE CONTRACTOR,REVENUE
Walsall Council,http://opendatacommunities.org/id/metropolitan-district-council/walsall ,WC144-76,30.11.2022,ADULT SOCIAL CARE,5 CARE SERVICES LTD,08/11/2022, 536.02 ,6541-Domiciliary Care,THIRD PARTY PAYMENTS,PRIVATE CONTRACTOR,REVENUE
Walsall Council,http://opendatacommunities.org/id/metropolitan-district-council/walsall ,WC144-77,30.11.2022,ADULT SOCIAL CARE,5 CARE SERVICES LTD,08/11/2022," 1,244.32 ",6541-Domiciliary Care,THIRD PARTY PAYMENTS,PRIVATE CONTRACTOR,REVENUE
Walsall Council,http://opendatacommunities.org/id/metropolitan-district-council/walsall ,WC144-78,30.11.2022,ADULT SOCIAL CARE,5 CARE SERVICES LTD,08/11/2022, 509.04 ,6541-Domiciliary Care,THIRD PARTY PAYMENTS,PRIVATE CONTRACTOR,REVENUE
Walsall Council,http://opendatacommunities.org/id/metropolitan-district-council/walsall ,WC144-79,30.11.2022,ADULT SOCIAL CARE,5 CARE SERVICES LTD,08/11/2022, 565.60 ,6541-Domiciliary Care,THIRD PARTY PAYMENTS,PRIVATE CONTRACTOR,REVENUE
Walsall Council,http://opendatacommunities.org/id/metropolitan-district-council/walsall ,WC144-80,30.11.2022,ADULT SOCIAL CARE,5 CARE SERVICES LTD,08/11/2022, 266.64 ,6541-Domiciliary Care,THIRD PARTY PAYMENTS,PRIVATE CONTRACTOR,REVENUE
Walsall Council,http://opendatacommunities.org/id/metropolitan-district-council/walsall ,WC144-81,30.11.2022,ADULT SOCIAL CARE,5 CARE SERVICES LTD,08/11/2022, 339.36 ,6541-Domiciliary Care,THIRD PARTY PAYMENTS,PRIVATE CONTRACTOR,REVENUE
Walsall Council,http://opendatacommunities.org/id/metropolitan-district-council/walsall ,WC144-82,30.11.2022,ADULT SOCIAL CARE,5 CARE SERVICES LTD,08/11/2022, 509.04 ,6541-Domiciliary Care,THIRD PARTY PAYMENTS,PRIVATE CONTRACTOR,REVENUE
Walsall Council,http://opendatacommunities.org/id/metropolitan-district-council/walsall ,WC144-83,30.11.2022,ADULT SOCIAL CARE,5 CARE SERVICES LTD,08/11/2022, 339.36 ,6541-Domiciliary Care,THIRD PARTY PAYMENTS,PRIVATE CONTRACTOR,REVENUE
Walsall Council,http://opendatacommunities.org/id/metropolitan-district-council/walsall ,WC144-84,30.11.2022,ADULT SOCIAL CARE,5 CARE SERVICES LTD,16/11/2022, 296.80 ,6554-Professional Services-Priv Contractor & Other Agencies,THIRD PARTY PAYMENTS,PRIVATE CONTRACTOR,REVENUE
Walsall Council,http://opendatacommunities.org/id/metropolitan-district-council/walsall ,WC144-85,30.11.2022,ADULT SOCIAL CARE,5 CARE SERVICES LTD,16/11/2022," 3,440.45 ",6554-Professional Services-Priv Contractor & Other Agencies,THIRD PARTY PAYMENTS,PRIVATE CONTRACTOR,REVENUE
Walsall Council,http://opendatacommunities.org/id/metropolitan-district-council/walsall ,WC144-86,30.11.2022,ADULT SOCIAL CARE,5 CARE SERVICES LTD,16/11/2022," 1,660.44 ",6554-Professional Services-Priv Contractor & Other Agencies,THIRD PARTY PAYMENTS,PRIVATE CONTRACTOR,REVENUE
Walsall Council,http://opendatacommunities.org/id/metropolitan-district-council/walsall ,WC144-87,30.11.2022,ADULT SOCIAL CARE,5 CARE SERVICES LTD,16/11/2022, 700.51 ,6554-Professional Services-Priv Contractor & Other Agencies,THIRD PARTY PAYMENTS,PRIVATE CONTRACTOR,REVENUE
Walsall Council,http://opendatacommunities.org/id/metropolitan-district-council/walsall ,WC144-88,30.11.2022,ADULT SOCIAL CARE,5 CARE SERVICES LTD,16/11/2022, 948.00 ,6554-Professional Services-Priv Contractor & Other Agencies,THIRD PARTY PAYMENTS,PRIVATE CONTRACTOR,REVENUE
Walsall Council,http://opendatacommunities.org/id/metropolitan-district-council/walsall ,WC144-89,30.11.2022,ADULT SOCIAL CARE,5 CARE SERVICES LTD,16/11/2022," 1,112.30 ",6554-Professional Services-Priv Contractor & Other Agencies,THIRD PARTY PAYMENTS,PRIVATE CONTRACTOR,REVENUE
Walsall Council,http://opendatacommunities.org/id/metropolitan-district-council/walsall ,WC144-90,30.11.2022,ADULT SOCIAL CARE,5 CARE SERVICES LTD,16/11/2022, 737.13 ,6554-Professional Services-Priv Contractor & Other Agencies,THIRD PARTY PAYMENTS,PRIVATE CONTRACTOR,REVENUE
Walsall Council,http://opendatacommunities.org/id/metropolitan-district-council/walsall ,WC144-91,30.11.2022,ADULT SOCIAL CARE,5 CARE SERVICES LTD,16/11/2022," 2,452.96 ",6554-Professional Services-Priv Contractor & Other Agencies,THIRD PARTY PAYMENTS,PRIVATE CONTRACTOR,REVENUE
Walsall Council,http://opendatacommunities.org/id/metropolitan-district-council/walsall ,WC144-92,30.11.2022,ADULT SOCIAL CARE,5 CARE SERVICES LTD,16/11/2022, 364.58 ,6554-Professional Services-Priv Contractor & Other Agencies,THIRD PARTY PAYMENTS,PRIVATE CONTRACTOR,REVENUE
Walsall Council,http://opendatacommunities.org/id/metropolitan-district-council/walsall ,WC144-93,30.11.2022,ADULT SOCIAL CARE,5 CARE SERVICES LTD,16/11/2022, 481.90 ,6554-Professional Services-Priv Contractor & Other Agencies,THIRD PARTY PAYMENTS,PRIVATE CONTRACTOR,REVENUE
Walsall Council,http://opendatacommunities.org/id/metropolitan-district-council/walsall ,WC144-94,30.11.2022,ADULT SOCIAL CARE,5 CARE SERVICES LTD,16/11/2022," 1,258.62 ",6554-Professional Services-Priv Contractor & Other Agencies,THIRD PARTY PAYMENTS,PRIVATE CONTRACTOR,REVENUE
Walsall Council,http://opendatacommunities.org/id/metropolitan-district-council/walsall ,WC144-95,30.11.2022,ADULT SOCIAL CARE,5 CARE SERVICES LTD,16/11/2022," 2,275.20 ",6554-Professional Services-Priv Contractor & Other Agencies,THIRD PARTY PAYMENTS,PRIVATE CONTRACTOR,REVENUE
Walsall Council,http://opendatacommunities.org/id/metropolitan-district-council/walsall ,WC144-96,30.11.2022,ADULT SOCIAL CARE,5 CARE SERVICES LTD,16/11/2022, 339.36 ,6554-Professional Services-Priv Contractor & Other Agencies,THIRD PARTY PAYMENTS,PRIVATE CONTRACTOR,REVENUE
Walsall Council,http://opendatacommunities.org/id/metropolitan-district-council/walsall ,WC144-97,30.11.2022,ADULT SOCIAL CARE,5 CARE SERVICES LTD,16/11/2022," 1,001.07 ",6554-Professional Services-Priv Contractor & Other Agencies,THIRD PARTY PAYMENTS,PRIVATE CONTRACTOR,REVENUE
Walsall Council,http://opendatacommunities.org/id/metropolitan-district-council/walsall ,WC144-98,30.11.2022,ADULT SOCIAL CARE,5 CARE SERVICES LTD,16/11/2022, 434.50 ,6554-Professional Services-Priv Contractor & Other Agencies,THIRD PARTY PAYMENTS,PRIVATE CONTRACTOR,REVENUE
Walsall Council,http://opendatacommunities.org/id/metropolitan-district-council/walsall ,WC144-99,30.11.2022,ADULT SOCIAL CARE,5 CARE SERVICES LTD,16/11/2022, 335.75 ,6554-Professional Services-Priv Contractor & Other Agencies,THIRD PARTY PAYMENTS,PRIVATE CONTRACTOR,REVENUE
Walsall Council,http://opendatacommunities.org/id/metropolitan-district-council/walsall ,WC144-100,30.11.2022,ADULT SOCIAL CARE,5 CARE SERVICES LTD,16/11/2022, 263.94 ,6554-Professional Services-Priv Contractor & Other Agencies,THIRD PARTY PAYMENTS,PRIVATE CONTRACTOR,REVENUE
Walsall Council,http://opendatacommunities.org/id/metropolitan-district-council/walsall ,WC144-101,30.11.2022,ADULT SOCIAL CARE,5 CARE SERVICES LTD,16/11/2022, 323.20 ,6554-Professional Services-Priv Contractor & Other Agencies,THIRD PARTY PAYMENTS,PRIVATE CONTRACTOR,REVENUE
Walsall Council,http://opendatacommunities.org/id/metropolitan-district-council/walsall ,WC144-102,30.11.2022,ADULT SOCIAL CARE,5 CARE SERVICES LTD,16/11/2022, 290.88 ,6554-Professional Services-Priv Contractor & Other Agencies,THIRD PARTY PAYMENTS,PRIVATE CONTRACTOR,REVENUE
Walsall Council,http://opendatacommunities.org/id/metropolitan-district-council/walsall ,WC144-103,30.11.2022,ADULT SOCIAL CARE,5 CARE SERVICES LTD,16/11/2022, 751.44 ,6554-Professional Services-Priv Contractor & Other Agencies,THIRD PARTY PAYMENTS,PRIVATE CONTRACTOR,REVENUE
Walsall Council,http://opendatacommunities.org/id/metropolitan-district-council/walsall ,WC144-104,30.11.2022,ADULT SOCIAL CARE,5 CARE SERVICES LTD,16/11/2022, 426.60 ,6554-Professional Services-Priv Contractor & Other Agencies,THIRD PARTY PAYMENTS,PRIVATE CONTRACTOR,REVENUE
Walsall Council,http://opendatacommunities.org/id/metropolitan-district-council/walsall ,WC144-105,30.11.2022,ADULT SOCIAL CARE,5 CARE SERVICES LTD,16/11/2022, 294.82 ,6554-Professional Services-Priv Contractor & Other Agencies,THIRD PARTY PAYMENTS,PRIVATE CONTRACTOR,REVENUE
Walsall Council,http://opendatacommunities.org/id/metropolitan-district-council/walsall ,WC144-106,30.11.2022,ADULT SOCIAL CARE,5 CARE SERVICES LTD,16/11/2022, 475.80 ,6554-Professional Services-Priv Contractor & Other Agencies,THIRD PARTY PAYMENTS,PRIVATE CONTRACTOR,REVENUE
Walsall Council,http://opendatacommunities.org/id/metropolitan-district-council/walsall ,WC144-107,30.11.2022,ADULT SOCIAL CARE,5 CARE SERVICES LTD,22/11/2022, 727.20 ,6541-Domiciliary Care,THIRD PARTY PAYMENTS,PRIVATE CONTRACTOR,REVENUE
Walsall Council,http://opendatacommunities.org/id/metropolitan-district-council/walsall ,WC144-108,30.11.2022,ADULT SOCIAL CARE,5 CARE SERVICES LTD,22/11/2022, 678.72 ,6541-Domiciliary Care,THIRD PARTY PAYMENTS,PRIVATE CONTRACTOR,REVENUE
Walsall Council,http://opendatacommunities.org/id/metropolitan-district-council/walsall ,WC144-109,30.11.2022,ADULT SOCIAL CARE,5 CARE SERVICES LTD,22/11/2022, 659.89 ,6541-Domiciliary Care,THIRD PARTY PAYMENTS,PRIVATE CONTRACTOR,REVENUE
Walsall Council,http://opendatacommunities.org/id/metropolitan-district-council/walsall ,WC144-110,30.11.2022,ADULT SOCIAL CARE,5 CARE SERVICES LTD,22/11/2022, 509.04 ,6541-Domiciliary Care,THIRD PARTY PAYMENTS,PRIVATE CONTRACTOR,REVENUE
Walsall Council,http://opendatacommunities.org/id/metropolitan-district-council/walsall ,WC144-111,30.11.2022,ADULT SOCIAL CARE,5 CARE SERVICES LTD,22/11/2022, 904.96 ,6541-Domiciliary Care,THIRD PARTY PAYMENTS,PRIVATE CONTRACTOR,REVENUE
Walsall Council,http://opendatacommunities.org/id/metropolitan-district-council/walsall ,WC144-112,30.11.2022,ADULT SOCIAL CARE,5 CARE SERVICES LTD,22/11/2022, 294.92 ,6541-Domiciliary Care,THIRD PARTY PAYMENTS,PRIVATE CONTRACTOR,REVENUE
Walsall Council,http://opendatacommunities.org/id/metropolitan-district-council/walsall ,WC144-113,30.11.2022,ADULT SOCIAL CARE,5 CARE SERVICES LTD,22/11/2022, 254.52 ,6541-Domiciliary Care,THIRD PARTY PAYMENTS,PRIVATE CONTRACTOR,REVENUE
Walsall Council,http://opendatacommunities.org/id/metropolitan-district-council/walsall ,WC144-114,30.11.2022,ADULT SOCIAL CARE,5 CARE SERVICES LTD,22/11/2022, 536.02 ,6541-Domiciliary Care,THIRD PARTY PAYMENTS,PRIVATE CONTRACTOR,REVENUE
Walsall Council,http://opendatacommunities.org/id/metropolitan-district-council/walsall ,WC144-115,30.11.2022,ADULT SOCIAL CARE,5 CARE SERVICES LTD,22/11/2022," 1,244.32 ",6541-Domiciliary Care,THIRD PARTY PAYMENTS,PRIVATE CONTRACTOR,REVENUE
Walsall Council,http://opendatacommunities.org/id/metropolitan-district-council/walsall ,WC144-116,30.11.2022,ADULT SOCIAL CARE,5 CARE SERVICES LTD,22/11/2022, 565.60 ,6541-Domiciliary Care,THIRD PARTY PAYMENTS,PRIVATE CONTRACTOR,REVENUE
Walsall Council,http://opendatacommunities.org/id/metropolitan-district-council/walsall ,WC144-117,30.11.2022,ADULT SOCIAL CARE,5 CARE SERVICES LTD,22/11/2022, 509.04 ,6541-Domiciliary Care,THIRD PARTY PAYMENTS,PRIVATE CONTRACTOR,REVENUE
Walsall Council,http://opendatacommunities.org/id/metropolitan-district-council/walsall ,WC144-118,30.11.2022,ADULT SOCIAL CARE,5 CARE SERVICES LTD,22/11/2022, 965.28 ,6541-Domiciliary Care,THIRD PARTY PAYMENTS,PRIVATE CONTRACTOR,REVENUE
Walsall Council,http://opendatacommunities.org/id/metropolitan-district-council/walsall ,WC144-119,30.11.2022,ADULT SOCIAL CARE,5 CARE SERVICES LTD,22/11/2022, 254.52 ,6541-Domiciliary Care,THIRD PARTY PAYMENTS,PRIVATE CONTRACTOR,REVENUE
Walsall Council,http://opendatacommunities.org/id/metropolitan-district-council/walsall ,WC144-120,30.11.2022,ADULT SOCIAL CARE,5 CARE SERVICES LTD,22/11/2022, 258.56 ,6541-Domiciliary Care,THIRD PARTY PAYMENTS,PRIVATE CONTRACTOR,REVENUE
Walsall Council,http://opendatacommunities.org/id/metropolitan-district-council/walsall ,WC144-121,30.11.2022,ADULT SOCIAL CARE,5 CARE SERVICES LTD,22/11/2022, 355.52 ,6541-Domiciliary Care,THIRD PARTY PAYMENTS,PRIVATE CONTRACTOR,REVENUE
Walsall Council,http://opendatacommunities.org/id/metropolitan-district-council/walsall ,WC144-122,30.11.2022,ADULT SOCIAL CARE,5 CARE SERVICES LTD,22/11/2022, 339.36 ,6541-Domiciliary Care,THIRD PARTY PAYMENTS,PRIVATE CONTRACTOR,REVENUE
Walsall Council,http://opendatacommunities.org/id/metropolitan-district-council/walsall ,WC144-123,30.11.2022,ADULT SOCIAL CARE,5 CARE SERVICES LTD,22/11/2022, 509.04 ,6541-Domiciliary Care,THIRD PARTY PAYMENTS,PRIVATE CONTRACTOR,REVENUE
Walsall Council,http://opendatacommunities.org/id/metropolitan-district-council/walsall ,WC144-124,30.11.2022,ADULT SOCIAL CARE,5 CARE SERVICES LTD,22/11/2022, 509.04 ,6541-Domiciliary Care,THIRD PARTY PAYMENTS,PRIVATE CONTRACTOR,REVENUE
Walsall Council,http://opendatacommunities.org/id/metropolitan-district-council/walsall ,WC144-125,30.11.2022,ADULT SOCIAL CARE,5 CARE SERVICES LTD,22/11/2022, 765.00 ,6541-Domiciliary Care,THIRD PARTY PAYMENTS,PRIVATE CONTRACTOR,REVENUE
Walsall Council,http://opendatacommunities.org/id/metropolitan-district-council/walsall ,WC144-126,30.11.2022,ADULT SOCIAL CARE,5 CARE SERVICES LTD,22/11/2022, 452.48 ,6541-Domiciliary Care,THIRD PARTY PAYMENTS,PRIVATE CONTRACTOR,REVENUE
Walsall Council,http://opendatacommunities.org/id/metropolitan-district-council/walsall ,WC144-127,30.11.2022,ADULT SOCIAL CARE,5 CARE SERVICES LTD,22/11/2022, 350.66 ,6541-Domiciliary Care,THIRD PARTY PAYMENTS,PRIVATE CONTRACTOR,REVENUE
Walsall Council,http://opendatacommunities.org/id/metropolitan-district-council/walsall ,WC144-128,30.11.2022,ADULT SOCIAL CARE,5 CARE SERVICES LTD,22/11/2022, 339.36 ,6541-Domiciliary Care,THIRD PARTY PAYMENTS,PRIVATE CONTRACTOR,REVENUE
Walsall Council,http://opendatacommunities.org/id/metropolitan-district-council/walsall ,WC144-129,30.11.2022,ADULT SOCIAL CARE,5 CARE SERVICES LTD,22/11/2022, 258.61 ,6541-Domiciliary Care,THIRD PARTY PAYMENTS,PRIVATE CONTRACTOR,REVENUE
Walsall Council,http://opendatacommunities.org/id/metropolitan-district-council/walsall ,WC144-130,30.11.2022,ADULT SOCIAL CARE,5 CARE SERVICES LTD,22/11/2022, 509.04 ,6541-Domiciliary Care,THIRD PARTY PAYMENTS,PRIVATE CONTRACTOR,REVENUE
Walsall Council,http://opendatacommunities.org/id/metropolitan-district-council/walsall ,WC144-131,30.11.2022,ADULT SOCIAL CARE,5 CARE SERVICES LTD,22/11/2022, 735.28 ,6541-Domiciliary Care,THIRD PARTY PAYMENTS,PRIVATE CONTRACTOR,REVENUE
Walsall Council,http://opendatacommunities.org/id/metropolitan-district-council/walsall ,WC144-132,30.11.2022,ADULT SOCIAL CARE,5 CARE SERVICES LTD,22/11/2022, 323.20 ,6541-Domiciliary Care,THIRD PARTY PAYMENTS,PRIVATE CONTRACTOR,REVENUE
Walsall Council,http://opendatacommunities.org/id/metropolitan-district-council/walsall ,WC144-133,30.11.2022,ADULT SOCIAL CARE,5 CARE SERVICES LTD,22/11/2022, 509.04 ,6541-Domiciliary Care,THIRD PARTY PAYMENTS,PRIVATE CONTRACTOR,REVENUE
Walsall Council,http://opendatacommunities.org/id/metropolitan-district-council/walsall ,WC144-134,30.11.2022,ADULT SOCIAL CARE,5 CARE SERVICES LTD,22/11/2022,-426.60 ,6541-Domiciliary Care,THIRD PARTY PAYMENTS,PRIVATE CONTRACTOR,REVENUE
Walsall Council,http://opendatacommunities.org/id/metropolitan-district-council/walsall ,WC144-135,30.11.2022,ADULT SOCIAL CARE,5 CARE SERVICES LTD,22/11/2022, 509.04 ,6541-Domiciliary Care,THIRD PARTY PAYMENTS,PRIVATE CONTRACTOR,REVENUE
Walsall Council,http://opendatacommunities.org/id/metropolitan-district-council/walsall ,WC144-136,30.11.2022,ADULT SOCIAL CARE,5 CARE SERVICES LTD,22/11/2022, 294.92 ,6541-Domiciliary Care,THIRD PARTY PAYMENTS,PRIVATE CONTRACTOR,REVENUE
Walsall Council,http://opendatacommunities.org/id/metropolitan-district-council/walsall ,WC144-137,30.11.2022,ADULT SOCIAL CARE,5 CARE SERVICES LTD,22/11/2022, 565.60 ,6541-Domiciliary Care,THIRD PARTY PAYMENTS,PRIVATE CONTRACTOR,REVENUE
Walsall Council,http://opendatacommunities.org/id/metropolitan-district-council/walsall ,WC144-138,30.11.2022,ADULT SOCIAL CARE,5 CARE SERVICES LTD,22/11/2022, 735.28 ,6541-Domiciliary Care,THIRD PARTY PAYMENTS,PRIVATE CONTRACTOR,REVENUE
Walsall Council,http://opendatacommunities.org/id/metropolitan-district-council/walsall ,WC144-139,30.11.2022,ADULT SOCIAL CARE,5 CARE SERVICES LTD,22/11/2022," 1,163.52 ",6541-Domiciliary Care,THIRD PARTY PAYMENTS,PRIVATE CONTRACTOR,REVENUE
Walsall Council,http://opendatacommunities.org/id/metropolitan-district-council/walsall ,WC144-140,30.11.2022,ADULT SOCIAL CARE,5 CARE SERVICES LTD,22/11/2022, 565.60 ,6541-Domiciliary Care,THIRD PARTY PAYMENTS,PRIVATE CONTRACTOR,REVENUE
Walsall Council,http://opendatacommunities.org/id/metropolitan-district-council/walsall ,WC144-141,30.11.2022,ADULT SOCIAL CARE,5 CARE SERVICES LTD,22/11/2022," 1,280.68 ",6541-Domiciliary Care,THIRD PARTY PAYMENTS,PRIVATE CONTRACTOR,REVENUE
Walsall Council,http://opendatacommunities.org/id/metropolitan-district-council/walsall ,WC144-142,30.11.2022,ADULT SOCIAL CARE,5 CARE SERVICES LTD,22/11/2022, 323.20 ,6541-Domiciliary Care,THIRD PARTY PAYMENTS,PRIVATE CONTRACTOR,REVENUE
Walsall Council,http://opendatacommunities.org/id/metropolitan-district-council/walsall ,WC144-143,30.11.2022,ADULT SOCIAL CARE,5 CARE SERVICES LTD,22/11/2022, 339.36 ,6541-Domiciliary Care,THIRD PARTY PAYMENTS,PRIVATE CONTRACTOR,REVENUE
Walsall Council,http://opendatacommunities.org/id/metropolitan-district-council/walsall ,WC144-144,30.11.2022,ADULT SOCIAL CARE,5 CARE SERVICES LTD,22/11/2022, 509.04 ,6541-Domiciliary Care,THIRD PARTY PAYMENTS,PRIVATE CONTRACTOR,REVENUE
Walsall Council,http://opendatacommunities.org/id/metropolitan-district-council/walsall ,WC144-145,30.11.2022,ADULT SOCIAL CARE,5 CARE SERVICES LTD,22/11/2022, 315.12 ,6541-Domiciliary Care,THIRD PARTY PAYMENTS,PRIVATE CONTRACTOR,REVENUE
Walsall Council,http://opendatacommunities.org/id/metropolitan-district-council/walsall ,WC144-146,30.11.2022,ADULT SOCIAL CARE,5 CARE SERVICES LTD,22/11/2022, 765.00 ,6541-Domiciliary Care,THIRD PARTY PAYMENTS,PRIVATE CONTRACTOR,REVENUE
Walsall Council,http://opendatacommunities.org/id/metropolitan-district-council/walsall ,WC144-147,30.11.2022,ADULT SOCIAL CARE,5 CARE SERVICES LTD,22/11/2022, 509.04 ,6541-Domiciliary Care,THIRD PARTY PAYMENTS,PRIVATE CONTRACTOR,REVENUE
Walsall Council,http://opendatacommunities.org/id/metropolitan-district-council/walsall ,WC144-148,30.11.2022,ADULT SOCIAL CARE,5 CARE SERVICES LTD,22/11/2022, 290.88 ,6541-Domiciliary Care,THIRD PARTY PAYMENTS,PRIVATE CONTRACTOR,REVENUE
Walsall Council,http://opendatacommunities.org/id/metropolitan-district-council/walsall ,WC144-149,30.11.2022,ADULT SOCIAL CARE,5 CARE SERVICES LTD,22/11/2022, 581.76 ,6541-Domiciliary Care,THIRD PARTY PAYMENTS,PRIVATE CONTRACTOR,REVENUE
Walsall Council,http://opendatacommunities.org/id/metropolitan-district-council/walsall ,WC144-150,30.11.2022,ADULT SOCIAL CARE,5 CARE SERVICES LTD,22/11/2022, 254.52 ,6541-Domiciliary Care,THIRD PARTY PAYMENTS,PRIVATE CONTRACTOR,REVENUE
Walsall Council,http://opendatacommunities.org/id/metropolitan-district-council/walsall ,WC144-151,30.11.2022,ADULT SOCIAL CARE,5 CARE SERVICES LTD,22/11/2022, 536.02 ,6541-Domiciliary Care,THIRD PARTY PAYMENTS,PRIVATE CONTRACTOR,REVENUE
Walsall Council,http://opendatacommunities.org/id/metropolitan-district-council/walsall ,WC144-152,30.11.2022,ADULT SOCIAL CARE,5 CARE SERVICES LTD,22/11/2022, 549.44 ,6541-Domiciliary Care,THIRD PARTY PAYMENTS,PRIVATE CONTRACTOR,REVENUE
Walsall Council,http://opendatacommunities.org/id/metropolitan-district-council/walsall ,WC144-153,30.11.2022,ADULT SOCIAL CARE,5 CARE SERVICES LTD,22/11/2022," 1,244.32 ",6541-Domiciliary Care,THIRD PARTY PAYMENTS,PRIVATE CONTRACTOR,REVENUE
Walsall Council,http://opendatacommunities.org/id/metropolitan-district-council/walsall ,WC144-154,30.11.2022,ADULT SOCIAL CARE,5 CARE SERVICES LTD,22/11/2022, 509.04 ,6541-Domiciliary Care,THIRD PARTY PAYMENTS,PRIVATE CONTRACTOR,REVENUE
Walsall Council,http://opendatacommunities.org/id/metropolitan-district-council/walsall ,WC144-155,30.11.2022,ADULT SOCIAL CARE,5 CARE SERVICES LTD,22/11/2022, 254.52 ,6541-Domiciliary Care,THIRD PARTY PAYMENTS,PRIVATE CONTRACTOR,REVENUE
Walsall Council,http://opendatacommunities.org/id/metropolitan-district-council/walsall ,WC144-156,30.11.2022,ADULT SOCIAL CARE,5 CARE SERVICES LTD,22/11/2022, 258.56 ,6541-Domiciliary Care,THIRD PARTY PAYMENTS,PRIVATE CONTRACTOR,REVENUE
Walsall Council,http://opendatacommunities.org/id/metropolitan-district-council/walsall ,WC144-157,30.11.2022,ADULT SOCIAL CARE,5 CARE SERVICES LTD,22/11/2022, 509.04 ,6541-Domiciliary Care,THIRD PARTY PAYMENTS,PRIVATE CONTRACTOR,REVENUE
Walsall Council,http://opendatacommunities.org/id/metropolitan-district-council/walsall ,WC144-158,30.11.2022,ADULT SOCIAL CARE,5 CARE SERVICES LTD,22/11/2022, 339.36 ,6541-Domiciliary Care,THIRD PARTY PAYMENTS,PRIVATE CONTRACTOR,REVENUE
Walsall Council,http://opendatacommunities.org/id/metropolitan-district-council/walsall ,WC144-159,30.11.2022,ADULT SOCIAL CARE,5 CARE SERVICES LTD,22/11/2022, 622.16 ,6541-Domiciliary Care,THIRD PARTY PAYMENTS,PRIVATE CONTRACTOR,REVENUE
Walsall Council,http://opendatacommunities.org/id/metropolitan-district-council/walsall ,WC144-160,30.11.2022,ADULT SOCIAL CARE,5 CARE SERVICES LTD,22/11/2022, 509.04 ,6541-Domiciliary Care,THIRD PARTY PAYMENTS,PRIVATE CONTRACTOR,REVENUE
Walsall Council,http://opendatacommunities.org/id/metropolitan-district-council/walsall ,WC144-161,30.11.2022,ADULT SOCIAL CARE,5 CARE SERVICES LTD,22/11/2022, 509.04 ,6541-Domiciliary Care,THIRD PARTY PAYMENTS,PRIVATE CONTRACTOR,REVENUE
Walsall Council,http://opendatacommunities.org/id/metropolitan-district-council/walsall ,WC144-162,30.11.2022,ADULT SOCIAL CARE,5 CARE SERVICES LTD,22/11/2022, 904.96 ,6541-Domiciliary Care,THIRD PARTY PAYMENTS,PRIVATE CONTRACTOR,REVENUE
Walsall Council,http://opendatacommunities.org/id/metropolitan-district-council/walsall ,WC144-163,30.11.2022,ADULT SOCIAL CARE,5 CARE SERVICES LTD,22/11/2022, 678.72 ,6541-Domiciliary Care,THIRD PARTY PAYMENTS,PRIVATE CONTRACTOR,REVENUE
Walsall Council,http://opendatacommunities.org/id/metropolitan-district-council/walsall ,WC144-164,30.11.2022,ADULT SOCIAL CARE,5 CARE SERVICES LTD,22/11/2022, 659.89 ,6541-Domiciliary Care,THIRD PARTY PAYMENTS,PRIVATE CONTRACTOR,REVENUE
Walsall Council,http://opendatacommunities.org/id/metropolitan-district-council/walsall ,WC144-165,30.11.2022,ADULT SOCIAL CARE,5 CARE SERVICES LTD,22/11/2022, 339.36 ,6541-Domiciliary Care,THIRD PARTY PAYMENTS,PRIVATE CONTRACTOR,REVENUE
Walsall Council,http://opendatacommunities.org/id/metropolitan-district-council/walsall ,WC144-166,30.11.2022,ADULT SOCIAL CARE,5 CARE SERVICES LTD,17/11/2022," 1,382.50 ",6554-Professional Services-Priv Contractor & Other Agencies,THIRD PARTY PAYMENTS,PRIVATE CONTRACTOR,REVENUE
Walsall Council,http://opendatacommunities.org/id/metropolitan-district-council/walsall ,WC144-167,30.11.2022,ADULT SOCIAL CARE,5 CARE SERVICES LTD,17/11/2022, 505.60 ,6554-Professional Services-Priv Contractor & Other Agencies,THIRD PARTY PAYMENTS,PRIVATE CONTRACTOR,REVENUE
Walsall Council,http://opendatacommunities.org/id/metropolitan-district-council/walsall ,WC144-168,30.11.2022,ADULT SOCIAL CARE,5 CARE SERVICES LTD,17/11/2022," 1,137.60 ",6554-Professional Services-Priv Contractor & Other Agencies,THIRD PARTY PAYMENTS,PRIVATE CONTRACTOR,REVENUE
Walsall Council,http://opendatacommunities.org/id/metropolitan-district-council/walsall ,WC144-169,30.11.2022,ADULT SOCIAL CARE,5 CARE SERVICES LTD,28/11/2022," 9,361.97 ",6541-Domiciliary Care,THIRD PARTY PAYMENTS,PRIVATE CONTRACTOR,REVENUE
Walsall Council,http://opendatacommunities.org/id/metropolitan-district-council/walsall ,WC144-170,30.11.2022,RESOURCES AND TRANSFORMATION,A D T FIRE AND SECURITY PLC,23/11/2022," 1,338.43 ",6310-Repair & Maintenance of Furniture & Equipment,SUPPLIES & SERVICES,EQUIPMENT FURNITURE & MATERIALS,REVENUE
Walsall Council,http://opendatacommunities.org/id/metropolitan-district-council/walsall ,WC144-171,30.11.2022,"ECONOMY, ENVIRONMENT & COMMUNITIES",A F BLAKEMORE & SON LTD,15/11/2022, 351.81 ,6413-Catering & Refreshments,SUPPLIES & SERVICES,CATERING,REVENUE
Walsall Council,http://opendatacommunities.org/id/metropolitan-district-council/walsall ,WC144-172,30.11.2022,"ECONOMY, ENVIRONMENT & COMMUNITIES",A F BLAKEMORE & SON LTD,15/11/2022, 406.72 ,6413-Catering & Refreshments,SUPPLIES & SERVICES,CATERING,REVENUE
Walsall Council,http://opendatacommunities.org/id/metropolitan-district-council/walsall ,WC144-173,30.11.2022,"ECONOMY, ENVIRONMENT & COMMUNITIES",A F BLAKEMORE & SON LTD,15/11/2022,-282.17 ,6413-Catering & Refreshments,SUPPLIES & SERVICES,CATERING,REVENUE
Walsall Council,http://opendatacommunities.org/id/metropolitan-district-council/walsall ,WC144-174,30.11.2022,"ECONOMY, ENVIRONMENT & COMMUNITIES",A F BLAKEMORE & SON LTD,15/11/2022, 282.17 ,6413-Catering & Refreshments,SUPPLIES & SERVICES,CATERING,REVENUE
Walsall Council,http://opendatacommunities.org/id/metropolitan-district-council/walsall ,WC144-175,30.11.2022,"ECONOMY, ENVIRONMENT & COMMUNITIES",A F BLAKEMORE & SON LTD,15/11/2022, 829.96 ,6413-Catering & Refreshments,SUPPLIES & SERVICES,CATERING,REVENUE
Walsall Council,http://opendatacommunities.org/id/metropolitan-district-council/walsall ,WC144-176,30.11.2022,"ECONOMY, ENVIRONMENT & COMMUNITIES",A F BLAKEMORE & SON LTD,15/11/2022, 651.88 ,6413-Catering & Refreshments,SUPPLIES & SERVICES,CATERING,REVENUE
Walsall Council,http://opendatacommunities.org/id/metropolitan-district-council/walsall ,WC144-177,30.11.2022,"ECONOMY, ENVIRONMENT & COMMUNITIES",A F BLAKEMORE & SON LTD,15/11/2022,-975.09 ,6413-Catering & Refreshments,SUPPLIES & SERVICES,CATERING,REVENUE
Walsall Council,http://opendatacommunities.org/id/metropolitan-district-council/walsall ,WC144-178,30.11.2022,"ECONOMY, ENVIRONMENT & COMMUNITIES",A F BLAKEMORE & SON LTD,15/11/2022, 290.52 ,6413-Catering & Refreshments,SUPPLIES & SERVICES,CATERING,REVENUE
Walsall Council,http://opendatacommunities.org/id/metropolitan-district-council/walsall ,WC144-179,30.11.2022,"ECONOMY, ENVIRONMENT & COMMUNITIES",A F BLAKEMORE & SON LTD,15/11/2022, 579.81 ,6413-Catering & Refreshments,SUPPLIES & SERVICES,CATERING,REVENUE
Walsall Council,http://opendatacommunities.org/id/metropolitan-district-council/walsall ,WC144-180,30.11.2022,"ECONOMY, ENVIRONMENT & COMMUNITIES",A F BLAKEMORE & SON LTD,15/11/2022, 975.09 ,6413-Catering & Refreshments,SUPPLIES & SERVICES,CATERING,REVENUE
Walsall Council,http://opendatacommunities.org/id/metropolitan-district-council/walsall ,WC144-181,30.11.2022,"ECONOMY, ENVIRONMENT & COMMUNITIES",A F BLAKEMORE & SON LTD,15/11/2022, 310.12 ,6413-Catering & Refreshments,SUPPLIES & SERVICES,CATERING,REVENUE
Walsall Council,http://opendatacommunities.org/id/metropolitan-district-council/walsall ,WC144-182,30.11.2022,"ECONOMY, ENVIRONMENT & COMMUNITIES",A F BLAKEMORE & SON LTD,15/11/2022, 513.38 ,6413-Catering & Refreshments,SUPPLIES & SERVICES,CATERING,REVENUE
Walsall Council,http://opendatacommunities.org/id/metropolitan-district-council/walsall ,WC144-183,30.11.2022,"ECONOMY, ENVIRONMENT & COMMUNITIES",A F BLAKEMORE & SON LTD,02/11/2022, 339.14 ,6413-Food & Drink Supplies,SUPPLIES & SERVICES,CATERING,REVENUE
Walsall Council,http://opendatacommunities.org/id/metropolitan-district-council/walsall ,WC144-184,30.11.2022,"ECONOMY, ENVIRONMENT & COMMUNITIES",A F BLAKEMORE & SON LTD,02/11/2022, 746.67 ,6413-Food & Drink Supplies,SUPPLIES & SERVICES,CATERING,REVENUE
Walsall Council,http://opendatacommunities.org/id/metropolitan-district-council/walsall ,WC144-185,30.11.2022,"ECONOMY, ENVIRONMENT & COMMUNITIES",A F BLAKEMORE & SON LTD,09/11/2022,-900.48 ,6413-Food & Drink Supplies,SUPPLIES & SERVICES,CATERING,REVENUE
Walsall Council,http://opendatacommunities.org/id/metropolitan-district-council/walsall ,WC144-186,30.11.2022,"ECONOMY, ENVIRONMENT & COMMUNITIES",A F BLAKEMORE & SON LTD,09/11/2022, 322.86 ,6413-Food & Drink Supplies,SUPPLIES & SERVICES,CATERING,REVENUE
Walsall Council,http://opendatacommunities.org/id/metropolitan-district-council/walsall ,WC144-187,30.11.2022,"ECONOMY, ENVIRONMENT & COMMUNITIES",A F BLAKEMORE & SON LTD,09/11/2022, 800.48 ,6413-Food & Drink Supplies,SUPPLIES & SERVICES,CATERING,REVENUE
Walsall Council,http://opendatacommunities.org/id/metropolitan-district-council/walsall ,WC144-188,30.11.2022,"ECONOMY, ENVIRONMENT & COMMUNITIES",A F BLAKEMORE & SON LTD,09/11/2022, 900.48 ,6413-Food & Drink Supplies,SUPPLIES & SERVICES,CATERING,REVENUE
Walsall Council,http://opendatacommunities.org/id/metropolitan-district-council/walsall ,WC144-189,30.11.2022,"ECONOMY, ENVIRONMENT & COMMUNITIES",A F BLAKEMORE & SON LTD,02/11/2022, 420.46 ,6413-Food & Drink Supplies,SUPPLIES & SERVICES,CATERING,REVENUE
Walsall Council,http://opendatacommunities.org/id/metropolitan-district-council/walsall ,WC144-190,30.11.2022,ADULT SOCIAL CARE,A F BLAKEMORE & SON LTD,02/11/2022,-261.90 ,6543-Food & Drink Supplies,SUPPLIES & SERVICES,CATERING,REVENUE
Walsall Council,http://opendatacommunities.org/id/metropolitan-district-council/walsall ,WC144-191,30.11.2022,ADULT SOCIAL CARE,A F BLAKEMORE & SON LTD,02/11/2022, 261.90 ,6543-Food & Drink Supplies,SUPPLIES & SERVICES,CATERING,REVENUE
Walsall Council,http://opendatacommunities.org/id/metropolitan-district-council/walsall ,WC144-192,30.11.2022,"ECONOMY, ENVIRONMENT & COMMUNITIES",A F BLAKEMORE & SON LTD,28/11/2022, 340.66 ,6413-Food & Drink Supplies,SUPPLIES & SERVICES,CATERING,REVENUE
Walsall Council,http://opendatacommunities.org/id/metropolitan-district-council/walsall ,WC144-193,30.11.2022,"ECONOMY, ENVIRONMENT & COMMUNITIES",A F BLAKEMORE & SON LTD,28/11/2022, 734.18 ,6413-Food & Drink Supplies,SUPPLIES & SERVICES,CATERING,REVENUE
Walsall Council,http://opendatacommunities.org/id/metropolitan-district-council/walsall ,WC144-194,30.11.2022,"ECONOMY, ENVIRONMENT & COMMUNITIES",A F BLAKEMORE & SON LTD,03/11/2022, 350.13 ,6413-Food & Drink Supplies,SUPPLIES & SERVICES,CATERING,REVENUE
Walsall Council,http://opendatacommunities.org/id/metropolitan-district-council/walsall ,WC144-195,30.11.2022,"ECONOMY, ENVIRONMENT & COMMUNITIES",A F BLAKEMORE & SON LTD,03/11/2022, 828.25 ,6413-Food & Drink Supplies,SUPPLIES & SERVICES,CATERING,REVENUE
Walsall Council,http://opendatacommunities.org/id/metropolitan-district-council/walsall ,WC144-196,30.11.2022,"ECONOMY, ENVIRONMENT & COMMUNITIES",A F BLAKEMORE & SON LTD,16/11/2022, 282.88 ,6413-Food & Drink Supplies,SUPPLIES & SERVICES,CATERING,REVENUE
Walsall Council,http://opendatacommunities.org/id/metropolitan-district-council/walsall ,WC144-197,30.11.2022,"ECONOMY, ENVIRONMENT & COMMUNITIES",A F BLAKEMORE & SON LTD,16/11/2022, 599.11 ,6413-Food & Drink Supplies,SUPPLIES & SERVICES,CATERING,REVENUE
Walsall Council,http://opendatacommunities.org/id/metropolitan-district-council/walsall ,WC144-198,30.11.2022,"ECONOMY, ENVIRONMENT & COMMUNITIES",A F BLAKEMORE & SON LTD,15/11/2022,-289.55 ,6413-Food & Drink Supplies,SUPPLIES & SERVICES,CATERING,REVENUE
Walsall Council,http://opendatacommunities.org/id/metropolitan-district-council/walsall ,WC144-199,30.11.2022,"ECONOMY, ENVIRONMENT & COMMUNITIES",A F BLAKEMORE & SON LTD,15/11/2022, 289.53 ,6413-Food & Drink Supplies,SUPPLIES & SERVICES,CATERING,REVENUE
Walsall Council,http://opendatacommunities.org/id/metropolitan-district-council/walsall ,WC144-200,30.11.2022,"ECONOMY, ENVIRONMENT & COMMUNITIES",A F BLAKEMORE & SON LTD,15/11/2022, 289.55 ,6413-Food & Drink Supplies,SUPPLIES & SERVICES,CATERING,REVENUE
Walsall Council,http://opendatacommunities.org/id/metropolitan-district-council/walsall ,WC144-201,30.11.2022,"ECONOMY, ENVIRONMENT & COMMUNITIES",A F BLAKEMORE & SON LTD,15/11/2022, 547.04 ,6413-Food & Drink Supplies,SUPPLIES & SERVICES,CATERING,REVENUE
Walsall Council,http://opendatacommunities.org/id/metropolitan-district-council/walsall ,WC144-202,30.11.2022,"ECONOMY, ENVIRONMENT & COMMUNITIES",A F BLAKEMORE & SON LTD,15/11/2022, 350.63 ,6413-Food & Drink Supplies,SUPPLIES & SERVICES,CATERING,REVENUE
Walsall Council,http://opendatacommunities.org/id/metropolitan-district-council/walsall ,WC144-203,30.11.2022,"ECONOMY, ENVIRONMENT & COMMUNITIES",A F BLAKEMORE & SON LTD,15/11/2022, 890.33 ,6413-Food & Drink Supplies,SUPPLIES & SERVICES,CATERING,REVENUE
Walsall Council,http://opendatacommunities.org/id/metropolitan-district-council/walsall ,WC144-204,30.11.2022,"ECONOMY, ENVIRONMENT & COMMUNITIES",A F BLAKEMORE & SON LTD,28/11/2022, 298.49 ,6413-Food & Drink Supplies,SUPPLIES & SERVICES,CATERING,REVENUE
Walsall Council,http://opendatacommunities.org/id/metropolitan-district-council/walsall ,WC144-205,30.11.2022,"ECONOMY, ENVIRONMENT & COMMUNITIES",A F BLAKEMORE & SON LTD,29/11/2022, 457.54 ,6413-Food & Drink Supplies,SUPPLIES & SERVICES,CATERING,REVENUE
Walsall Council,http://opendatacommunities.org/id/metropolitan-district-council/walsall ,WC144-206,30.11.2022,"ECONOMY, ENVIRONMENT & COMMUNITIES",A F BLAKEMORE & SON LTD,29/11/2022, 559.53 ,6413-Food & Drink Supplies,SUPPLIES & SERVICES,CATERING,REVENUE
Walsall Council,http://opendatacommunities.org/id/metropolitan-district-council/walsall ,WC144-207,30.11.2022,"ECONOMY, ENVIRONMENT & COMMUNITIES",A WAY WITH MEDIA PRODUCTIONS LTD,21/11/2022," 13,398.00 ",6414-Professional Fees & Services,SUPPLIES & SERVICES,SERVICES,REVENUE
Walsall Council,http://opendatacommunities.org/id/metropolitan-district-council/walsall ,WC144-208,30.11.2022,CHILDRENS,A1 WALSALL RADIO CARS,08/11/2022," 2,200.00 ",6241-Hire of Vehicle with Driver,TRANSPORT,DIRECT TRANSPORT COSTS,REVENUE
Walsall Council,http://opendatacommunities.org/id/metropolitan-district-council/walsall ,WC144-209,30.11.2022,CHILDRENS,A1 WALSALL RADIO CARS,08/11/2022," 2,000.00 ",6241-Hire of Vehicle with Driver,TRANSPORT,DIRECT TRANSPORT COSTS,REVENUE
Walsall Council,http://opendatacommunities.org/id/metropolitan-district-council/walsall ,WC144-210,30.11.2022,CHILDRENS,A1 WALSALL RADIO CARS,08/11/2022," 1,660.00 ",6241-Hire of Vehicle with Driver,TRANSPORT,DIRECT TRANSPORT COSTS,REVENUE
Walsall Council,http://opendatacommunities.org/id/metropolitan-district-council/walsall ,WC144-211,30.11.2022,CHILDRENS,A1 WALSALL RADIO CARS,08/11/2022," 2,400.00 ",6241-Hire of Vehicle with Driver,TRANSPORT,DIRECT TRANSPORT COSTS,REVENUE
Walsall Council,http://opendatacommunities.org/id/metropolitan-district-council/walsall ,WC144-212,30.11.2022,CHILDRENS,A1 WALSALL RADIO CARS,08/11/2022," 2,160.00 ",6241-Hire of Vehicle with Driver,TRANSPORT,DIRECT TRANSPORT COSTS,REVENUE
Walsall Council,http://opendatacommunities.org/id/metropolitan-district-council/walsall ,WC144-213,30.11.2022,CHILDRENS,A1 WALSALL RADIO CARS,08/11/2022," 1,536.00 ",6241-Hire of Vehicle with Driver,TRANSPORT,DIRECT TRANSPORT COSTS,REVENUE
Walsall Council,http://opendatacommunities.org/id/metropolitan-district-council/walsall ,WC144-214,30.11.2022,ADULT SOCIAL CARE,A2 COMMS LIMITED,08/11/2022, 880.00 ,6622-External Training,INDIRECT EMPLOYEES,EXTERNAL TRAINING,REVENUE
Walsall Council,http://opendatacommunities.org/id/metropolitan-district-council/walsall ,WC144-215,30.11.2022,CHILDRENS,AAINA COMMUNITY HUB,10/11/2022," 5,500.00 ",6633-Grants to Other Orgs,SUPPLIES & SERVICES,GRANTS (EXP) & SUBSCRIPTIONS,REVENUE
Walsall Council,http://opendatacommunities.org/id/metropolitan-district-council/walsall ,WC144-216,30.11.2022,"ECONOMY, ENVIRONMENT & COMMUNITIES",AAINA COMMUNITY HUB,03/11/2022," 1,250.00 ",6430-Grants to Other Orgs,SUPPLIES & SERVICES,GRANTS (EXP) & SUBSCRIPTIONS,REVENUE
Walsall Council,http://opendatacommunities.org/id/metropolitan-district-council/walsall ,WC144-217,30.11.2022,RESOURCES AND TRANSFORMATION,AARON & PARTNERS SOLICITORS,30/11/2022, 250.00 ,6610-School Only Payments - Catering,THIRD PARTY PAYMENTS,INDEPENDENT UNIT WITHIN COUNCIL,REVENUE
Walsall Council,http://opendatacommunities.org/id/metropolitan-district-council/walsall ,WC144-218,30.11.2022,CHILDRENS,ABACUS FOSTERING LTD,29/11/2022," 2,955.20 ",6223-Independent Foster Care-Oth Agency Provision,THIRD PARTY PAYMENTS,PRIVATE CONTRACTOR,REVENUE
Walsall Council,http://opendatacommunities.org/id/metropolitan-district-council/walsall ,WC144-219,30.11.2022,CHILDRENS,ABACUS FOSTERING LTD,29/11/2022," 2,763.20 ",6223-Independent Foster Care-Oth Agency Provision,THIRD PARTY PAYMENTS,PRIVATE CONTRACTOR,REVENUE
Walsall Council,http://opendatacommunities.org/id/metropolitan-district-council/walsall ,WC144-220,30.11.2022,ADULT SOCIAL CARE,ABBEY COURT NURSING & RESIDEN,22/11/2022," 2,606.04 ",6541-Residential EMI,THIRD PARTY PAYMENTS,PRIVATE CONTRACTOR,REVENUE
Walsall Council,http://opendatacommunities.org/id/metropolitan-district-council/walsall ,WC144-221,30.11.2022,ADULT SOCIAL CARE,ABBEY HEALTHCARE HOMES LTD,22/11/2022," 2,432.32 ",6541-Residential,THIRD PARTY PAYMENTS,PRIVATE CONTRACTOR,REVENUE
Walsall Council,http://opendatacommunities.org/id/metropolitan-district-council/walsall ,WC144-222,30.11.2022,ADULT SOCIAL CARE,ABBEY HEALTHCARE HOMES LTD,22/11/2022," 3,180.76 ",6541-Residential,THIRD PARTY PAYMENTS,PRIVATE CONTRACTOR,REVENUE
Walsall Council,http://opendatacommunities.org/id/metropolitan-district-council/walsall ,WC144-223,30.11.2022,ADULT SOCIAL CARE,ABBEY HEALTHCARE HOMES LTD,22/11/2022," 3,604.84 ",6541-Residential,THIRD PARTY PAYMENTS,PRIVATE CONTRACTOR,REVENUE
Walsall Council,http://opendatacommunities.org/id/metropolitan-district-council/walsall ,WC144-224,30.11.2022,ADULT SOCIAL CARE,ABBEY HEALTHCARE HOMES LTD,22/11/2022," 3,180.76 ",6541-Residential,THIRD PARTY PAYMENTS,PRIVATE CONTRACTOR,REVENUE
Walsall Council,http://opendatacommunities.org/id/metropolitan-district-council/walsall ,WC144-225,30.11.2022,CHILDRENS,ABBOTT TOXICOLOGY LTD - FORMERLY ALERE TOXICOLOGY PLC,04/11/2022, 271.92 ,6223-Medical Specialist Reports,DIRECT EMPLOYEES,EMPLOYEE ALLOWANCES & EXPENSES,REVENUE
Walsall Council,http://opendatacommunities.org/id/metropolitan-district-council/walsall ,WC144-226,30.11.2022,ADULT SOCIAL CARE,REDACTED,03/11/2022," 2,212.84 ",6541-Direct Payment,THIRD PARTY PAYMENTS,PRIVATE CONTRACTOR,REVENUE
Walsall Council,http://opendatacommunities.org/id/metropolitan-district-council/walsall ,WC144-227,30.11.2022,CHILDRENS,REDACTED,15/11/2022, 500.00 ,6223-Setting Up Home Grant,TRANSFER PAYMENTS,CHILDREN SOCIAL SERVICES CLIENT,REVENUE
Walsall Council,http://opendatacommunities.org/id/metropolitan-district-council/walsall ,WC144-228,30.11.2022,ADULT SOCIAL CARE,ABILITY HEALTHCARE LTD,17/11/2022, 379.20 ,6554-Professional Services-Priv Contractor & Other Agencies,THIRD PARTY PAYMENTS,PRIVATE CONTRACTOR,REVENUE
Walsall Council,http://opendatacommunities.org/id/metropolitan-district-council/walsall ,WC144-229,30.11.2022,ADULT SOCIAL CARE,ABILITY HEALTHCARE LTD,17/11/2022," 1,074.40 ",6541-Domiciliary Care,THIRD PARTY PAYMENTS,PRIVATE CONTRACTOR,REVENUE
Walsall Council,http://opendatacommunities.org/id/metropolitan-district-council/walsall ,WC144-230,30.11.2022,ADULT SOCIAL CARE,ABILITY HEALTHCARE LTD,17/11/2022," 1,990.80 ",6541-Domiciliary Care,THIRD PARTY PAYMENTS,PRIVATE CONTRACTOR,REVENUE
Walsall Council,http://opendatacommunities.org/id/metropolitan-district-council/walsall ,WC144-231,30.11.2022,ADULT SOCIAL CARE,ABILITY HEALTHCARE LTD,17/11/2022," 1,322.74 ",6541-Domiciliary Care,THIRD PARTY PAYMENTS,PRIVATE CONTRACTOR,REVENUE
Walsall Council,http://opendatacommunities.org/id/metropolitan-district-council/walsall ,WC144-232,30.11.2022,ADULT SOCIAL CARE,ABILITY HEALTHCARE LTD,17/11/2022, 333.69 ,6541-Domiciliary Care,THIRD PARTY PAYMENTS,PRIVATE CONTRACTOR,REVENUE
Walsall Council,http://opendatacommunities.org/id/metropolitan-district-council/walsall ,WC144-233,30.11.2022,ADULT SOCIAL CARE,ABILITY HEALTHCARE LTD,17/11/2022," 1,779.68 ",6541-Domiciliary Care,THIRD PARTY PAYMENTS,PRIVATE CONTRACTOR,REVENUE
Walsall Council,http://opendatacommunities.org/id/metropolitan-district-council/walsall ,WC144-234,30.11.2022,ADULT SOCIAL CARE,ABILITY HEALTHCARE LTD,17/11/2022," 2,002.14 ",6541-Domiciliary Care,THIRD PARTY PAYMENTS,PRIVATE CONTRACTOR,REVENUE
Walsall Council,http://opendatacommunities.org/id/metropolitan-district-council/walsall ,WC144-235,30.11.2022,ADULT SOCIAL CARE,ABILITY HEALTHCARE LTD,17/11/2022, 529.30 ,6541-Domiciliary Care,THIRD PARTY PAYMENTS,PRIVATE CONTRACTOR,REVENUE
Walsall Council,http://opendatacommunities.org/id/metropolitan-district-council/walsall ,WC144-236,30.11.2022,ADULT SOCIAL CARE,ABILITY HEALTHCARE LTD,17/11/2022," 1,001.07 ",6541-Domiciliary Care,THIRD PARTY PAYMENTS,PRIVATE CONTRACTOR,REVENUE
Walsall Council,http://opendatacommunities.org/id/metropolitan-district-council/walsall ,WC144-237,30.11.2022,ADULT SOCIAL CARE,ABILITY HEALTHCARE LTD,17/11/2022," 2,002.14 ",6541-Domiciliary Care,THIRD PARTY PAYMENTS,PRIVATE CONTRACTOR,REVENUE
Walsall Council,http://opendatacommunities.org/id/metropolitan-district-council/walsall ,WC144-238,30.11.2022,ADULT SOCIAL CARE,ABILITY HEALTHCARE LTD,17/11/2022," 1,779.68 ",6541-Domiciliary Care,THIRD PARTY PAYMENTS,PRIVATE CONTRACTOR,REVENUE
Walsall Council,http://opendatacommunities.org/id/metropolitan-district-council/walsall ,WC144-239,30.11.2022,ADULT SOCIAL CARE,ABILITY HEALTHCARE LTD,17/11/2022," 1,557.22 ",6541-Domiciliary Care,THIRD PARTY PAYMENTS,PRIVATE CONTRACTOR,REVENUE
Walsall Council,http://opendatacommunities.org/id/metropolitan-district-council/walsall ,WC144-240,30.11.2022,ADULT SOCIAL CARE,ABILITY HEALTHCARE LTD,17/11/2022," 2,002.14 ",6541-Domiciliary Care,THIRD PARTY PAYMENTS,PRIVATE CONTRACTOR,REVENUE
Walsall Council,http://opendatacommunities.org/id/metropolitan-district-council/walsall ,WC144-241,30.11.2022,ADULT SOCIAL CARE,ABILITY HEALTHCARE LTD,17/11/2022," 1,001.07 ",6541-Domiciliary Care,THIRD PARTY PAYMENTS,PRIVATE CONTRACTOR,REVENUE
Walsall Council,http://opendatacommunities.org/id/metropolitan-district-council/walsall ,WC144-242,30.11.2022,ADULT SOCIAL CARE,ABILITY HEALTHCARE LTD,17/11/2022," 1,461.88 ",6541-Domiciliary Care,THIRD PARTY PAYMENTS,PRIVATE CONTRACTOR,REVENUE
Walsall Council,http://opendatacommunities.org/id/metropolitan-district-council/walsall ,WC144-243,30.11.2022,ADULT SOCIAL CARE,ABILITY HEALTHCARE LTD,17/11/2022, 434.50 ,6541-Domiciliary Care,THIRD PARTY PAYMENTS,PRIVATE CONTRACTOR,REVENUE
Walsall Council,http://opendatacommunities.org/id/metropolitan-district-council/walsall ,WC144-244,30.11.2022,ADULT SOCIAL CARE,ABILITY HEALTHCARE LTD,17/11/2022," 1,382.88 ",6541-Domiciliary Care,THIRD PARTY PAYMENTS,PRIVATE CONTRACTOR,REVENUE
Walsall Council,http://opendatacommunities.org/id/metropolitan-district-council/walsall ,WC144-245,30.11.2022,ADULT SOCIAL CARE,ABILITY HEALTHCARE LTD,17/11/2022," 1,779.68 ",6541-Domiciliary Care,THIRD PARTY PAYMENTS,PRIVATE CONTRACTOR,REVENUE
Walsall Council,http://opendatacommunities.org/id/metropolitan-district-council/walsall ,WC144-246,30.11.2022,ADULT SOCIAL CARE,ABILITY HEALTHCARE LTD,17/11/2022," 1,779.68 ",6541-Domiciliary Care,THIRD PARTY PAYMENTS,PRIVATE CONTRACTOR,REVENUE
Walsall Council,http://opendatacommunities.org/id/metropolitan-district-council/walsall ,WC144-247,30.11.2022,ADULT SOCIAL CARE,ABILITY HEALTHCARE LTD,17/11/2022, 889.84 ,6541-Domiciliary Care,THIRD PARTY PAYMENTS,PRIVATE CONTRACTOR,REVENUE
Walsall Council,http://opendatacommunities.org/id/metropolitan-district-council/walsall ,WC144-248,30.11.2022,ADULT SOCIAL CARE,ABILITY HEALTHCARE LTD,17/11/2022," 1,180.54 ",6541-Domiciliary Care,THIRD PARTY PAYMENTS,PRIVATE CONTRACTOR,REVENUE
Walsall Council,http://opendatacommunities.org/id/metropolitan-district-council/walsall ,WC144-249,30.11.2022,ADULT SOCIAL CARE,ABILITY HEALTHCARE LTD,17/11/2022," 1,773.22 ",6541-Domiciliary Care,THIRD PARTY PAYMENTS,PRIVATE CONTRACTOR,REVENUE
Walsall Council,http://opendatacommunities.org/id/metropolitan-district-council/walsall ,WC144-250,30.11.2022,ADULT SOCIAL CARE,ABILITY HEALTHCARE LTD,17/11/2022, 290.88 ,6541-Domiciliary Care,THIRD PARTY PAYMENTS,PRIVATE CONTRACTOR,REVENUE
Walsall Council,http://opendatacommunities.org/id/metropolitan-district-council/walsall ,WC144-251,30.11.2022,ADULT SOCIAL CARE,ABILITY HEALTHCARE LTD,17/11/2022," 2,002.14 ",6541-Domiciliary Care,THIRD PARTY PAYMENTS,PRIVATE CONTRACTOR,REVENUE
Walsall Council,http://opendatacommunities.org/id/metropolitan-district-council/walsall ,WC144-252,30.11.2022,ADULT SOCIAL CARE,ABILITY HEALTHCARE LTD,17/11/2022," 1,059.52 ",6541-Domiciliary Care,THIRD PARTY PAYMENTS,PRIVATE CONTRACTOR,REVENUE
Walsall Council,http://opendatacommunities.org/id/metropolitan-district-council/walsall ,WC144-253,30.11.2022,ADULT SOCIAL CARE,ABILITY HEALTHCARE LTD,17/11/2022," 1,779.68 ",6541-Domiciliary Care,THIRD PARTY PAYMENTS,PRIVATE CONTRACTOR,REVENUE
Walsall Council,http://opendatacommunities.org/id/metropolitan-district-council/walsall ,WC144-254,30.11.2022,ADULT SOCIAL CARE,ABILITY HEALTHCARE LTD,17/11/2022," 1,779.68 ",6541-Domiciliary Care,THIRD PARTY PAYMENTS,PRIVATE CONTRACTOR,REVENUE
Walsall Council,http://opendatacommunities.org/id/metropolitan-district-council/walsall ,WC144-255,30.11.2022,ADULT SOCIAL CARE,ABILITY HEALTHCARE LTD,17/11/2022," 2,002.14 ",6541-Domiciliary Care,THIRD PARTY PAYMENTS,PRIVATE CONTRACTOR,REVENUE
Walsall Council,http://opendatacommunities.org/id/metropolitan-district-council/walsall ,WC144-256,30.11.2022,ADULT SOCIAL CARE,ABILITY HEALTHCARE LTD,17/11/2022," 1,779.68 ",6541-Domiciliary Care,THIRD PARTY PAYMENTS,PRIVATE CONTRACTOR,REVENUE
Walsall Council,http://opendatacommunities.org/id/metropolitan-district-council/walsall ,WC144-257,30.11.2022,ADULT SOCIAL CARE,ABILITY HEALTHCARE LTD,17/11/2022," 1,112.30 ",6541-Domiciliary Care,THIRD PARTY PAYMENTS,PRIVATE CONTRACTOR,REVENUE
Walsall Council,http://opendatacommunities.org/id/metropolitan-district-council/walsall ,WC144-258,30.11.2022,ADULT SOCIAL CARE,ABILITY HEALTHCARE LTD,17/11/2022," 2,002.14 ",6541-Domiciliary Care,THIRD PARTY PAYMENTS,PRIVATE CONTRACTOR,REVENUE
Walsall Council,http://opendatacommunities.org/id/metropolitan-district-council/walsall ,WC144-259,30.11.2022,ADULT SOCIAL CARE,ABILITY HEALTHCARE LTD,17/11/2022," 1,504.44 ",6541-Domiciliary Care,THIRD PARTY PAYMENTS,PRIVATE CONTRACTOR,REVENUE
Walsall Council,http://opendatacommunities.org/id/metropolitan-district-council/walsall ,WC144-260,30.11.2022,ADULT SOCIAL CARE,ABILITY HEALTHCARE LTD,17/11/2022, 668.90 ,6541-Domiciliary Care,THIRD PARTY PAYMENTS,PRIVATE CONTRACTOR,REVENUE
Walsall Council,http://opendatacommunities.org/id/metropolitan-district-council/walsall ,WC144-261,30.11.2022,ADULT SOCIAL CARE,ABILITY HEALTHCARE LTD,17/11/2022," 1,998.78 ",6541-Domiciliary Care,THIRD PARTY PAYMENTS,PRIVATE CONTRACTOR,REVENUE
Walsall Council,http://opendatacommunities.org/id/metropolitan-district-council/walsall ,WC144-262,30.11.2022,ADULT SOCIAL CARE,ABILITY HEALTHCARE LTD,17/11/2022," 2,373.00 ",6541-Domiciliary Care,THIRD PARTY PAYMENTS,PRIVATE CONTRACTOR,REVENUE
Walsall Council,http://opendatacommunities.org/id/metropolitan-district-council/walsall ,WC144-263,30.11.2022,ADULT SOCIAL CARE,ABILITY HEALTHCARE LTD,17/11/2022, 890.40 ,6541-Domiciliary Care,THIRD PARTY PAYMENTS,PRIVATE CONTRACTOR,REVENUE
Walsall Council,http://opendatacommunities.org/id/metropolitan-district-council/walsall ,WC144-264,30.11.2022,ADULT SOCIAL CARE,ABILITY HEALTHCARE LTD,17/11/2022," 1,186.64 ",6541-Domiciliary Care,THIRD PARTY PAYMENTS,PRIVATE CONTRACTOR,REVENUE
Walsall Council,http://opendatacommunities.org/id/metropolitan-district-council/walsall ,WC144-265,30.11.2022,ADULT SOCIAL CARE,ABILITY HEALTHCARE LTD,17/11/2022, 370.86 ,6541-Domiciliary Care,THIRD PARTY PAYMENTS,PRIVATE CONTRACTOR,REVENUE
Walsall Council,http://opendatacommunities.org/id/metropolitan-district-council/walsall ,WC144-266,30.11.2022,ADULT SOCIAL CARE,ABILITY HEALTHCARE LTD,17/11/2022, 953.40 ,6541-Domiciliary Care,THIRD PARTY PAYMENTS,PRIVATE CONTRACTOR,REVENUE
Walsall Council,http://opendatacommunities.org/id/metropolitan-district-council/walsall ,WC144-267,30.11.2022,ADULT SOCIAL CARE,ABILITY HEALTHCARE LTD,17/11/2022," 1,493.10 ",6541-Domiciliary Care,THIRD PARTY PAYMENTS,PRIVATE CONTRACTOR,REVENUE
Walsall Council,http://opendatacommunities.org/id/metropolitan-district-council/walsall ,WC144-268,30.11.2022,ADULT SOCIAL CARE,ABILITY HEALTHCARE LTD,17/11/2022, 445.20 ,6541-Domiciliary Care,THIRD PARTY PAYMENTS,PRIVATE CONTRACTOR,REVENUE
Walsall Council,http://opendatacommunities.org/id/metropolitan-district-council/walsall ,WC144-269,30.11.2022,ADULT SOCIAL CARE,ABILITY HEALTHCARE LTD,17/11/2022," 1,631.56 ",6541-Domiciliary Care,THIRD PARTY PAYMENTS,PRIVATE CONTRACTOR,REVENUE
Walsall Council,http://opendatacommunities.org/id/metropolitan-district-council/walsall ,WC144-270,30.11.2022,ADULT SOCIAL CARE,ABILITY HEALTHCARE LTD,16/11/2022, 284.40 ,6554-Professional Services-Priv Contractor & Other Agencies,THIRD PARTY PAYMENTS,PRIVATE CONTRACTOR,REVENUE
Walsall Council,http://opendatacommunities.org/id/metropolitan-district-council/walsall ,WC144-271,30.11.2022,ADULT SOCIAL CARE,ABILITY HEALTHCARE LTD,16/11/2022," 1,279.80 ",6554-Professional Services-Priv Contractor & Other Agencies,THIRD PARTY PAYMENTS,PRIVATE CONTRACTOR,REVENUE
Walsall Council,http://opendatacommunities.org/id/metropolitan-district-council/walsall ,WC144-272,30.11.2022,ADULT SOCIAL CARE,ABILITY HEALTHCARE LTD,16/11/2022," 1,066.50 ",6554-Professional Services-Priv Contractor & Other Agencies,THIRD PARTY PAYMENTS,PRIVATE CONTRACTOR,REVENUE
Walsall Council,http://opendatacommunities.org/id/metropolitan-district-council/walsall ,WC144-273,30.11.2022,ADULT SOCIAL CARE,ABILITY HEALTHCARE LTD,16/11/2022, 284.40 ,6554-Professional Services-Priv Contractor & Other Agencies,THIRD PARTY PAYMENTS,PRIVATE CONTRACTOR,REVENUE
Walsall Council,http://opendatacommunities.org/id/metropolitan-district-council/walsall ,WC144-274,30.11.2022,ADULT SOCIAL CARE,ABILITY HEALTHCARE LTD,16/11/2022," 1,638.54 ",6554-Professional Services-Priv Contractor & Other Agencies,THIRD PARTY PAYMENTS,PRIVATE CONTRACTOR,REVENUE
Walsall Council,http://opendatacommunities.org/id/metropolitan-district-council/walsall ,WC144-275,30.11.2022,ADULT SOCIAL CARE,ABILITY HEALTHCARE LTD,16/11/2022, 497.70 ,6554-Professional Services-Priv Contractor & Other Agencies,THIRD PARTY PAYMENTS,PRIVATE CONTRACTOR,REVENUE
Walsall Council,http://opendatacommunities.org/id/metropolitan-district-council/walsall ,WC144-276,30.11.2022,ADULT SOCIAL CARE,ABILITY HEALTHCARE LTD,16/11/2022, 395.92 ,6554-Professional Services-Priv Contractor & Other Agencies,THIRD PARTY PAYMENTS,PRIVATE CONTRACTOR,REVENUE
Walsall Council,http://opendatacommunities.org/id/metropolitan-district-council/walsall ,WC144-277,30.11.2022,ADULT SOCIAL CARE,ABILITY HEALTHCARE LTD,16/11/2022," 1,170.12 ",6554-Professional Services-Priv Contractor & Other Agencies,THIRD PARTY PAYMENTS,PRIVATE CONTRACTOR,REVENUE
Walsall Council,http://opendatacommunities.org/id/metropolitan-district-council/walsall ,WC144-278,30.11.2022,ADULT SOCIAL CARE,ABILITY HEALTHCARE LTD,16/11/2022, 681.12 ,6554-Professional Services-Priv Contractor & Other Agencies,THIRD PARTY PAYMENTS,PRIVATE CONTRACTOR,REVENUE
Walsall Council,http://opendatacommunities.org/id/metropolitan-district-council/walsall ,WC144-279,30.11.2022,ADULT SOCIAL CARE,ABILITY HEALTHCARE LTD,16/11/2022, 442.40 ,6554-Professional Services-Priv Contractor & Other Agencies,THIRD PARTY PAYMENTS,PRIVATE CONTRACTOR,REVENUE
Walsall Council,http://opendatacommunities.org/id/metropolitan-district-council/walsall ,WC144-280,30.11.2022,ADULT SOCIAL CARE,ABILITY HEALTHCARE LTD,16/11/2022, 722.34 ,6554-Professional Services-Priv Contractor & Other Agencies,THIRD PARTY PAYMENTS,PRIVATE CONTRACTOR,REVENUE
Walsall Council,http://opendatacommunities.org/id/metropolitan-district-council/walsall ,WC144-281,30.11.2022,ADULT SOCIAL CARE,ABILITY HEALTHCARE LTD,28/11/2022," 7,568.44 ",6541-Domiciliary Care,THIRD PARTY PAYMENTS,PRIVATE CONTRACTOR,REVENUE
Walsall Council,http://opendatacommunities.org/id/metropolitan-district-council/walsall ,WC144-282,30.11.2022,"ECONOMY, ENVIRONMENT & COMMUNITIES",ABLE INVESTIGATIONS & ENFORCEMENTS LTD,22/11/2022," 1,590.00 ",6440-Professional Fees & Services,SUPPLIES & SERVICES,SERVICES,REVENUE
Walsall Council,http://opendatacommunities.org/id/metropolitan-district-council/walsall ,WC144-283,30.11.2022,"ECONOMY, ENVIRONMENT & COMMUNITIES",ABLEWELL ADVICE SERVICES,25/11/2022," 3,500.00 ",6313-Grants to Other Orgs,SUPPLIES & SERVICES,GRANTS (EXP) & SUBSCRIPTIONS,REVENUE
Walsall Council,http://opendatacommunities.org/id/metropolitan-district-council/walsall ,WC144-284,30.11.2022,CHILDRENS,ABLEWELL CARS,08/11/2022," 1,471.20 ",6241-Hire of Vehicle with Driver,TRANSPORT,DIRECT TRANSPORT COSTS,REVENUE
Walsall Council,http://opendatacommunities.org/id/metropolitan-district-council/walsall ,WC144-285,30.11.2022,CHILDRENS,ABLEWELL CARS,08/11/2022," 1,664.00 ",6241-Hire of Vehicle with Driver,TRANSPORT,DIRECT TRANSPORT COSTS,REVENUE
Walsall Council,http://opendatacommunities.org/id/metropolitan-district-council/walsall ,WC144-286,30.11.2022,CHILDRENS,ABLEWELL CARS,08/11/2022," 1,457.00 ",6241-Hire of Vehicle with Driver,TRANSPORT,DIRECT TRANSPORT COSTS,REVENUE
Walsall Council,http://opendatacommunities.org/id/metropolitan-district-council/walsall ,WC144-287,30.11.2022,CHILDRENS,ABLEWELL CARS,08/11/2022," 2,650.80 ",6241-Hire of Vehicle with Driver,TRANSPORT,DIRECT TRANSPORT COSTS,REVENUE
Walsall Council,http://opendatacommunities.org/id/metropolitan-district-council/walsall ,WC144-288,30.11.2022,CHILDRENS,ABLEWELL CARS,08/11/2022," 1,320.00 ",6241-Hire of Vehicle with Driver,TRANSPORT,DIRECT TRANSPORT COSTS,REVENUE
Walsall Council,http://opendatacommunities.org/id/metropolitan-district-council/walsall ,WC144-289,30.11.2022,CHILDRENS,ABLEWELL CARS,08/11/2022," 1,264.00 ",6241-Hire of Vehicle with Driver,TRANSPORT,DIRECT TRANSPORT COSTS,REVENUE
Walsall Council,http://opendatacommunities.org/id/metropolitan-district-council/walsall ,WC144-290,30.11.2022,CHILDRENS,ABS TAXIS (ALDRIDGE),08/11/2022," 1,632.60 ",6241-Hire of Vehicle with Driver,TRANSPORT,DIRECT TRANSPORT COSTS,REVENUE
Walsall Council,http://opendatacommunities.org/id/metropolitan-district-council/walsall ,WC144-291,30.11.2022,CHILDRENS,ABS TAXIS (ALDRIDGE),08/11/2022," 1,974.00 ",6241-Hire of Vehicle with Driver,TRANSPORT,DIRECT TRANSPORT COSTS,REVENUE
Walsall Council,http://opendatacommunities.org/id/metropolitan-district-council/walsall ,WC144-292,30.11.2022,CHILDRENS,ABS TAXIS (ALDRIDGE),08/11/2022," 1,592.20 ",6241-Hire of Vehicle with Driver,TRANSPORT,DIRECT TRANSPORT COSTS,REVENUE
Walsall Council,http://opendatacommunities.org/id/metropolitan-district-council/walsall ,WC144-293,30.11.2022,ADULT SOCIAL CARE,ABSOLUTE HEALTHCARE SWAN HOUSE LTD,22/11/2022," 2,095.40 ",6541-Residential,THIRD PARTY PAYMENTS,PRIVATE CONTRACTOR,REVENUE
Walsall Council,http://opendatacommunities.org/id/metropolitan-district-council/walsall ,WC144-294,30.11.2022,ADULT SOCIAL CARE,ABSOLUTE HEALTHCARE SWAN HOUSE LTD,22/11/2022," 2,366.04 ",6541-Residential EMI,THIRD PARTY PAYMENTS,PRIVATE CONTRACTOR,REVENUE
Walsall Council,http://opendatacommunities.org/id/metropolitan-district-council/walsall ,WC144-295,30.11.2022,ADULT SOCIAL CARE,ABSOLUTE HEALTHCARE SWAN HOUSE LTD,22/11/2022," 2,095.40 ",6541-Residential,THIRD PARTY PAYMENTS,PRIVATE CONTRACTOR,REVENUE
Walsall Council,http://opendatacommunities.org/id/metropolitan-district-council/walsall ,WC144-296,30.11.2022,ADULT SOCIAL CARE,ABSOLUTE HEALTHCARE SWAN HOUSE LTD,22/11/2022," 2,095.40 ",6541-Residential,THIRD PARTY PAYMENTS,PRIVATE CONTRACTOR,REVENUE
Walsall Council,http://opendatacommunities.org/id/metropolitan-district-council/walsall ,WC144-297,30.11.2022,ADULT SOCIAL CARE,ABSOLUTE HEALTHCARE SWAN HOUSE LTD,22/11/2022," 2,366.04 ",6541-Residential EMI,THIRD PARTY PAYMENTS,PRIVATE CONTRACTOR,REVENUE
Walsall Council,http://opendatacommunities.org/id/metropolitan-district-council/walsall ,WC144-298,30.11.2022,ADULT SOCIAL CARE,ABSOLUTE HEALTHCARE SWAN HOUSE LTD,22/11/2022," 2,366.04 ",6541-Residential EMI,THIRD PARTY PAYMENTS,PRIVATE CONTRACTOR,REVENUE
Walsall Council,http://opendatacommunities.org/id/metropolitan-district-council/walsall ,WC144-299,30.11.2022,ADULT SOCIAL CARE,ABSOLUTE HEALTHCARE SWAN HOUSE LTD,22/11/2022," 2,235.40 ",6541-Residential,THIRD PARTY PAYMENTS,PRIVATE CONTRACTOR,REVENUE
Walsall Council,http://opendatacommunities.org/id/metropolitan-district-council/walsall ,WC144-300,30.11.2022,ADULT SOCIAL CARE,ABSOLUTE HEALTHCARE SWAN HOUSE LTD,22/11/2022," 2,135.40 ",6541-Residential,THIRD PARTY PAYMENTS,PRIVATE CONTRACTOR,REVENUE
Walsall Council,http://opendatacommunities.org/id/metropolitan-district-council/walsall ,WC144-301,30.11.2022,ADULT SOCIAL CARE,ABSOLUTE HEALTHCARE SWAN HOUSE LTD,22/11/2022," 2,095.40 ",6541-Residential,THIRD PARTY PAYMENTS,PRIVATE CONTRACTOR,REVENUE
Walsall Council,http://opendatacommunities.org/id/metropolitan-district-council/walsall ,WC144-302,30.11.2022,ADULT SOCIAL CARE,ABSOLUTE HEALTHCARE SWAN HOUSE LTD,22/11/2022," 2,095.40 ",6541-Residential,THIRD PARTY PAYMENTS,PRIVATE CONTRACTOR,REVENUE
Walsall Council,http://opendatacommunities.org/id/metropolitan-district-council/walsall ,WC144-303,30.11.2022,ADULT SOCIAL CARE,ABSOLUTE HEALTHCARE SWAN HOUSE LTD,22/11/2022," 2,095.40 ",6541-Residential,THIRD PARTY PAYMENTS,PRIVATE CONTRACTOR,REVENUE
Walsall Council,http://opendatacommunities.org/id/metropolitan-district-council/walsall ,WC144-304,30.11.2022,ADULT SOCIAL CARE,ABSOLUTE HEALTHCARE SWAN HOUSE LTD,22/11/2022," 1,821.43 ",6554-Professional Services-Priv Contractor & Other Agencies,THIRD PARTY PAYMENTS,PRIVATE CONTRACTOR,REVENUE
Walsall Council,http://opendatacommunities.org/id/metropolitan-district-council/walsall ,WC144-305,30.11.2022,ADULT SOCIAL CARE,ABSOLUTE HEALTHCARE SWAN HOUSE LTD,22/11/2022," 2,366.04 ",6541-Residential EMI,THIRD PARTY PAYMENTS,PRIVATE CONTRACTOR,REVENUE
Walsall Council,http://opendatacommunities.org/id/metropolitan-district-council/walsall ,WC144-306,30.11.2022,ADULT SOCIAL CARE,ABSOLUTE HEALTHCARE SWAN HOUSE LTD,22/11/2022," 2,594.04 ",6541-Residential EMI,THIRD PARTY PAYMENTS,PRIVATE CONTRACTOR,REVENUE
Walsall Council,http://opendatacommunities.org/id/metropolitan-district-council/walsall ,WC144-307,30.11.2022,ADULT SOCIAL CARE,ABSOLUTE HEALTHCARE SWAN HOUSE LTD,22/11/2022," 2,135.40 ",6541-Residential,THIRD PARTY PAYMENTS,PRIVATE CONTRACTOR,REVENUE
Walsall Council,http://opendatacommunities.org/id/metropolitan-district-council/walsall ,WC144-308,30.11.2022,ADULT SOCIAL CARE,ABSOLUTE HEALTHCARE SWAN HOUSE LTD,22/11/2022," 2,366.04 ",6541-Residential EMI,THIRD PARTY PAYMENTS,PRIVATE CONTRACTOR,REVENUE
Walsall Council,http://opendatacommunities.org/id/metropolitan-district-council/walsall ,WC144-309,30.11.2022,CHILDRENS,ABU BAKR TRUST,18/11/2022," 5,817.46 ",1220-Top Up Funding -Grants to Schools,SUPPLIES & SERVICES,GRANTS (EXP) & SUBSCRIPTIONS,REVENUE
Walsall Council,http://opendatacommunities.org/id/metropolitan-district-council/walsall ,WC144-310,30.11.2022,CHILDRENS,ACCALIA CARE SERVICES LTD,29/11/2022," 20,960.00 ",6223-External Residential Care-Oth Agency Provision,THIRD PARTY PAYMENTS,PRIVATE CONTRACTOR,REVENUE
Walsall Council,http://opendatacommunities.org/id/metropolitan-district-council/walsall ,WC144-311,30.11.2022,ADULT SOCIAL CARE,ACCESS UK LTD ,16/11/2022," 18,315.00 ",6551-Professional Fees & Services,SUPPLIES & SERVICES,SERVICES,REVENUE
Walsall Council,http://opendatacommunities.org/id/metropolitan-district-council/walsall ,WC144-312,30.11.2022,ADULT SOCIAL CARE,ACCORD HOUSING ASSOCIATION LIMITED - HOBS MEADOW,22/11/2022," 4,776.84 ",6541-Residential,THIRD PARTY PAYMENTS,PRIVATE CONTRACTOR,REVENUE
Walsall Council,http://opendatacommunities.org/id/metropolitan-district-council/walsall ,WC144-313,30.11.2022,ADULT SOCIAL CARE,ACCORD HOUSING ASSOCIATION LIMITED - HOBS MEADOW,22/11/2022," 4,776.84 ",6541-Residential,THIRD PARTY PAYMENTS,PRIVATE CONTRACTOR,REVENUE
Walsall Council,http://opendatacommunities.org/id/metropolitan-district-council/walsall ,WC144-314,30.11.2022,ADULT SOCIAL CARE,ACCORD HOUSING ASSOCIATION LIMITED - HOBS MEADOW,22/11/2022," 4,776.84 ",6541-Residential,THIRD PARTY PAYMENTS,PRIVATE CONTRACTOR,REVENUE
Walsall Council,http://opendatacommunities.org/id/metropolitan-district-council/walsall ,WC144-315,30.11.2022,ADULT SOCIAL CARE,ACCORD HOUSING ASSOCIATION LIMITED - HOBS MEADOW,22/11/2022," 4,776.84 ",6541-Residential,THIRD PARTY PAYMENTS,PRIVATE CONTRACTOR,REVENUE
Walsall Council,http://opendatacommunities.org/id/metropolitan-district-council/walsall ,WC144-316,30.11.2022,CHILDRENS,ACE CARS & MINIBUSES LTD,08/11/2022," 3,594.61 ",6241-Hire of Vehicle with Driver,TRANSPORT,DIRECT TRANSPORT COSTS,REVENUE
Walsall Council,http://opendatacommunities.org/id/metropolitan-district-council/walsall ,WC144-317,30.11.2022,CHILDRENS,ACE CARS & MINIBUSES LTD,08/11/2022," 2,585.90 ",6241-Hire of Vehicle with Driver,TRANSPORT,DIRECT TRANSPORT COSTS,REVENUE
Walsall Council,http://opendatacommunities.org/id/metropolitan-district-council/walsall ,WC144-318,30.11.2022,CHILDRENS,ACE CARS & MINIBUSES LTD,08/11/2022," 2,922.01 ",6241-Hire of Vehicle with Driver,TRANSPORT,DIRECT TRANSPORT COSTS,REVENUE
Walsall Council,http://opendatacommunities.org/id/metropolitan-district-council/walsall ,WC144-319,30.11.2022,CHILDRENS,ACE CARS & MINIBUSES LTD,08/11/2022," 2,140.00 ",6241-Hire of Vehicle with Driver,TRANSPORT,DIRECT TRANSPORT COSTS,REVENUE
Walsall Council,http://opendatacommunities.org/id/metropolitan-district-council/walsall ,WC144-320,30.11.2022,CHILDRENS,ACE CARS & MINIBUSES LTD,08/11/2022," 2,140.00 ",6241-Hire of Vehicle with Driver,TRANSPORT,DIRECT TRANSPORT COSTS,REVENUE
Walsall Council,http://opendatacommunities.org/id/metropolitan-district-council/walsall ,WC144-321,30.11.2022,CHILDRENS,ACE CARS & MINIBUSES LTD,08/11/2022," 2,280.00 ",6241-Hire of Vehicle with Driver,TRANSPORT,DIRECT TRANSPORT COSTS,REVENUE
Walsall Council,http://opendatacommunities.org/id/metropolitan-district-council/walsall ,WC144-322,30.11.2022,CHILDRENS,ACE CARS & MINIBUSES LTD,08/11/2022," 2,390.00 ",6241-Hire of Vehicle with Driver,TRANSPORT,DIRECT TRANSPORT COSTS,REVENUE
Walsall Council,http://opendatacommunities.org/id/metropolitan-district-council/walsall ,WC144-323,30.11.2022,CHILDRENS,ACE CARS & MINIBUSES LTD,08/11/2022," 2,280.00 ",6241-Hire of Vehicle with Driver,TRANSPORT,DIRECT TRANSPORT COSTS,REVENUE
Walsall Council,http://opendatacommunities.org/id/metropolitan-district-council/walsall ,WC144-324,30.11.2022,CHILDRENS,ACE CARS & MINIBUSES LTD,08/11/2022," 2,140.00 ",6241-Hire of Vehicle with Driver,TRANSPORT,DIRECT TRANSPORT COSTS,REVENUE
Walsall Council,http://opendatacommunities.org/id/metropolitan-district-council/walsall ,WC144-325,30.11.2022,CHILDRENS,ACE CARS & MINIBUSES LTD,08/11/2022," 2,140.00 ",6241-Hire of Vehicle with Driver,TRANSPORT,DIRECT TRANSPORT COSTS,REVENUE
Walsall Council,http://opendatacommunities.org/id/metropolitan-district-council/walsall ,WC144-326,30.11.2022,CHILDRENS,ACE CARS & MINIBUSES LTD,08/11/2022," 2,140.00 ",6241-Hire of Vehicle with Driver,TRANSPORT,DIRECT TRANSPORT COSTS,REVENUE
Walsall Council,http://opendatacommunities.org/id/metropolitan-district-council/walsall ,WC144-327,30.11.2022,CHILDRENS,ACE CARS & MINIBUSES LTD,08/11/2022," 3,170.00 ",6241-Hire of Vehicle with Driver,TRANSPORT,DIRECT TRANSPORT COSTS,REVENUE
Walsall Council,http://opendatacommunities.org/id/metropolitan-district-council/walsall ,WC144-328,30.11.2022,CHILDRENS,ACE CARS & MINIBUSES LTD,08/11/2022," 2,390.00 ",6241-Hire of Vehicle with Driver,TRANSPORT,DIRECT TRANSPORT COSTS,REVENUE
Walsall Council,http://opendatacommunities.org/id/metropolitan-district-council/walsall ,WC144-329,30.11.2022,CHILDRENS,ACE CARS & MINIBUSES LTD,08/11/2022," 2,390.00 ",6241-Hire of Vehicle with Driver,TRANSPORT,DIRECT TRANSPORT COSTS,REVENUE
Walsall Council,http://opendatacommunities.org/id/metropolitan-district-council/walsall ,WC144-330,30.11.2022,CHILDRENS,ACE CARS & MINIBUSES LTD,08/11/2022," 2,390.00 ",6241-Hire of Vehicle with Driver,TRANSPORT,DIRECT TRANSPORT COSTS,REVENUE
Walsall Council,http://opendatacommunities.org/id/metropolitan-district-council/walsall ,WC144-331,30.11.2022,CHILDRENS,ACE CARS & MINIBUSES LTD,08/11/2022," 2,585.90 ",6241-Hire of Vehicle with Driver,TRANSPORT,DIRECT TRANSPORT COSTS,REVENUE
Walsall Council,http://opendatacommunities.org/id/metropolitan-district-council/walsall ,WC144-332,30.11.2022,CHILDRENS,ACE CARS & MINIBUSES LTD,08/11/2022," 2,585.90 ",6241-Hire of Vehicle with Driver,TRANSPORT,DIRECT TRANSPORT COSTS,REVENUE
Walsall Council,http://opendatacommunities.org/id/metropolitan-district-council/walsall ,WC144-333,30.11.2022,CHILDRENS,ACE CARS & MINIBUSES LTD,08/11/2022," 2,280.00 ",6241-Hire of Vehicle with Driver,TRANSPORT,DIRECT TRANSPORT COSTS,REVENUE
Walsall Council,http://opendatacommunities.org/id/metropolitan-district-council/walsall ,WC144-334,30.11.2022,CHILDRENS,ACE CARS & MINIBUSES LTD,08/11/2022," 2,360.00 ",6241-Hire of Vehicle with Driver,TRANSPORT,DIRECT TRANSPORT COSTS,REVENUE
Walsall Council,http://opendatacommunities.org/id/metropolitan-district-council/walsall ,WC144-335,30.11.2022,CHILDRENS,ACE CARS & MINIBUSES LTD,08/11/2022," 2,690.40 ",6241-Hire of Vehicle with Driver,TRANSPORT,DIRECT TRANSPORT COSTS,REVENUE
Walsall Council,http://opendatacommunities.org/id/metropolitan-district-council/walsall ,WC144-336,30.11.2022,CHILDRENS,ACE CARS & MINIBUSES LTD,08/11/2022," 2,501.60 ",6241-Hire of Vehicle with Driver,TRANSPORT,DIRECT TRANSPORT COSTS,REVENUE
Walsall Council,http://opendatacommunities.org/id/metropolitan-district-council/walsall ,WC144-337,30.11.2022,CHILDRENS,ACE CARS & MINIBUSES LTD,08/11/2022," 2,360.00 ",6241-Hire of Vehicle with Driver,TRANSPORT,DIRECT TRANSPORT COSTS,REVENUE
Walsall Council,http://opendatacommunities.org/id/metropolitan-district-council/walsall ,WC144-338,30.11.2022,CHILDRENS,ACE CARS & MINIBUSES LTD,08/11/2022," 3,200.00 ",6241-Hire of Vehicle with Driver,TRANSPORT,DIRECT TRANSPORT COSTS,REVENUE
Walsall Council,http://opendatacommunities.org/id/metropolitan-district-council/walsall ,WC144-339,30.11.2022,CHILDRENS,ACE CARS & MINIBUSES LTD,08/11/2022," 2,390.00 ",6241-Hire of Vehicle with Driver,TRANSPORT,DIRECT TRANSPORT COSTS,REVENUE
Walsall Council,http://opendatacommunities.org/id/metropolitan-district-council/walsall ,WC144-340,30.11.2022,CHILDRENS,ACE CARS & MINIBUSES LTD,08/11/2022," 2,140.00 ",6241-Hire of Vehicle with Driver,TRANSPORT,DIRECT TRANSPORT COSTS,REVENUE
Walsall Council,http://opendatacommunities.org/id/metropolitan-district-council/walsall ,WC144-341,30.11.2022,CHILDRENS,ACE CARS & MINIBUSES LTD,08/11/2022," 4,248.00 ",6241-Hire of Vehicle with Driver,TRANSPORT,DIRECT TRANSPORT COSTS,REVENUE
Walsall Council,http://opendatacommunities.org/id/metropolitan-district-council/walsall ,WC144-342,30.11.2022,CHILDRENS,ACE CARS & MINIBUSES LTD,08/11/2022," 2,140.00 ",6241-Hire of Vehicle with Driver,TRANSPORT,DIRECT TRANSPORT COSTS,REVENUE
Walsall Council,http://opendatacommunities.org/id/metropolitan-district-council/walsall ,WC144-343,30.11.2022,CHILDRENS,ACE CARS & MINIBUSES LTD,08/11/2022," 2,585.90 ",6241-Hire of Vehicle with Driver,TRANSPORT,DIRECT TRANSPORT COSTS,REVENUE
Walsall Council,http://opendatacommunities.org/id/metropolitan-district-council/walsall ,WC144-344,30.11.2022,CHILDRENS,ACE CARS & MINIBUSES LTD,08/11/2022," 2,203.50 ",6241-Hire of Vehicle with Driver,TRANSPORT,DIRECT TRANSPORT COSTS,REVENUE
Walsall Council,http://opendatacommunities.org/id/metropolitan-district-council/walsall ,WC144-345,30.11.2022,CHILDRENS,ACE CARS & MINIBUSES LTD,08/11/2022," 2,140.00 ",6241-Hire of Vehicle with Driver,TRANSPORT,DIRECT TRANSPORT COSTS,REVENUE
Walsall Council,http://opendatacommunities.org/id/metropolitan-district-council/walsall ,WC144-346,30.11.2022,CHILDRENS,ACE CARS & MINIBUSES LTD,08/11/2022," 2,360.00 ",6241-Hire of Vehicle with Driver,TRANSPORT,DIRECT TRANSPORT COSTS,REVENUE
Walsall Council,http://opendatacommunities.org/id/metropolitan-district-council/walsall ,WC144-347,30.11.2022,CHILDRENS,ACE CARS & MINIBUSES LTD,08/11/2022," 2,140.00 ",6241-Hire of Vehicle with Driver,TRANSPORT,DIRECT TRANSPORT COSTS,REVENUE
Walsall Council,http://opendatacommunities.org/id/metropolitan-district-council/walsall ,WC144-348,30.11.2022,CHILDRENS,ACE CARS & MINIBUSES LTD,08/11/2022," 2,140.00 ",6241-Hire of Vehicle with Driver,TRANSPORT,DIRECT TRANSPORT COSTS,REVENUE
Walsall Council,http://opendatacommunities.org/id/metropolitan-district-council/walsall ,WC144-349,30.11.2022,CHILDRENS,ACE CARS & MINIBUSES LTD,08/11/2022," 2,360.00 ",6241-Hire of Vehicle with Driver,TRANSPORT,DIRECT TRANSPORT COSTS,REVENUE
Walsall Council,http://opendatacommunities.org/id/metropolitan-district-council/walsall ,WC144-350,30.11.2022,CHILDRENS,ACE CARS & MINIBUSES LTD,08/11/2022," 2,390.00 ",6241-Hire of Vehicle with Driver,TRANSPORT,DIRECT TRANSPORT COSTS,REVENUE
Walsall Council,http://opendatacommunities.org/id/metropolitan-district-council/walsall ,WC144-351,30.11.2022,CHILDRENS,ACE CARS & MINIBUSES LTD,08/11/2022," 2,585.90 ",6241-Hire of Vehicle with Driver,TRANSPORT,DIRECT TRANSPORT COSTS,REVENUE
Walsall Council,http://opendatacommunities.org/id/metropolitan-district-council/walsall ,WC144-352,30.11.2022,CHILDRENS,ACE CARS & MINIBUSES LTD,08/11/2022," 2,585.90 ",6241-Hire of Vehicle with Driver,TRANSPORT,DIRECT TRANSPORT COSTS,REVENUE
Walsall Council,http://opendatacommunities.org/id/metropolitan-district-council/walsall ,WC144-353,30.11.2022,CHILDRENS,ACE CARS & MINIBUSES LTD,08/11/2022," 2,360.00 ",6241-Hire of Vehicle with Driver,TRANSPORT,DIRECT TRANSPORT COSTS,REVENUE
Walsall Council,http://opendatacommunities.org/id/metropolitan-district-council/walsall ,WC144-354,30.11.2022,CHILDRENS,ACE CARS & MINIBUSES LTD,08/11/2022," 2,280.00 ",6241-Hire of Vehicle with Driver,TRANSPORT,DIRECT TRANSPORT COSTS,REVENUE
Walsall Council,http://opendatacommunities.org/id/metropolitan-district-council/walsall ,WC144-355,30.11.2022,CHILDRENS,ACE CARS & MINIBUSES LTD,08/11/2022," 3,115.20 ",6241-Hire of Vehicle with Driver,TRANSPORT,DIRECT TRANSPORT COSTS,REVENUE
Walsall Council,http://opendatacommunities.org/id/metropolitan-district-council/walsall ,WC144-356,30.11.2022,RESOURCES AND TRANSFORMATION,ACE PA HIRE,22/11/2022, 620.00 ,6625-Civic Events,SUPPLIES & SERVICES,EXPENSES,REVENUE
Walsall Council,http://opendatacommunities.org/id/metropolitan-district-council/walsall ,WC144-357,30.11.2022,RESOURCES AND TRANSFORMATION,ACE PA HIRE,30/11/2022," 1,180.00 ",6625-Civic Events,SUPPLIES & SERVICES,EXPENSES,REVENUE
Walsall Council,http://opendatacommunities.org/id/metropolitan-district-council/walsall ,WC144-358,30.11.2022,ADULT SOCIAL CARE,ACEPAY LTD (COTTAGE NUR HOME),22/11/2022," 2,456.24 ",6541-Nursing,THIRD PARTY PAYMENTS,PRIVATE CONTRACTOR,REVENUE
Walsall Council,http://opendatacommunities.org/id/metropolitan-district-council/walsall ,WC144-359,30.11.2022,ADULT SOCIAL CARE,ACEPAY LTD (COTTAGE NUR HOME),22/11/2022," 2,456.24 ",6541-Nursing,THIRD PARTY PAYMENTS,PRIVATE CONTRACTOR,REVENUE
Walsall Council,http://opendatacommunities.org/id/metropolitan-district-council/walsall ,WC144-360,30.11.2022,ADULT SOCIAL CARE,ACEPAY LTD (COTTAGE NUR HOME),22/11/2022," 2,368.52 ",6541-Nursing,THIRD PARTY PAYMENTS,PRIVATE CONTRACTOR,REVENUE
Walsall Council,http://opendatacommunities.org/id/metropolitan-district-council/walsall ,WC144-361,30.11.2022,ADULT SOCIAL CARE,ACEPAY LTD (COTTAGE NUR HOME),22/11/2022," 2,366.04 ",6541-Residential EMI,THIRD PARTY PAYMENTS,PRIVATE CONTRACTOR,REVENUE
Walsall Council,http://opendatacommunities.org/id/metropolitan-district-council/walsall ,WC144-362,30.11.2022,ADULT SOCIAL CARE,ACEPAY LTD (COTTAGE NUR HOME),22/11/2022," 2,366.04 ",6541-Residential EMI,THIRD PARTY PAYMENTS,PRIVATE CONTRACTOR,REVENUE
Walsall Council,http://opendatacommunities.org/id/metropolitan-district-council/walsall ,WC144-363,30.11.2022,ADULT SOCIAL CARE,ACEPAY LTD (COTTAGE NUR HOME),22/11/2022," 2,456.24 ",6541-Nursing,THIRD PARTY PAYMENTS,PRIVATE CONTRACTOR,REVENUE
Walsall Council,http://opendatacommunities.org/id/metropolitan-district-council/walsall ,WC144-364,30.11.2022,ADULT SOCIAL CARE,ACEPAY LTD (COTTAGE NUR HOME),22/11/2022," 2,456.24 ",6541-Nursing,THIRD PARTY PAYMENTS,PRIVATE CONTRACTOR,REVENUE
Walsall Council,http://opendatacommunities.org/id/metropolitan-district-council/walsall ,WC144-365,30.11.2022,ADULT SOCIAL CARE,ACEPAY LTD (COTTAGE NUR HOME),22/11/2022," 2,095.40 ",6541-Residential,THIRD PARTY PAYMENTS,PRIVATE CONTRACTOR,REVENUE
Walsall Council,http://opendatacommunities.org/id/metropolitan-district-council/walsall ,WC144-366,30.11.2022,ADULT SOCIAL CARE,ACEPAY LTD (COTTAGE NUR HOME),22/11/2022," 2,456.24 ",6541-Nursing,THIRD PARTY PAYMENTS,PRIVATE CONTRACTOR,REVENUE
Walsall Council,http://opendatacommunities.org/id/metropolitan-district-council/walsall ,WC144-367,30.11.2022,ADULT SOCIAL CARE,ACEPAY LTD (COTTAGE NUR HOME),22/11/2022," 2,456.24 ",6541-Nursing,THIRD PARTY PAYMENTS,PRIVATE CONTRACTOR,REVENUE
Walsall Council,http://opendatacommunities.org/id/metropolitan-district-council/walsall ,WC144-368,30.11.2022,ADULT SOCIAL CARE,ACEPAY LTD (COTTAGE NUR HOME),22/11/2022," 2,366.04 ",6541-Residential EMI,THIRD PARTY PAYMENTS,PRIVATE CONTRACTOR,REVENUE
Walsall Council,http://opendatacommunities.org/id/metropolitan-district-council/walsall ,WC144-369,30.11.2022,ADULT SOCIAL CARE,ACEPAY LTD (COTTAGE NUR HOME),22/11/2022," 1,754.46 ",6541-Nursing,THIRD PARTY PAYMENTS,PRIVATE CONTRACTOR,REVENUE
Walsall Council,http://opendatacommunities.org/id/metropolitan-district-council/walsall ,WC144-370,30.11.2022,ADULT SOCIAL CARE,ACEPAY LTD (COTTAGE NUR HOME),22/11/2022," 2,763.80 ",6541-Nursing EMI,THIRD PARTY PAYMENTS,PRIVATE CONTRACTOR,REVENUE
Walsall Council,http://opendatacommunities.org/id/metropolitan-district-council/walsall ,WC144-371,30.11.2022,ADULT SOCIAL CARE,ACEPAY LTD (COTTAGE NUR HOME),22/11/2022," 2,456.24 ",6541-Nursing,THIRD PARTY PAYMENTS,PRIVATE CONTRACTOR,REVENUE
Walsall Council,http://opendatacommunities.org/id/metropolitan-district-council/walsall ,WC144-372,30.11.2022,ADULT SOCIAL CARE,ACEPAY LTD (COTTAGE NUR HOME),22/11/2022," 2,456.24 ",6541-Nursing,THIRD PARTY PAYMENTS,PRIVATE CONTRACTOR,REVENUE
Walsall Council,http://opendatacommunities.org/id/metropolitan-district-council/walsall ,WC144-373,30.11.2022,ADULT SOCIAL CARE,ACEPAY LTD (COTTAGE NUR HOME),22/11/2022," 2,656.24 ",6541-Nursing,THIRD PARTY PAYMENTS,PRIVATE CONTRACTOR,REVENUE
Walsall Council,http://opendatacommunities.org/id/metropolitan-district-council/walsall ,WC144-374,30.11.2022,ADULT SOCIAL CARE,ACEPAY LTD (COTTAGE NUR HOME),22/11/2022, 845.01 ,6541-Residential EMI,THIRD PARTY PAYMENTS,PRIVATE CONTRACTOR,REVENUE
Walsall Council,http://opendatacommunities.org/id/metropolitan-district-council/walsall ,WC144-375,30.11.2022,ADULT SOCIAL CARE,ACEPAY LTD (COTTAGE NUR HOME),22/11/2022," 2,467.68 ",6541-Nursing EMI,THIRD PARTY PAYMENTS,PRIVATE CONTRACTOR,REVENUE
Walsall Council,http://opendatacommunities.org/id/metropolitan-district-council/walsall ,WC144-376,30.11.2022,ADULT SOCIAL CARE,ACEPAY LTD (COTTAGE NUR HOME),22/11/2022," 2,456.24 ",6541-Nursing,THIRD PARTY PAYMENTS,PRIVATE CONTRACTOR,REVENUE
Walsall Council,http://opendatacommunities.org/id/metropolitan-district-council/walsall ,WC144-377,30.11.2022,ADULT SOCIAL CARE,ACEPAY LTD (COTTAGE NUR HOME),22/11/2022," 1,690.03 ",6541-Residential EMI,THIRD PARTY PAYMENTS,PRIVATE CONTRACTOR,REVENUE
Walsall Council,http://opendatacommunities.org/id/metropolitan-district-council/walsall ,WC144-378,30.11.2022,ADULT SOCIAL CARE,ACEPAY LTD (COTTAGE NUR HOME),22/11/2022," 2,763.80 ",6541-Nursing EMI,THIRD PARTY PAYMENTS,PRIVATE CONTRACTOR,REVENUE
Walsall Council,http://opendatacommunities.org/id/metropolitan-district-council/walsall ,WC144-379,30.11.2022,ADULT SOCIAL CARE,ACHIEVE TOGETHER LIMITED,22/11/2022," 6,162.41 ",6541-Residential,THIRD PARTY PAYMENTS,PRIVATE CONTRACTOR,REVENUE
Walsall Council,http://opendatacommunities.org/id/metropolitan-district-council/walsall ,WC144-380,30.11.2022,ADULT SOCIAL CARE,ACHIEVE TOGETHER LIMITED,22/11/2022," 3,852.80 ",6541-Residential,THIRD PARTY PAYMENTS,PRIVATE CONTRACTOR,REVENUE
Walsall Council,http://opendatacommunities.org/id/metropolitan-district-council/walsall ,WC144-381,30.11.2022,ADULT SOCIAL CARE,ACHIEVE TOGETHER LIMITED,22/11/2022," 4,920.72 ",6541-Residential,THIRD PARTY PAYMENTS,PRIVATE CONTRACTOR,REVENUE
Walsall Council,http://opendatacommunities.org/id/metropolitan-district-council/walsall ,WC144-382,30.11.2022,ADULT SOCIAL CARE,ACHIEVE TOGETHER LIMITED,22/11/2022," 5,506.08 ",6541-Residential,THIRD PARTY PAYMENTS,PRIVATE CONTRACTOR,REVENUE
Walsall Council,http://opendatacommunities.org/id/metropolitan-district-council/walsall ,WC144-383,30.11.2022,ADULT SOCIAL CARE,ACHIEVE TOGETHER LIMITED,22/11/2022," 5,740.84 ",6541-Residential,THIRD PARTY PAYMENTS,PRIVATE CONTRACTOR,REVENUE
Walsall Council,http://opendatacommunities.org/id/metropolitan-district-council/walsall ,WC144-384,30.11.2022,CHILDRENS,ACIRE CARE LTD,07/11/2022," 8,635.71 ",6223-Accommodation and Related Costs-Assistance to S/S Clients,TRANSFER PAYMENTS,ADULT SOCIAL SERVICES CLIENT,REVENUE
Walsall Council,http://opendatacommunities.org/id/metropolitan-district-council/walsall ,WC144-385,30.11.2022,CHILDRENS,ACORN CARE & EDUCATION LTD (SALES),29/11/2022," 21,802.86 ",6223-External Residential Care-Oth Agency Provision,THIRD PARTY PAYMENTS,PRIVATE CONTRACTOR,REVENUE
Walsall Council,http://opendatacommunities.org/id/metropolitan-district-council/walsall ,WC144-386,30.11.2022,CHILDRENS,ACORN CARE & EDUCATION LTD (SALES),01/11/2022," 15,755.19 ",1220-Top Up Funding -Grants to Schools,SUPPLIES & SERVICES,GRANTS (EXP) & SUBSCRIPTIONS,REVENUE
Walsall Council,http://opendatacommunities.org/id/metropolitan-district-council/walsall ,WC144-387,30.11.2022,CHILDRENS,ACORN CARE & EDUCATION LTD (SALES),03/11/2022,"-74,115.00 ",1220-Top Up Funding -Grants to Schools,SUPPLIES & SERVICES,GRANTS (EXP) & SUBSCRIPTIONS,REVENUE
Walsall Council,http://opendatacommunities.org/id/metropolitan-district-council/walsall ,WC144-388,30.11.2022,CHILDRENS,ACORN CARE & EDUCATION LTD (SALES),03/11/2022," 19,237.50 ",1220-Top Up Funding -Grants to Schools,SUPPLIES & SERVICES,GRANTS (EXP) & SUBSCRIPTIONS,REVENUE
Walsall Council,http://opendatacommunities.org/id/metropolitan-district-council/walsall ,WC144-389,30.11.2022,CHILDRENS,ACORN CARE & EDUCATION LTD (SALES),03/11/2022," 74,115.00 ",1220-Top Up Funding -Grants to Schools,SUPPLIES & SERVICES,GRANTS (EXP) & SUBSCRIPTIONS,REVENUE
Walsall Council,http://opendatacommunities.org/id/metropolitan-district-council/walsall ,WC144-390,30.11.2022,CHILDRENS,ACORN CARE & EDUCATION LTD (SALES),07/11/2022," 6,389.17 ",1220-Professional Fees & Services,SUPPLIES & SERVICES,SERVICES,REVENUE
Walsall Council,http://opendatacommunities.org/id/metropolitan-district-council/walsall ,WC144-391,30.11.2022,CHILDRENS,ACORN CARE & EDUCATION LTD (SALES),18/11/2022," 19,815.81 ",1220-Top Up Funding -Grants to Schools,SUPPLIES & SERVICES,GRANTS (EXP) & SUBSCRIPTIONS,REVENUE
Walsall Council,http://opendatacommunities.org/id/metropolitan-district-council/walsall ,WC144-392,30.11.2022,CHILDRENS,ACORN CARE & EDUCATION LTD (SALES),30/11/2022," 6,389.17 ",1220-Professional Fees & Services,SUPPLIES & SERVICES,SERVICES,REVENUE
Walsall Council,http://opendatacommunities.org/id/metropolitan-district-council/walsall ,WC144-393,30.11.2022,CHILDRENS,ACORN FOSTERING SERVICES LTD,29/11/2022," 3,340.00 ",6223-Independent Foster Care-Oth Agency Provision,THIRD PARTY PAYMENTS,PRIVATE CONTRACTOR,REVENUE
Walsall Council,http://opendatacommunities.org/id/metropolitan-district-council/walsall ,WC144-394,30.11.2022,CHILDRENS,ACORNS CHILDRENS HOSPICE TRUST,09/11/2022, 850.00 ,6220-Professional Fees & Services,SUPPLIES & SERVICES,SERVICES,REVENUE
Walsall Council,http://opendatacommunities.org/id/metropolitan-district-council/walsall ,WC144-395,30.11.2022,CHILDRENS,ACORNS CHILDRENS HOSPICE TRUST,09/11/2022," 1,700.00 ",6220-Professional Fees & Services,SUPPLIES & SERVICES,SERVICES,REVENUE
Walsall Council,http://opendatacommunities.org/id/metropolitan-district-council/walsall ,WC144-396,30.11.2022,"ECONOMY, ENVIRONMENT & COMMUNITIES",ACTION GRAPHICS & DISPLAY LTD,03/11/2022,-531.90 ,6414-Outwork Print & Design,SUPPLIES & SERVICES,PRINTING STATIONERY & GENERAL OFFICE,REVENUE
Walsall Council,http://opendatacommunities.org/id/metropolitan-district-council/walsall ,WC144-397,30.11.2022,"ECONOMY, ENVIRONMENT & COMMUNITIES",ACTION GRAPHICS & DISPLAY LTD,03/11/2022, 531.90 ,6414-Outwork Print & Design,SUPPLIES & SERVICES,PRINTING STATIONERY & GENERAL OFFICE,REVENUE
Walsall Council,http://opendatacommunities.org/id/metropolitan-district-council/walsall ,WC144-398,30.11.2022,"ECONOMY, ENVIRONMENT & COMMUNITIES",ACTION GRAPHICS & DISPLAY LTD,23/11/2022," 1,039.90 ",6414-Outwork Print & Design,SUPPLIES & SERVICES,PRINTING STATIONERY & GENERAL OFFICE,REVENUE
Walsall Council,http://opendatacommunities.org/id/metropolitan-district-council/walsall ,WC144-399,30.11.2022,CHILDRENS,ACTIVE CARE SOLUTIONS LTD,29/11/2022," 3,445.08 ",6223-Independent Foster Care-Oth Agency Provision,THIRD PARTY PAYMENTS,PRIVATE CONTRACTOR,REVENUE
Walsall Council,http://opendatacommunities.org/id/metropolitan-district-council/walsall ,WC144-400,30.11.2022,ADULT SOCIAL CARE,REDACTED,03/11/2022, 733.28 ,6541-Direct Payment,THIRD PARTY PAYMENTS,PRIVATE CONTRACTOR,REVENUE
Walsall Council,http://opendatacommunities.org/id/metropolitan-district-council/walsall ,WC144-401,30.11.2022,CHILDRENS,ADAMS TOURS LTD,04/11/2022, 295.00 ,6241-Hire of Vehicle with Driver,TRANSPORT,DIRECT TRANSPORT COSTS,REVENUE
Walsall Council,http://opendatacommunities.org/id/metropolitan-district-council/walsall ,WC144-402,30.11.2022,CHILDRENS,ADE MARSH PHOTOGRAPHY,29/11/2022, 350.00 ,6221-Conference Expenses,SUPPLIES & SERVICES,EXPENSES,REVENUE
Walsall Council,http://opendatacommunities.org/id/metropolitan-district-council/walsall ,WC144-403,30.11.2022,CHILDRENS,REDACTED,17/11/2022, 337.12 ,6223-Residents Orders,TRANSFER PAYMENTS,CHILDREN SOCIAL SERVICES CLIENT,REVENUE
Walsall Council,http://opendatacommunities.org/id/metropolitan-district-council/walsall ,WC144-404,30.11.2022,ADULT SOCIAL CARE,ADVANCE HEALTH CARE (UK) LTD,17/11/2022," 1,566.83 ",6541-Domiciliary Care,THIRD PARTY PAYMENTS,PRIVATE CONTRACTOR,REVENUE
Walsall Council,http://opendatacommunities.org/id/metropolitan-district-council/walsall ,WC144-405,30.11.2022,ADULT SOCIAL CARE,ADVANCE HEALTH CARE (UK) LTD,17/11/2022," 1,048.56 ",6541-Domiciliary Care,THIRD PARTY PAYMENTS,PRIVATE CONTRACTOR,REVENUE
Walsall Council,http://opendatacommunities.org/id/metropolitan-district-council/walsall ,WC144-406,30.11.2022,ADULT SOCIAL CARE,ADVANCE HEALTH CARE (UK) LTD,17/11/2022, 927.01 ,6541-Domiciliary Care,THIRD PARTY PAYMENTS,PRIVATE CONTRACTOR,REVENUE
Walsall Council,http://opendatacommunities.org/id/metropolitan-district-council/walsall ,WC144-407,30.11.2022,ADULT SOCIAL CARE,ADVANCE HEALTH CARE (UK) LTD,17/11/2022," 1,032.85 ",6541-Domiciliary Care,THIRD PARTY PAYMENTS,PRIVATE CONTRACTOR,REVENUE
Walsall Council,http://opendatacommunities.org/id/metropolitan-district-council/walsall ,WC144-408,30.11.2022,ADULT SOCIAL CARE,ADVANCE HEALTH CARE (UK) LTD,17/11/2022, 778.89 ,6541-Domiciliary Care,THIRD PARTY PAYMENTS,PRIVATE CONTRACTOR,REVENUE
Walsall Council,http://opendatacommunities.org/id/metropolitan-district-council/walsall ,WC144-409,30.11.2022,ADULT SOCIAL CARE,ADVANCE HEALTH CARE (UK) LTD,17/11/2022," 2,002.14 ",6541-Domiciliary Care,THIRD PARTY PAYMENTS,PRIVATE CONTRACTOR,REVENUE
Walsall Council,http://opendatacommunities.org/id/metropolitan-district-council/walsall ,WC144-410,30.11.2022,ADULT SOCIAL CARE,ADVANCE HEALTH CARE (UK) LTD,17/11/2022, 741.72 ,6541-Domiciliary Care,THIRD PARTY PAYMENTS,PRIVATE CONTRACTOR,REVENUE
Walsall Council,http://opendatacommunities.org/id/metropolitan-district-council/walsall ,WC144-411,30.11.2022,ADULT SOCIAL CARE,ADVANCE HEALTH CARE (UK) LTD,17/11/2022," 1,064.63 ",6541-Domiciliary Care,THIRD PARTY PAYMENTS,PRIVATE CONTRACTOR,REVENUE
Walsall Council,http://opendatacommunities.org/id/metropolitan-district-council/walsall ,WC144-412,30.11.2022,ADULT SOCIAL CARE,ADVANCE HEALTH CARE (UK) LTD,17/11/2022, 482.09 ,6541-Domiciliary Care,THIRD PARTY PAYMENTS,PRIVATE CONTRACTOR,REVENUE
Walsall Council,http://opendatacommunities.org/id/metropolitan-district-council/walsall ,WC144-413,30.11.2022,ADULT SOCIAL CARE,ADVANCE HEALTH CARE (UK) LTD,17/11/2022," 1,443.56 ",6541-Domiciliary Care,THIRD PARTY PAYMENTS,PRIVATE CONTRACTOR,REVENUE
Walsall Council,http://opendatacommunities.org/id/metropolitan-district-council/walsall ,WC144-414,30.11.2022,ADULT SOCIAL CARE,ADVANCE HEALTH CARE (UK) LTD,17/11/2022, 694.05 ,6541-Domiciliary Care,THIRD PARTY PAYMENTS,PRIVATE CONTRACTOR,REVENUE
Walsall Council,http://opendatacommunities.org/id/metropolitan-district-council/walsall ,WC144-415,30.11.2022,ADULT SOCIAL CARE,ADVANCE HEALTH CARE (UK) LTD,08/11/2022, 589.84 ,6541-Domiciliary Care,THIRD PARTY PAYMENTS,PRIVATE CONTRACTOR,REVENUE
Walsall Council,http://opendatacommunities.org/id/metropolitan-district-council/walsall ,WC144-416,30.11.2022,ADULT SOCIAL CARE,ADVANCE HEALTH CARE (UK) LTD,08/11/2022, 377.16 ,6541-Domiciliary Care,THIRD PARTY PAYMENTS,PRIVATE CONTRACTOR,REVENUE
Walsall Council,http://opendatacommunities.org/id/metropolitan-district-council/walsall ,WC144-417,30.11.2022,ADULT SOCIAL CARE,ADVANCE HEALTH CARE (UK) LTD,08/11/2022, 339.50 ,6541-Domiciliary Care,THIRD PARTY PAYMENTS,PRIVATE CONTRACTOR,REVENUE
Walsall Council,http://opendatacommunities.org/id/metropolitan-district-council/walsall ,WC144-418,30.11.2022,ADULT SOCIAL CARE,ADVANCE HEALTH CARE (UK) LTD,08/11/2022, 509.04 ,6541-Domiciliary Care,THIRD PARTY PAYMENTS,PRIVATE CONTRACTOR,REVENUE
Walsall Council,http://opendatacommunities.org/id/metropolitan-district-council/walsall ,WC144-419,30.11.2022,ADULT SOCIAL CARE,ADVANCE HEALTH CARE (UK) LTD,08/11/2022, 509.04 ,6541-Domiciliary Care,THIRD PARTY PAYMENTS,PRIVATE CONTRACTOR,REVENUE
Walsall Council,http://opendatacommunities.org/id/metropolitan-district-council/walsall ,WC144-420,30.11.2022,ADULT SOCIAL CARE,ADVANCE HEALTH CARE (UK) LTD,08/11/2022, 509.04 ,6541-Domiciliary Care,THIRD PARTY PAYMENTS,PRIVATE CONTRACTOR,REVENUE
Walsall Council,http://opendatacommunities.org/id/metropolitan-district-council/walsall ,WC144-421,30.11.2022,ADULT SOCIAL CARE,ADVANCE HEALTH CARE (UK) LTD,08/11/2022, 500.96 ,6541-Domiciliary Care,THIRD PARTY PAYMENTS,PRIVATE CONTRACTOR,REVENUE
Walsall Council,http://opendatacommunities.org/id/metropolitan-district-council/walsall ,WC144-422,30.11.2022,ADULT SOCIAL CARE,ADVANCE HEALTH CARE (UK) LTD,08/11/2022, 254.52 ,6541-Domiciliary Care,THIRD PARTY PAYMENTS,PRIVATE CONTRACTOR,REVENUE
Walsall Council,http://opendatacommunities.org/id/metropolitan-district-council/walsall ,WC144-423,30.11.2022,ADULT SOCIAL CARE,ADVANCE HEALTH CARE (UK) LTD,08/11/2022, 339.36 ,6541-Domiciliary Care,THIRD PARTY PAYMENTS,PRIVATE CONTRACTOR,REVENUE
Walsall Council,http://opendatacommunities.org/id/metropolitan-district-council/walsall ,WC144-424,30.11.2022,ADULT SOCIAL CARE,ADVANCE HEALTH CARE (UK) LTD,08/11/2022, 339.50 ,6541-Domiciliary Care,THIRD PARTY PAYMENTS,PRIVATE CONTRACTOR,REVENUE
Walsall Council,http://opendatacommunities.org/id/metropolitan-district-council/walsall ,WC144-425,30.11.2022,ADULT SOCIAL CARE,ADVANCE HEALTH CARE (UK) LTD,08/11/2022, 509.04 ,6541-Domiciliary Care,THIRD PARTY PAYMENTS,PRIVATE CONTRACTOR,REVENUE
Walsall Council,http://opendatacommunities.org/id/metropolitan-district-council/walsall ,WC144-426,30.11.2022,ADULT SOCIAL CARE,ADVANCE HEALTH CARE (UK) LTD,08/11/2022, 565.60 ,6541-Domiciliary Care,THIRD PARTY PAYMENTS,PRIVATE CONTRACTOR,REVENUE
Walsall Council,http://opendatacommunities.org/id/metropolitan-district-council/walsall ,WC144-427,30.11.2022,ADULT SOCIAL CARE,ADVANCE HEALTH CARE (UK) LTD,08/11/2022, 565.60 ,6541-Domiciliary Care,THIRD PARTY PAYMENTS,PRIVATE CONTRACTOR,REVENUE
Walsall Council,http://opendatacommunities.org/id/metropolitan-district-council/walsall ,WC144-428,30.11.2022,ADULT SOCIAL CARE,ADVANCE HEALTH CARE (UK) LTD,08/11/2022,-276.50 ,6541-Domiciliary Care,THIRD PARTY PAYMENTS,PRIVATE CONTRACTOR,REVENUE
Walsall Council,http://opendatacommunities.org/id/metropolitan-district-council/walsall ,WC144-429,30.11.2022,ADULT SOCIAL CARE,ADVANCE HEALTH CARE (UK) LTD,08/11/2022, 904.96 ,6541-Domiciliary Care,THIRD PARTY PAYMENTS,PRIVATE CONTRACTOR,REVENUE
Walsall Council,http://opendatacommunities.org/id/metropolitan-district-council/walsall ,WC144-430,30.11.2022,ADULT SOCIAL CARE,ADVANCE HEALTH CARE (UK) LTD,08/11/2022, 254.52 ,6541-Domiciliary Care,THIRD PARTY PAYMENTS,PRIVATE CONTRACTOR,REVENUE
Walsall Council,http://opendatacommunities.org/id/metropolitan-district-council/walsall ,WC144-431,30.11.2022,ADULT SOCIAL CARE,ADVANCE HEALTH CARE (UK) LTD,08/11/2022, 254.52 ,6541-Domiciliary Care,THIRD PARTY PAYMENTS,PRIVATE CONTRACTOR,REVENUE
Walsall Council,http://opendatacommunities.org/id/metropolitan-district-council/walsall ,WC144-432,30.11.2022,ADULT SOCIAL CARE,ADVANCE HEALTH CARE (UK) LTD,08/11/2022, 509.04 ,6541-Domiciliary Care,THIRD PARTY PAYMENTS,PRIVATE CONTRACTOR,REVENUE
Walsall Council,http://opendatacommunities.org/id/metropolitan-district-council/walsall ,WC144-433,30.11.2022,ADULT SOCIAL CARE,ADVANCE HEALTH CARE (UK) LTD,08/11/2022, 264.84 ,6541-Domiciliary Care,THIRD PARTY PAYMENTS,PRIVATE CONTRACTOR,REVENUE
Walsall Council,http://opendatacommunities.org/id/metropolitan-district-council/walsall ,WC144-434,30.11.2022,ADULT SOCIAL CARE,ADVANCE HEALTH CARE (UK) LTD,08/11/2022, 452.48 ,6541-Domiciliary Care,THIRD PARTY PAYMENTS,PRIVATE CONTRACTOR,REVENUE
Walsall Council,http://opendatacommunities.org/id/metropolitan-district-council/walsall ,WC144-435,30.11.2022,ADULT SOCIAL CARE,ADVANCE HEALTH CARE (UK) LTD,08/11/2022, 452.48 ,6541-Domiciliary Care,THIRD PARTY PAYMENTS,PRIVATE CONTRACTOR,REVENUE
Walsall Council,http://opendatacommunities.org/id/metropolitan-district-council/walsall ,WC144-436,30.11.2022,ADULT SOCIAL CARE,ADVANCE HEALTH CARE (UK) LTD,08/11/2022, 509.04 ,6541-Domiciliary Care,THIRD PARTY PAYMENTS,PRIVATE CONTRACTOR,REVENUE
Walsall Council,http://opendatacommunities.org/id/metropolitan-district-council/walsall ,WC144-437,30.11.2022,ADULT SOCIAL CARE,ADVANCE HEALTH CARE (UK) LTD,08/11/2022, 509.04 ,6541-Domiciliary Care,THIRD PARTY PAYMENTS,PRIVATE CONTRACTOR,REVENUE
Walsall Council,http://opendatacommunities.org/id/metropolitan-district-council/walsall ,WC144-438,30.11.2022,ADULT SOCIAL CARE,ADVANCE HEALTH CARE (UK) LTD,08/11/2022, 254.52 ,6541-Domiciliary Care,THIRD PARTY PAYMENTS,PRIVATE CONTRACTOR,REVENUE
Walsall Council,http://opendatacommunities.org/id/metropolitan-district-council/walsall ,WC144-439,30.11.2022,ADULT SOCIAL CARE,ADVANCE HEALTH CARE (UK) LTD,08/11/2022, 565.60 ,6541-Domiciliary Care,THIRD PARTY PAYMENTS,PRIVATE CONTRACTOR,REVENUE
Walsall Council,http://opendatacommunities.org/id/metropolitan-district-council/walsall ,WC144-440,30.11.2022,ADULT SOCIAL CARE,ADVANCE HEALTH CARE (UK) LTD,08/11/2022, 509.04 ,6541-Domiciliary Care,THIRD PARTY PAYMENTS,PRIVATE CONTRACTOR,REVENUE
Walsall Council,http://opendatacommunities.org/id/metropolitan-district-council/walsall ,WC144-441,30.11.2022,ADULT SOCIAL CARE,ADVANCE HEALTH CARE (UK) LTD,08/11/2022, 864.56 ,6541-Domiciliary Care,THIRD PARTY PAYMENTS,PRIVATE CONTRACTOR,REVENUE
Walsall Council,http://opendatacommunities.org/id/metropolitan-district-council/walsall ,WC144-442,30.11.2022,ADULT SOCIAL CARE,ADVANCE HEALTH CARE (UK) LTD,08/11/2022, 396.06 ,6541-Domiciliary Care,THIRD PARTY PAYMENTS,PRIVATE CONTRACTOR,REVENUE
Walsall Council,http://opendatacommunities.org/id/metropolitan-district-council/walsall ,WC144-443,30.11.2022,ADULT SOCIAL CARE,ADVANCE HEALTH CARE (UK) LTD,08/11/2022, 509.04 ,6541-Domiciliary Care,THIRD PARTY PAYMENTS,PRIVATE CONTRACTOR,REVENUE
Walsall Council,http://opendatacommunities.org/id/metropolitan-district-council/walsall ,WC144-444,30.11.2022,ADULT SOCIAL CARE,ADVANCE HEALTH CARE (UK) LTD,08/11/2022, 395.92 ,6541-Domiciliary Care,THIRD PARTY PAYMENTS,PRIVATE CONTRACTOR,REVENUE
Walsall Council,http://opendatacommunities.org/id/metropolitan-district-council/walsall ,WC144-445,30.11.2022,ADULT SOCIAL CARE,ADVANCE HEALTH CARE (UK) LTD,08/11/2022, 339.36 ,6541-Domiciliary Care,THIRD PARTY PAYMENTS,PRIVATE CONTRACTOR,REVENUE
Walsall Council,http://opendatacommunities.org/id/metropolitan-district-council/walsall ,WC144-446,30.11.2022,ADULT SOCIAL CARE,ADVANCE HEALTH CARE (UK) LTD,08/11/2022, 565.60 ,6541-Domiciliary Care,THIRD PARTY PAYMENTS,PRIVATE CONTRACTOR,REVENUE
Walsall Council,http://opendatacommunities.org/id/metropolitan-district-council/walsall ,WC144-447,30.11.2022,ADULT SOCIAL CARE,ADVANCE HEALTH CARE (UK) LTD,08/11/2022, 509.04 ,6541-Domiciliary Care,THIRD PARTY PAYMENTS,PRIVATE CONTRACTOR,REVENUE
Walsall Council,http://opendatacommunities.org/id/metropolitan-district-council/walsall ,WC144-448,30.11.2022,ADULT SOCIAL CARE,ADVANCE HEALTH CARE (UK) LTD,08/11/2022, 339.36 ,6541-Domiciliary Care,THIRD PARTY PAYMENTS,PRIVATE CONTRACTOR,REVENUE
Walsall Council,http://opendatacommunities.org/id/metropolitan-district-council/walsall ,WC144-449,30.11.2022,ADULT SOCIAL CARE,ADVANCE HEALTH CARE (UK) LTD,08/11/2022, 509.04 ,6541-Domiciliary Care,THIRD PARTY PAYMENTS,PRIVATE CONTRACTOR,REVENUE
Walsall Council,http://opendatacommunities.org/id/metropolitan-district-council/walsall ,WC144-450,30.11.2022,ADULT SOCIAL CARE,ADVANCE HEALTH CARE (UK) LTD,08/11/2022, 864.56 ,6541-Domiciliary Care,THIRD PARTY PAYMENTS,PRIVATE CONTRACTOR,REVENUE
Walsall Council,http://opendatacommunities.org/id/metropolitan-district-council/walsall ,WC144-451,30.11.2022,ADULT SOCIAL CARE,ADVANCE HEALTH CARE (UK) LTD,08/11/2022, 396.06 ,6541-Domiciliary Care,THIRD PARTY PAYMENTS,PRIVATE CONTRACTOR,REVENUE
Walsall Council,http://opendatacommunities.org/id/metropolitan-district-council/walsall ,WC144-452,30.11.2022,ADULT SOCIAL CARE,ADVANCE HEALTH CARE (UK) LTD,08/11/2022, 254.52 ,6541-Domiciliary Care,THIRD PARTY PAYMENTS,PRIVATE CONTRACTOR,REVENUE
Walsall Council,http://opendatacommunities.org/id/metropolitan-district-council/walsall ,WC144-453,30.11.2022,ADULT SOCIAL CARE,ADVANCE HEALTH CARE (UK) LTD,08/11/2022, 509.04 ,6541-Domiciliary Care,THIRD PARTY PAYMENTS,PRIVATE CONTRACTOR,REVENUE
Walsall Council,http://opendatacommunities.org/id/metropolitan-district-council/walsall ,WC144-454,30.11.2022,ADULT SOCIAL CARE,ADVANCE HEALTH CARE (UK) LTD,08/11/2022, 509.04 ,6541-Domiciliary Care,THIRD PARTY PAYMENTS,PRIVATE CONTRACTOR,REVENUE
Walsall Council,http://opendatacommunities.org/id/metropolitan-district-council/walsall ,WC144-455,30.11.2022,ADULT SOCIAL CARE,ADVANCE HEALTH CARE (UK) LTD,08/11/2022, 500.96 ,6541-Domiciliary Care,THIRD PARTY PAYMENTS,PRIVATE CONTRACTOR,REVENUE
Walsall Council,http://opendatacommunities.org/id/metropolitan-district-council/walsall ,WC144-456,30.11.2022,ADULT SOCIAL CARE,ADVANCE HEALTH CARE (UK) LTD,08/11/2022, 589.84 ,6541-Domiciliary Care,THIRD PARTY PAYMENTS,PRIVATE CONTRACTOR,REVENUE
Walsall Council,http://opendatacommunities.org/id/metropolitan-district-council/walsall ,WC144-457,30.11.2022,ADULT SOCIAL CARE,ADVANCE HEALTH CARE (UK) LTD,08/11/2022, 377.16 ,6541-Domiciliary Care,THIRD PARTY PAYMENTS,PRIVATE CONTRACTOR,REVENUE
Walsall Council,http://opendatacommunities.org/id/metropolitan-district-council/walsall ,WC144-458,30.11.2022,ADULT SOCIAL CARE,ADVANCE HEALTH CARE (UK) LTD,08/11/2022, 339.36 ,6541-Domiciliary Care,THIRD PARTY PAYMENTS,PRIVATE CONTRACTOR,REVENUE
Walsall Council,http://opendatacommunities.org/id/metropolitan-district-council/walsall ,WC144-459,30.11.2022,ADULT SOCIAL CARE,ADVANCE HEALTH CARE (UK) LTD,08/11/2022, 339.50 ,6541-Domiciliary Care,THIRD PARTY PAYMENTS,PRIVATE CONTRACTOR,REVENUE
Walsall Council,http://opendatacommunities.org/id/metropolitan-district-council/walsall ,WC144-460,30.11.2022,ADULT SOCIAL CARE,ADVANCE HEALTH CARE (UK) LTD,08/11/2022, 509.04 ,6541-Domiciliary Care,THIRD PARTY PAYMENTS,PRIVATE CONTRACTOR,REVENUE
Walsall Council,http://opendatacommunities.org/id/metropolitan-district-council/walsall ,WC144-461,30.11.2022,ADULT SOCIAL CARE,ADVANCE HEALTH CARE (UK) LTD,08/11/2022, 509.04 ,6541-Domiciliary Care,THIRD PARTY PAYMENTS,PRIVATE CONTRACTOR,REVENUE
Walsall Council,http://opendatacommunities.org/id/metropolitan-district-council/walsall ,WC144-462,30.11.2022,ADULT SOCIAL CARE,ADVANCE HEALTH CARE (UK) LTD,08/11/2022, 254.52 ,6541-Domiciliary Care,THIRD PARTY PAYMENTS,PRIVATE CONTRACTOR,REVENUE
Walsall Council,http://opendatacommunities.org/id/metropolitan-district-council/walsall ,WC144-463,30.11.2022,ADULT SOCIAL CARE,ADVANCE HEALTH CARE (UK) LTD,08/11/2022, 565.60 ,6541-Domiciliary Care,THIRD PARTY PAYMENTS,PRIVATE CONTRACTOR,REVENUE
Walsall Council,http://opendatacommunities.org/id/metropolitan-district-council/walsall ,WC144-464,30.11.2022,ADULT SOCIAL CARE,ADVANCE HEALTH CARE (UK) LTD,08/11/2022, 339.50 ,6541-Domiciliary Care,THIRD PARTY PAYMENTS,PRIVATE CONTRACTOR,REVENUE
Walsall Council,http://opendatacommunities.org/id/metropolitan-district-council/walsall ,WC144-465,30.11.2022,ADULT SOCIAL CARE,ADVANCE HEALTH CARE (UK) LTD,08/11/2022, 509.04 ,6541-Domiciliary Care,THIRD PARTY PAYMENTS,PRIVATE CONTRACTOR,REVENUE
Walsall Council,http://opendatacommunities.org/id/metropolitan-district-council/walsall ,WC144-466,30.11.2022,ADULT SOCIAL CARE,ADVANCE HEALTH CARE (UK) LTD,08/11/2022, 509.04 ,6541-Domiciliary Care,THIRD PARTY PAYMENTS,PRIVATE CONTRACTOR,REVENUE
Walsall Council,http://opendatacommunities.org/id/metropolitan-district-council/walsall ,WC144-467,30.11.2022,ADULT SOCIAL CARE,ADVANCE HEALTH CARE (UK) LTD,08/11/2022, 339.36 ,6541-Domiciliary Care,THIRD PARTY PAYMENTS,PRIVATE CONTRACTOR,REVENUE
Walsall Council,http://opendatacommunities.org/id/metropolitan-district-council/walsall ,WC144-468,30.11.2022,ADULT SOCIAL CARE,ADVANCE HEALTH CARE (UK) LTD,08/11/2022, 509.04 ,6541-Domiciliary Care,THIRD PARTY PAYMENTS,PRIVATE CONTRACTOR,REVENUE
Walsall Council,http://opendatacommunities.org/id/metropolitan-district-council/walsall ,WC144-469,30.11.2022,ADULT SOCIAL CARE,ADVANCE HEALTH CARE (UK) LTD,08/11/2022, 565.60 ,6541-Domiciliary Care,THIRD PARTY PAYMENTS,PRIVATE CONTRACTOR,REVENUE
Walsall Council,http://opendatacommunities.org/id/metropolitan-district-council/walsall ,WC144-470,30.11.2022,ADULT SOCIAL CARE,ADVANCE HEALTH CARE (UK) LTD,08/11/2022, 509.04 ,6541-Domiciliary Care,THIRD PARTY PAYMENTS,PRIVATE CONTRACTOR,REVENUE
Walsall Council,http://opendatacommunities.org/id/metropolitan-district-council/walsall ,WC144-471,30.11.2022,ADULT SOCIAL CARE,ADVANCE HEALTH CARE (UK) LTD,08/11/2022, 509.04 ,6541-Domiciliary Care,THIRD PARTY PAYMENTS,PRIVATE CONTRACTOR,REVENUE
Walsall Council,http://opendatacommunities.org/id/metropolitan-district-council/walsall ,WC144-472,30.11.2022,ADULT SOCIAL CARE,ADVANCE HEALTH CARE (UK) LTD,08/11/2022, 395.92 ,6541-Domiciliary Care,THIRD PARTY PAYMENTS,PRIVATE CONTRACTOR,REVENUE
Walsall Council,http://opendatacommunities.org/id/metropolitan-district-council/walsall ,WC144-473,30.11.2022,ADULT SOCIAL CARE,ADVANCE HEALTH CARE (UK) LTD,08/11/2022, 339.36 ,6541-Domiciliary Care,THIRD PARTY PAYMENTS,PRIVATE CONTRACTOR,REVENUE
Walsall Council,http://opendatacommunities.org/id/metropolitan-district-council/walsall ,WC144-474,30.11.2022,ADULT SOCIAL CARE,ADVANCE HEALTH CARE (UK) LTD,08/11/2022, 509.04 ,6541-Domiciliary Care,THIRD PARTY PAYMENTS,PRIVATE CONTRACTOR,REVENUE
Walsall Council,http://opendatacommunities.org/id/metropolitan-district-council/walsall ,WC144-475,30.11.2022,ADULT SOCIAL CARE,ADVANCE HEALTH CARE (UK) LTD,08/11/2022, 565.60 ,6541-Domiciliary Care,THIRD PARTY PAYMENTS,PRIVATE CONTRACTOR,REVENUE
Walsall Council,http://opendatacommunities.org/id/metropolitan-district-council/walsall ,WC144-476,30.11.2022,ADULT SOCIAL CARE,ADVANCE HEALTH CARE (UK) LTD,08/11/2022, 452.48 ,6541-Domiciliary Care,THIRD PARTY PAYMENTS,PRIVATE CONTRACTOR,REVENUE
Walsall Council,http://opendatacommunities.org/id/metropolitan-district-council/walsall ,WC144-477,30.11.2022,ADULT SOCIAL CARE,ADVANCE HEALTH CARE (UK) LTD,08/11/2022, 565.60 ,6541-Domiciliary Care,THIRD PARTY PAYMENTS,PRIVATE CONTRACTOR,REVENUE
Walsall Council,http://opendatacommunities.org/id/metropolitan-district-council/walsall ,WC144-478,30.11.2022,ADULT SOCIAL CARE,ADVANCE HEALTH CARE (UK) LTD,08/11/2022, 904.96 ,6541-Domiciliary Care,THIRD PARTY PAYMENTS,PRIVATE CONTRACTOR,REVENUE
Walsall Council,http://opendatacommunities.org/id/metropolitan-district-council/walsall ,WC144-479,30.11.2022,ADULT SOCIAL CARE,ADVANCE HEALTH CARE (UK) LTD,08/11/2022, 254.52 ,6541-Domiciliary Care,THIRD PARTY PAYMENTS,PRIVATE CONTRACTOR,REVENUE
Walsall Council,http://opendatacommunities.org/id/metropolitan-district-council/walsall ,WC144-480,30.11.2022,ADULT SOCIAL CARE,ADVANCE HEALTH CARE (UK) LTD,08/11/2022, 254.52 ,6541-Domiciliary Care,THIRD PARTY PAYMENTS,PRIVATE CONTRACTOR,REVENUE
Walsall Council,http://opendatacommunities.org/id/metropolitan-district-council/walsall ,WC144-481,30.11.2022,ADULT SOCIAL CARE,ADVANCE HEALTH CARE (UK) LTD,08/11/2022, 509.04 ,6541-Domiciliary Care,THIRD PARTY PAYMENTS,PRIVATE CONTRACTOR,REVENUE
Walsall Council,http://opendatacommunities.org/id/metropolitan-district-council/walsall ,WC144-482,30.11.2022,ADULT SOCIAL CARE,ADVANCE HEALTH CARE (UK) LTD,08/11/2022, 452.48 ,6541-Domiciliary Care,THIRD PARTY PAYMENTS,PRIVATE CONTRACTOR,REVENUE
Walsall Council,http://opendatacommunities.org/id/metropolitan-district-council/walsall ,WC144-483,30.11.2022,ADULT SOCIAL CARE,ADVANCE HEALTH CARE (UK) LTD,16/11/2022," 1,264.00 ",6554-Professional Services-Priv Contractor & Other Agencies,THIRD PARTY PAYMENTS,PRIVATE CONTRACTOR,REVENUE
Walsall Council,http://opendatacommunities.org/id/metropolitan-district-council/walsall ,WC144-484,30.11.2022,ADULT SOCIAL CARE,ADVANCE HEALTH CARE (UK) LTD,16/11/2022, 420.16 ,6554-Professional Services-Priv Contractor & Other Agencies,THIRD PARTY PAYMENTS,PRIVATE CONTRACTOR,REVENUE
Walsall Council,http://opendatacommunities.org/id/metropolitan-district-council/walsall ,WC144-485,30.11.2022,ADULT SOCIAL CARE,ADVANCE HEALTH CARE (UK) LTD,16/11/2022, 315.12 ,6554-Professional Services-Priv Contractor & Other Agencies,THIRD PARTY PAYMENTS,PRIVATE CONTRACTOR,REVENUE
Walsall Council,http://opendatacommunities.org/id/metropolitan-district-council/walsall ,WC144-486,30.11.2022,ADULT SOCIAL CARE,ADVANCE HEALTH CARE (UK) LTD,16/11/2022," 1,678.24 ",6554-Professional Services-Priv Contractor & Other Agencies,THIRD PARTY PAYMENTS,PRIVATE CONTRACTOR,REVENUE
Walsall Council,http://opendatacommunities.org/id/metropolitan-district-council/walsall ,WC144-487,30.11.2022,ADULT SOCIAL CARE,ADVANCE HEALTH CARE (UK) LTD,16/11/2022, 774.20 ,6554-Professional Services-Priv Contractor & Other Agencies,THIRD PARTY PAYMENTS,PRIVATE CONTRACTOR,REVENUE
Walsall Council,http://opendatacommunities.org/id/metropolitan-district-council/walsall ,WC144-488,30.11.2022,ADULT SOCIAL CARE,ADVANCE HEALTH CARE (UK) LTD,16/11/2022," 1,058.60 ",6554-Professional Services-Priv Contractor & Other Agencies,THIRD PARTY PAYMENTS,PRIVATE CONTRACTOR,REVENUE
Walsall Council,http://opendatacommunities.org/id/metropolitan-district-council/walsall ,WC144-489,30.11.2022,ADULT SOCIAL CARE,ADVANCE HEALTH CARE (UK) LTD,16/11/2022, 316.00 ,6554-Professional Services-Priv Contractor & Other Agencies,THIRD PARTY PAYMENTS,PRIVATE CONTRACTOR,REVENUE
Walsall Council,http://opendatacommunities.org/id/metropolitan-district-council/walsall ,WC144-490,30.11.2022,ADULT SOCIAL CARE,ADVANCE HEALTH CARE (UK) LTD,16/11/2022, 795.04 ,6554-Professional Services-Priv Contractor & Other Agencies,THIRD PARTY PAYMENTS,PRIVATE CONTRACTOR,REVENUE
Walsall Council,http://opendatacommunities.org/id/metropolitan-district-council/walsall ,WC144-491,30.11.2022,ADULT SOCIAL CARE,ADVANCE HEALTH CARE (UK) LTD,16/11/2022, 946.40 ,6554-Professional Services-Priv Contractor & Other Agencies,THIRD PARTY PAYMENTS,PRIVATE CONTRACTOR,REVENUE
Walsall Council,http://opendatacommunities.org/id/metropolitan-district-council/walsall ,WC144-492,30.11.2022,ADULT SOCIAL CARE,ADVANCE HEALTH CARE (UK) LTD,16/11/2022, 395.92 ,6554-Professional Services-Priv Contractor & Other Agencies,THIRD PARTY PAYMENTS,PRIVATE CONTRACTOR,REVENUE
Walsall Council,http://opendatacommunities.org/id/metropolitan-district-council/walsall ,WC144-493,30.11.2022,ADULT SOCIAL CARE,ADVANCE HEALTH CARE (UK) LTD,16/11/2022, 402.90 ,6554-Professional Services-Priv Contractor & Other Agencies,THIRD PARTY PAYMENTS,PRIVATE CONTRACTOR,REVENUE
Walsall Council,http://opendatacommunities.org/id/metropolitan-district-council/walsall ,WC144-494,30.11.2022,ADULT SOCIAL CARE,ADVANCE HEALTH CARE (UK) LTD,16/11/2022, 264.48 ,6554-Professional Services-Priv Contractor & Other Agencies,THIRD PARTY PAYMENTS,PRIVATE CONTRACTOR,REVENUE
Walsall Council,http://opendatacommunities.org/id/metropolitan-district-council/walsall ,WC144-495,30.11.2022,ADULT SOCIAL CARE,ADVANCE HEALTH CARE (UK) LTD,22/11/2022, 254.52 ,6541-Domiciliary Care,THIRD PARTY PAYMENTS,PRIVATE CONTRACTOR,REVENUE
Walsall Council,http://opendatacommunities.org/id/metropolitan-district-council/walsall ,WC144-496,30.11.2022,ADULT SOCIAL CARE,ADVANCE HEALTH CARE (UK) LTD,22/11/2022, 509.04 ,6541-Domiciliary Care,THIRD PARTY PAYMENTS,PRIVATE CONTRACTOR,REVENUE
Walsall Council,http://opendatacommunities.org/id/metropolitan-district-council/walsall ,WC144-497,30.11.2022,ADULT SOCIAL CARE,ADVANCE HEALTH CARE (UK) LTD,22/11/2022, 589.84 ,6541-Domiciliary Care,THIRD PARTY PAYMENTS,PRIVATE CONTRACTOR,REVENUE
Walsall Council,http://opendatacommunities.org/id/metropolitan-district-council/walsall ,WC144-498,30.11.2022,ADULT SOCIAL CARE,ADVANCE HEALTH CARE (UK) LTD,22/11/2022, 377.16 ,6541-Domiciliary Care,THIRD PARTY PAYMENTS,PRIVATE CONTRACTOR,REVENUE
Walsall Council,http://opendatacommunities.org/id/metropolitan-district-council/walsall ,WC144-499,30.11.2022,ADULT SOCIAL CARE,ADVANCE HEALTH CARE (UK) LTD,22/11/2022, 339.50 ,6541-Domiciliary Care,THIRD PARTY PAYMENTS,PRIVATE CONTRACTOR,REVENUE
Walsall Council,http://opendatacommunities.org/id/metropolitan-district-council/walsall ,WC144-500,30.11.2022,ADULT SOCIAL CARE,ADVANCE HEALTH CARE (UK) LTD,22/11/2022, 509.04 ,6541-Domiciliary Care,THIRD PARTY PAYMENTS,PRIVATE CONTRACTOR,REVENUE
Walsall Council,http://opendatacommunities.org/id/metropolitan-district-council/walsall ,WC144-501,30.11.2022,ADULT SOCIAL CARE,ADVANCE HEALTH CARE (UK) LTD,22/11/2022, 452.48 ,6541-Domiciliary Care,THIRD PARTY PAYMENTS,PRIVATE CONTRACTOR,REVENUE
Walsall Council,http://opendatacommunities.org/id/metropolitan-district-council/walsall ,WC144-502,30.11.2022,ADULT SOCIAL CARE,ADVANCE HEALTH CARE (UK) LTD,22/11/2022, 339.36 ,6541-Domiciliary Care,THIRD PARTY PAYMENTS,PRIVATE CONTRACTOR,REVENUE
Walsall Council,http://opendatacommunities.org/id/metropolitan-district-council/walsall ,WC144-503,30.11.2022,ADULT SOCIAL CARE,ADVANCE HEALTH CARE (UK) LTD,22/11/2022, 509.04 ,6541-Domiciliary Care,THIRD PARTY PAYMENTS,PRIVATE CONTRACTOR,REVENUE
Walsall Council,http://opendatacommunities.org/id/metropolitan-district-council/walsall ,WC144-504,30.11.2022,ADULT SOCIAL CARE,ADVANCE HEALTH CARE (UK) LTD,22/11/2022, 339.50 ,6541-Domiciliary Care,THIRD PARTY PAYMENTS,PRIVATE CONTRACTOR,REVENUE
Walsall Council,http://opendatacommunities.org/id/metropolitan-district-council/walsall ,WC144-505,30.11.2022,ADULT SOCIAL CARE,ADVANCE HEALTH CARE (UK) LTD,22/11/2022, 509.04 ,6541-Domiciliary Care,THIRD PARTY PAYMENTS,PRIVATE CONTRACTOR,REVENUE
Walsall Council,http://opendatacommunities.org/id/metropolitan-district-council/walsall ,WC144-506,30.11.2022,ADULT SOCIAL CARE,ADVANCE HEALTH CARE (UK) LTD,22/11/2022, 565.60 ,6541-Domiciliary Care,THIRD PARTY PAYMENTS,PRIVATE CONTRACTOR,REVENUE
Walsall Council,http://opendatacommunities.org/id/metropolitan-district-council/walsall ,WC144-507,30.11.2022,ADULT SOCIAL CARE,ADVANCE HEALTH CARE (UK) LTD,22/11/2022, 904.96 ,6541-Domiciliary Care,THIRD PARTY PAYMENTS,PRIVATE CONTRACTOR,REVENUE
Walsall Council,http://opendatacommunities.org/id/metropolitan-district-council/walsall ,WC144-508,30.11.2022,ADULT SOCIAL CARE,ADVANCE HEALTH CARE (UK) LTD,22/11/2022, 509.04 ,6541-Domiciliary Care,THIRD PARTY PAYMENTS,PRIVATE CONTRACTOR,REVENUE
Walsall Council,http://opendatacommunities.org/id/metropolitan-district-council/walsall ,WC144-509,30.11.2022,ADULT SOCIAL CARE,ADVANCE HEALTH CARE (UK) LTD,22/11/2022, 509.04 ,6541-Domiciliary Care,THIRD PARTY PAYMENTS,PRIVATE CONTRACTOR,REVENUE
Walsall Council,http://opendatacommunities.org/id/metropolitan-district-council/walsall ,WC144-510,30.11.2022,ADULT SOCIAL CARE,ADVANCE HEALTH CARE (UK) LTD,22/11/2022, 254.52 ,6541-Domiciliary Care,THIRD PARTY PAYMENTS,PRIVATE CONTRACTOR,REVENUE
Walsall Council,http://opendatacommunities.org/id/metropolitan-district-council/walsall ,WC144-511,30.11.2022,ADULT SOCIAL CARE,ADVANCE HEALTH CARE (UK) LTD,22/11/2022, 565.60 ,6541-Domiciliary Care,THIRD PARTY PAYMENTS,PRIVATE CONTRACTOR,REVENUE
Walsall Council,http://opendatacommunities.org/id/metropolitan-district-council/walsall ,WC144-512,30.11.2022,ADULT SOCIAL CARE,ADVANCE HEALTH CARE (UK) LTD,22/11/2022, 509.04 ,6541-Domiciliary Care,THIRD PARTY PAYMENTS,PRIVATE CONTRACTOR,REVENUE
Walsall Council,http://opendatacommunities.org/id/metropolitan-district-council/walsall ,WC144-513,30.11.2022,ADULT SOCIAL CARE,ADVANCE HEALTH CARE (UK) LTD,22/11/2022, 509.04 ,6541-Domiciliary Care,THIRD PARTY PAYMENTS,PRIVATE CONTRACTOR,REVENUE
Walsall Council,http://opendatacommunities.org/id/metropolitan-district-council/walsall ,WC144-514,30.11.2022,ADULT SOCIAL CARE,ADVANCE HEALTH CARE (UK) LTD,22/11/2022, 500.96 ,6541-Domiciliary Care,THIRD PARTY PAYMENTS,PRIVATE CONTRACTOR,REVENUE
Walsall Council,http://opendatacommunities.org/id/metropolitan-district-council/walsall ,WC144-515,30.11.2022,ADULT SOCIAL CARE,ADVANCE HEALTH CARE (UK) LTD,22/11/2022, 509.04 ,6541-Domiciliary Care,THIRD PARTY PAYMENTS,PRIVATE CONTRACTOR,REVENUE
Walsall Council,http://opendatacommunities.org/id/metropolitan-district-council/walsall ,WC144-516,30.11.2022,ADULT SOCIAL CARE,ADVANCE HEALTH CARE (UK) LTD,22/11/2022, 254.52 ,6541-Domiciliary Care,THIRD PARTY PAYMENTS,PRIVATE CONTRACTOR,REVENUE
Walsall Council,http://opendatacommunities.org/id/metropolitan-district-council/walsall ,WC144-517,30.11.2022,ADULT SOCIAL CARE,ADVANCE HEALTH CARE (UK) LTD,22/11/2022, 254.52 ,6541-Domiciliary Care,THIRD PARTY PAYMENTS,PRIVATE CONTRACTOR,REVENUE
Walsall Council,http://opendatacommunities.org/id/metropolitan-district-council/walsall ,WC144-518,30.11.2022,ADULT SOCIAL CARE,ADVANCE HEALTH CARE (UK) LTD,22/11/2022, 509.04 ,6541-Domiciliary Care,THIRD PARTY PAYMENTS,PRIVATE CONTRACTOR,REVENUE
Walsall Council,http://opendatacommunities.org/id/metropolitan-district-council/walsall ,WC144-519,30.11.2022,ADULT SOCIAL CARE,ADVANCE HEALTH CARE (UK) LTD,22/11/2022, 565.60 ,6541-Domiciliary Care,THIRD PARTY PAYMENTS,PRIVATE CONTRACTOR,REVENUE
Walsall Council,http://opendatacommunities.org/id/metropolitan-district-council/walsall ,WC144-520,30.11.2022,ADULT SOCIAL CARE,ADVANCE HEALTH CARE (UK) LTD,22/11/2022, 509.04 ,6541-Domiciliary Care,THIRD PARTY PAYMENTS,PRIVATE CONTRACTOR,REVENUE
Walsall Council,http://opendatacommunities.org/id/metropolitan-district-council/walsall ,WC144-521,30.11.2022,ADULT SOCIAL CARE,ADVANCE HEALTH CARE (UK) LTD,22/11/2022, 371.68 ,6541-Domiciliary Care,THIRD PARTY PAYMENTS,PRIVATE CONTRACTOR,REVENUE
Walsall Council,http://opendatacommunities.org/id/metropolitan-district-council/walsall ,WC144-522,30.11.2022,ADULT SOCIAL CARE,ADVANCE HEALTH CARE (UK) LTD,22/11/2022, 864.56 ,6541-Domiciliary Care,THIRD PARTY PAYMENTS,PRIVATE CONTRACTOR,REVENUE
Walsall Council,http://opendatacommunities.org/id/metropolitan-district-council/walsall ,WC144-523,30.11.2022,ADULT SOCIAL CARE,ADVANCE HEALTH CARE (UK) LTD,22/11/2022, 396.06 ,6541-Domiciliary Care,THIRD PARTY PAYMENTS,PRIVATE CONTRACTOR,REVENUE
Walsall Council,http://opendatacommunities.org/id/metropolitan-district-council/walsall ,WC144-524,30.11.2022,ADULT SOCIAL CARE,ADVANCE HEALTH CARE (UK) LTD,22/11/2022,-284.40 ,6541-Domiciliary Care,THIRD PARTY PAYMENTS,PRIVATE CONTRACTOR,REVENUE
Walsall Council,http://opendatacommunities.org/id/metropolitan-district-council/walsall ,WC144-525,30.11.2022,ADULT SOCIAL CARE,ADVANCE HEALTH CARE (UK) LTD,22/11/2022, 395.92 ,6541-Domiciliary Care,THIRD PARTY PAYMENTS,PRIVATE CONTRACTOR,REVENUE
Walsall Council,http://opendatacommunities.org/id/metropolitan-district-council/walsall ,WC144-526,30.11.2022,ADULT SOCIAL CARE,ADVANCE HEALTH CARE (UK) LTD,22/11/2022, 339.36 ,6541-Domiciliary Care,THIRD PARTY PAYMENTS,PRIVATE CONTRACTOR,REVENUE
Walsall Council,http://opendatacommunities.org/id/metropolitan-district-council/walsall ,WC144-527,30.11.2022,ADULT SOCIAL CARE,ADVANCE HEALTH CARE (UK) LTD,22/11/2022, 452.48 ,6541-Domiciliary Care,THIRD PARTY PAYMENTS,PRIVATE CONTRACTOR,REVENUE
Walsall Council,http://opendatacommunities.org/id/metropolitan-district-council/walsall ,WC144-528,30.11.2022,ADULT SOCIAL CARE,ADVANCE HEALTH CARE (UK) LTD,22/11/2022, 339.50 ,6541-Domiciliary Care,THIRD PARTY PAYMENTS,PRIVATE CONTRACTOR,REVENUE
Walsall Council,http://opendatacommunities.org/id/metropolitan-district-council/walsall ,WC144-529,30.11.2022,ADULT SOCIAL CARE,ADVANCE HEALTH CARE (UK) LTD,22/11/2022, 509.04 ,6541-Domiciliary Care,THIRD PARTY PAYMENTS,PRIVATE CONTRACTOR,REVENUE
Walsall Council,http://opendatacommunities.org/id/metropolitan-district-council/walsall ,WC144-530,30.11.2022,ADULT SOCIAL CARE,ADVANCE HEALTH CARE (UK) LTD,22/11/2022, 864.56 ,6541-Domiciliary Care,THIRD PARTY PAYMENTS,PRIVATE CONTRACTOR,REVENUE
Walsall Council,http://opendatacommunities.org/id/metropolitan-district-council/walsall ,WC144-531,30.11.2022,ADULT SOCIAL CARE,ADVANCE HEALTH CARE (UK) LTD,22/11/2022, 396.06 ,6541-Domiciliary Care,THIRD PARTY PAYMENTS,PRIVATE CONTRACTOR,REVENUE
Walsall Council,http://opendatacommunities.org/id/metropolitan-district-council/walsall ,WC144-532,30.11.2022,ADULT SOCIAL CARE,ADVANCE HEALTH CARE (UK) LTD,22/11/2022, 509.04 ,6541-Domiciliary Care,THIRD PARTY PAYMENTS,PRIVATE CONTRACTOR,REVENUE
Walsall Council,http://opendatacommunities.org/id/metropolitan-district-council/walsall ,WC144-533,30.11.2022,ADULT SOCIAL CARE,ADVANCE HEALTH CARE (UK) LTD,22/11/2022, 509.04 ,6541-Domiciliary Care,THIRD PARTY PAYMENTS,PRIVATE CONTRACTOR,REVENUE
Walsall Council,http://opendatacommunities.org/id/metropolitan-district-council/walsall ,WC144-534,30.11.2022,ADULT SOCIAL CARE,ADVANCE HEALTH CARE (UK) LTD,22/11/2022, 254.52 ,6541-Domiciliary Care,THIRD PARTY PAYMENTS,PRIVATE CONTRACTOR,REVENUE
Walsall Council,http://opendatacommunities.org/id/metropolitan-district-council/walsall ,WC144-535,30.11.2022,ADULT SOCIAL CARE,ADVANCE HEALTH CARE (UK) LTD,22/11/2022, 565.60 ,6541-Domiciliary Care,THIRD PARTY PAYMENTS,PRIVATE CONTRACTOR,REVENUE
Walsall Council,http://opendatacommunities.org/id/metropolitan-district-council/walsall ,WC144-536,30.11.2022,ADULT SOCIAL CARE,ADVANCE HEALTH CARE (UK) LTD,22/11/2022, 565.60 ,6541-Domiciliary Care,THIRD PARTY PAYMENTS,PRIVATE CONTRACTOR,REVENUE
Walsall Council,http://opendatacommunities.org/id/metropolitan-district-council/walsall ,WC144-537,30.11.2022,ADULT SOCIAL CARE,ADVANCE HEALTH CARE (UK) LTD,22/11/2022, 904.96 ,6541-Domiciliary Care,THIRD PARTY PAYMENTS,PRIVATE CONTRACTOR,REVENUE
Walsall Council,http://opendatacommunities.org/id/metropolitan-district-council/walsall ,WC144-538,30.11.2022,ADULT SOCIAL CARE,ADVANCE HEALTH CARE (UK) LTD,22/11/2022, 254.52 ,6541-Domiciliary Care,THIRD PARTY PAYMENTS,PRIVATE CONTRACTOR,REVENUE
Walsall Council,http://opendatacommunities.org/id/metropolitan-district-council/walsall ,WC144-539,30.11.2022,ADULT SOCIAL CARE,ADVANCE HEALTH CARE (UK) LTD,22/11/2022, 254.52 ,6541-Domiciliary Care,THIRD PARTY PAYMENTS,PRIVATE CONTRACTOR,REVENUE
Walsall Council,http://opendatacommunities.org/id/metropolitan-district-council/walsall ,WC144-540,30.11.2022,ADULT SOCIAL CARE,ADVANCE HEALTH CARE (UK) LTD,22/11/2022, 509.04 ,6541-Domiciliary Care,THIRD PARTY PAYMENTS,PRIVATE CONTRACTOR,REVENUE
Walsall Council,http://opendatacommunities.org/id/metropolitan-district-council/walsall ,WC144-541,30.11.2022,ADULT SOCIAL CARE,ADVANCE HEALTH CARE (UK) LTD,22/11/2022, 395.92 ,6541-Domiciliary Care,THIRD PARTY PAYMENTS,PRIVATE CONTRACTOR,REVENUE
Walsall Council,http://opendatacommunities.org/id/metropolitan-district-council/walsall ,WC144-542,30.11.2022,ADULT SOCIAL CARE,ADVANCE HEALTH CARE (UK) LTD,22/11/2022, 339.36 ,6541-Domiciliary Care,THIRD PARTY PAYMENTS,PRIVATE CONTRACTOR,REVENUE
Walsall Council,http://opendatacommunities.org/id/metropolitan-district-council/walsall ,WC144-543,30.11.2022,ADULT SOCIAL CARE,ADVANCE HEALTH CARE (UK) LTD,22/11/2022, 509.04 ,6541-Domiciliary Care,THIRD PARTY PAYMENTS,PRIVATE CONTRACTOR,REVENUE
Walsall Council,http://opendatacommunities.org/id/metropolitan-district-council/walsall ,WC144-544,30.11.2022,ADULT SOCIAL CARE,ADVANCE HEALTH CARE (UK) LTD,22/11/2022, 565.60 ,6541-Domiciliary Care,THIRD PARTY PAYMENTS,PRIVATE CONTRACTOR,REVENUE
Walsall Council,http://opendatacommunities.org/id/metropolitan-district-council/walsall ,WC144-545,30.11.2022,ADULT SOCIAL CARE,ADVANCE HEALTH CARE (UK) LTD,22/11/2022, 509.04 ,6541-Domiciliary Care,THIRD PARTY PAYMENTS,PRIVATE CONTRACTOR,REVENUE
Walsall Council,http://opendatacommunities.org/id/metropolitan-district-council/walsall ,WC144-546,30.11.2022,ADULT SOCIAL CARE,ADVANCE HEALTH CARE (UK) LTD,22/11/2022, 565.60 ,6541-Domiciliary Care,THIRD PARTY PAYMENTS,PRIVATE CONTRACTOR,REVENUE
Walsall Council,http://opendatacommunities.org/id/metropolitan-district-council/walsall ,WC144-547,30.11.2022,ADULT SOCIAL CARE,ADVANCE HEALTH CARE (UK) LTD,22/11/2022, 452.48 ,6541-Domiciliary Care,THIRD PARTY PAYMENTS,PRIVATE CONTRACTOR,REVENUE
Walsall Council,http://opendatacommunities.org/id/metropolitan-district-council/walsall ,WC144-548,30.11.2022,ADULT SOCIAL CARE,ADVANCE HEALTH CARE (UK) LTD,22/11/2022, 254.52 ,6541-Domiciliary Care,THIRD PARTY PAYMENTS,PRIVATE CONTRACTOR,REVENUE
Walsall Council,http://opendatacommunities.org/id/metropolitan-district-council/walsall ,WC144-549,30.11.2022,ADULT SOCIAL CARE,ADVANCE HEALTH CARE (UK) LTD,22/11/2022, 452.48 ,6541-Domiciliary Care,THIRD PARTY PAYMENTS,PRIVATE CONTRACTOR,REVENUE
Walsall Council,http://opendatacommunities.org/id/metropolitan-district-council/walsall ,WC144-550,30.11.2022,ADULT SOCIAL CARE,ADVANCE HEALTH CARE (UK) LTD,22/11/2022, 509.04 ,6541-Domiciliary Care,THIRD PARTY PAYMENTS,PRIVATE CONTRACTOR,REVENUE
Walsall Council,http://opendatacommunities.org/id/metropolitan-district-council/walsall ,WC144-551,30.11.2022,ADULT SOCIAL CARE,ADVANCE HEALTH CARE (UK) LTD,22/11/2022, 509.04 ,6541-Domiciliary Care,THIRD PARTY PAYMENTS,PRIVATE CONTRACTOR,REVENUE
Walsall Council,http://opendatacommunities.org/id/metropolitan-district-council/walsall ,WC144-552,30.11.2022,ADULT SOCIAL CARE,ADVANCE HEALTH CARE (UK) LTD,22/11/2022, 500.96 ,6541-Domiciliary Care,THIRD PARTY PAYMENTS,PRIVATE CONTRACTOR,REVENUE
Walsall Council,http://opendatacommunities.org/id/metropolitan-district-council/walsall ,WC144-553,30.11.2022,ADULT SOCIAL CARE,ADVANCE HEALTH CARE (UK) LTD,22/11/2022, 589.84 ,6541-Domiciliary Care,THIRD PARTY PAYMENTS,PRIVATE CONTRACTOR,REVENUE
Walsall Council,http://opendatacommunities.org/id/metropolitan-district-council/walsall ,WC144-554,30.11.2022,ADULT SOCIAL CARE,ADVANCE HEALTH CARE (UK) LTD,22/11/2022, 377.16 ,6541-Domiciliary Care,THIRD PARTY PAYMENTS,PRIVATE CONTRACTOR,REVENUE
Walsall Council,http://opendatacommunities.org/id/metropolitan-district-council/walsall ,WC144-555,30.11.2022,ADULT SOCIAL CARE,ADVANCE HEALTH CARE (UK) LTD,22/11/2022, 339.50 ,6541-Domiciliary Care,THIRD PARTY PAYMENTS,PRIVATE CONTRACTOR,REVENUE
Walsall Council,http://opendatacommunities.org/id/metropolitan-district-council/walsall ,WC144-556,30.11.2022,ADULT SOCIAL CARE,ADVANCE HEALTH CARE (UK) LTD,22/11/2022, 315.12 ,6541-Domiciliary Care,THIRD PARTY PAYMENTS,PRIVATE CONTRACTOR,REVENUE
Walsall Council,http://opendatacommunities.org/id/metropolitan-district-council/walsall ,WC144-557,30.11.2022,ADULT SOCIAL CARE,ADVANCE HEALTH CARE (UK) LTD,22/11/2022, 509.04 ,6541-Domiciliary Care,THIRD PARTY PAYMENTS,PRIVATE CONTRACTOR,REVENUE
Walsall Council,http://opendatacommunities.org/id/metropolitan-district-council/walsall ,WC144-558,30.11.2022,ADULT SOCIAL CARE,ADVANCE HEALTH CARE (UK) LTD,22/11/2022, 509.04 ,6541-Domiciliary Care,THIRD PARTY PAYMENTS,PRIVATE CONTRACTOR,REVENUE
Walsall Council,http://opendatacommunities.org/id/metropolitan-district-council/walsall ,WC144-559,30.11.2022,ADULT SOCIAL CARE,ADVANCE HEALTH CARE (UK) LTD,28/11/2022," 15,842.07 ",6541-Domiciliary Care,THIRD PARTY PAYMENTS,PRIVATE CONTRACTOR,REVENUE
Walsall Council,http://opendatacommunities.org/id/metropolitan-district-council/walsall ,WC144-560,30.11.2022,CHILDRENS,ADVANCED BUSINESS SOLUTIONS LTD,22/11/2022, 748.50 ,1217-Professional Fees & Services,SUPPLIES & SERVICES,SERVICES,REVENUE
Walsall Council,http://opendatacommunities.org/id/metropolitan-district-council/walsall ,WC144-561,30.11.2022,RESOURCES AND TRANSFORMATION,ADVANCED CONTRACTS (MIDLANDS) LTD,18/11/2022, 320.00 ,6310-Operational Maintenance,PREMISES,REPAIRS & MAINTENANCE,REVENUE
Walsall Council,http://opendatacommunities.org/id/metropolitan-district-council/walsall ,WC144-562,30.11.2022,ADULT SOCIAL CARE,ADVINIA CARE HOMES LTD - HAMMERWICH HALL CARE HOME,22/11/2022," 2,366.04 ",6541-Residential EMI,THIRD PARTY PAYMENTS,PRIVATE CONTRACTOR,REVENUE
Walsall Council,http://opendatacommunities.org/id/metropolitan-district-council/walsall ,WC144-563,30.11.2022,ADULT SOCIAL CARE,ADVINIA CARE HOMES LTD - HAMMERWICH HALL CARE HOME,22/11/2022," 2,095.40 ",6541-Residential,THIRD PARTY PAYMENTS,PRIVATE CONTRACTOR,REVENUE
Walsall Council,http://opendatacommunities.org/id/metropolitan-district-council/walsall ,WC144-564,30.11.2022,RESOURCES AND TRANSFORMATION CAPITAL,AGILISYS LTD,04/11/2022,-592.28 ,7300-Consultants Fees,CAPITAL,"NEW CONSTRUCTION,CONVERSION & RENOVATION",CAPITAL
Walsall Council,http://opendatacommunities.org/id/metropolitan-district-council/walsall ,WC144-565,30.11.2022,RESOURCES AND TRANSFORMATION CAPITAL,AGILISYS LTD,04/11/2022, 592.28 ,7300-Consultants Fees,CAPITAL,"NEW CONSTRUCTION,CONVERSION & RENOVATION",CAPITAL
Walsall Council,http://opendatacommunities.org/id/metropolitan-district-council/walsall ,WC144-566,30.11.2022,RESOURCES AND TRANSFORMATION CAPITAL,AGILISYS LTD,03/11/2022," 12,334.52 ",7300-Consultants Fees,CAPITAL,"NEW CONSTRUCTION,CONVERSION & RENOVATION",CAPITAL
Walsall Council,http://opendatacommunities.org/id/metropolitan-district-council/walsall ,WC144-567,30.11.2022,RESOURCES AND TRANSFORMATION CAPITAL,AGILISYS LTD,14/11/2022, 850.00 ,7300-Consultants Fees,CAPITAL,"NEW CONSTRUCTION,CONVERSION & RENOVATION",CAPITAL
Walsall Council,http://opendatacommunities.org/id/metropolitan-district-council/walsall ,WC144-568,30.11.2022,RESOURCES AND TRANSFORMATION CAPITAL,AGILISYS LTD,14/11/2022," 2,200.00 ",7300-Consultants Fees,CAPITAL,"NEW CONSTRUCTION,CONVERSION & RENOVATION",CAPITAL
Walsall Council,http://opendatacommunities.org/id/metropolitan-district-council/walsall ,WC144-569,30.11.2022,RESOURCES AND TRANSFORMATION CAPITAL,AGILISYS LTD,14/11/2022," 4,400.00 ",7300-Consultants Fees,CAPITAL,"NEW CONSTRUCTION,CONVERSION & RENOVATION",CAPITAL
Walsall Council,http://opendatacommunities.org/id/metropolitan-district-council/walsall ,WC144-570,30.11.2022,RESOURCES AND TRANSFORMATION CAPITAL,AGILISYS LTD,14/11/2022," 11,000.00 ",7300-Consultants Fees,CAPITAL,"NEW CONSTRUCTION,CONVERSION & RENOVATION",CAPITAL
Walsall Council,http://opendatacommunities.org/id/metropolitan-district-council/walsall ,WC144-571,30.11.2022,RESOURCES AND TRANSFORMATION CAPITAL,AGILISYS LTD,14/11/2022," 13,600.00 ",7300-Consultants Fees,CAPITAL,"NEW CONSTRUCTION,CONVERSION & RENOVATION",CAPITAL
Walsall Council,http://opendatacommunities.org/id/metropolitan-district-council/walsall ,WC144-572,30.11.2022,RESOURCES AND TRANSFORMATION CAPITAL,AGILISYS LTD,15/11/2022," 80,297.09 ",7300-Consultants Fees,CAPITAL,"NEW CONSTRUCTION,CONVERSION & RENOVATION",CAPITAL
Walsall Council,http://opendatacommunities.org/id/metropolitan-district-council/walsall ,WC144-573,30.11.2022,"ECONOMY, ENVIRONMENT & COMMUNITIES",AGROVISTA UK LTD,30/11/2022, 408.37 ,6410-Materials,SUPPLIES & SERVICES,EQUIPMENT FURNITURE & MATERIALS,REVENUE
Walsall Council,http://opendatacommunities.org/id/metropolitan-district-council/walsall ,WC144-574,30.11.2022,ADULT SOCIAL CARE,REDACTED,03/11/2022," 2,517.12 ",6541-Direct Payment,THIRD PARTY PAYMENTS,PRIVATE CONTRACTOR,REVENUE
Walsall Council,http://opendatacommunities.org/id/metropolitan-district-council/walsall ,WC144-575,30.11.2022,ADULT SOCIAL CARE,REDACTED,03/11/2022, 390.32 ,6541-Direct Payment,THIRD PARTY PAYMENTS,PRIVATE CONTRACTOR,REVENUE
Walsall Council,http://opendatacommunities.org/id/metropolitan-district-council/walsall ,WC144-576,30.11.2022,ADULT SOCIAL CARE,REDACTED,03/11/2022, 277.71 ,6541-Direct Payment,THIRD PARTY PAYMENTS,PRIVATE CONTRACTOR,REVENUE
Walsall Council,http://opendatacommunities.org/id/metropolitan-district-council/walsall ,WC144-577,30.11.2022,"ECONOMY, ENVIRONMENT & COMMUNITIES",ALBERT JAGGER LTD,15/11/2022, 317.60 ,6410-Materials to Stores,SUPPLIES & SERVICES,EQUIPMENT FURNITURE & MATERIALS,REVENUE
Walsall Council,http://opendatacommunities.org/id/metropolitan-district-council/walsall ,WC144-578,30.11.2022,CHILDRENS,ALBRIGHTON CARE LTD,29/11/2022," 1,782.85 ",6223-External Residential Care-Oth Agency Provision,THIRD PARTY PAYMENTS,PRIVATE CONTRACTOR,REVENUE
Walsall Council,http://opendatacommunities.org/id/metropolitan-district-council/walsall ,WC144-579,30.11.2022,CHILDRENS,ALDRIDGE & BARONS LIMITED,08/11/2022," 2,833.00 ",6241-Hire of Vehicle with Driver,TRANSPORT,DIRECT TRANSPORT COSTS,REVENUE
Walsall Council,http://opendatacommunities.org/id/metropolitan-district-council/walsall ,WC144-580,30.11.2022,CHILDRENS,ALDRIDGE & BARONS LIMITED,08/11/2022," 2,340.00 ",6241-Hire of Vehicle with Driver,TRANSPORT,DIRECT TRANSPORT COSTS,REVENUE
Walsall Council,http://opendatacommunities.org/id/metropolitan-district-council/walsall ,WC144-581,30.11.2022,CHILDRENS,ALDRIDGE & BARONS LIMITED,08/11/2022," 1,717.00 ",6241-Hire of Vehicle with Driver,TRANSPORT,DIRECT TRANSPORT COSTS,REVENUE
Walsall Council,http://opendatacommunities.org/id/metropolitan-district-council/walsall ,WC144-582,30.11.2022,CHILDRENS,ALDRIDGE & BARONS LIMITED,08/11/2022," 2,124.00 ",6241-Hire of Vehicle with Driver,TRANSPORT,DIRECT TRANSPORT COSTS,REVENUE
Walsall Council,http://opendatacommunities.org/id/metropolitan-district-council/walsall ,WC144-583,30.11.2022,CHILDRENS,ALDRIDGE & BARONS LIMITED,08/11/2022," 2,278.00 ",6241-Hire of Vehicle with Driver,TRANSPORT,DIRECT TRANSPORT COSTS,REVENUE
Walsall Council,http://opendatacommunities.org/id/metropolitan-district-council/walsall ,WC144-584,30.11.2022,CHILDRENS,ALDRIDGE & BARONS LIMITED,08/11/2022," 2,316.00 ",6241-Hire of Vehicle with Driver,TRANSPORT,DIRECT TRANSPORT COSTS,REVENUE
Walsall Council,http://opendatacommunities.org/id/metropolitan-district-council/walsall ,WC144-585,30.11.2022,CHILDRENS,ALDRIDGE & BARONS LIMITED,08/11/2022," 2,414.00 ",6241-Hire of Vehicle with Driver,TRANSPORT,DIRECT TRANSPORT COSTS,REVENUE
Walsall Council,http://opendatacommunities.org/id/metropolitan-district-council/walsall ,WC144-586,30.11.2022,CHILDRENS,ALDRIDGE & BARONS LIMITED,08/11/2022," 3,110.40 ",6241-Hire of Vehicle with Driver,TRANSPORT,DIRECT TRANSPORT COSTS,REVENUE
Walsall Council,http://opendatacommunities.org/id/metropolitan-district-council/walsall ,WC144-587,30.11.2022,CHILDRENS,ALDRIDGE & BARONS LIMITED,08/11/2022," 2,800.00 ",6241-Hire of Vehicle with Driver,TRANSPORT,DIRECT TRANSPORT COSTS,REVENUE
Walsall Council,http://opendatacommunities.org/id/metropolitan-district-council/walsall ,WC144-588,30.11.2022,CHILDRENS,ALDRIDGE & BARONS LIMITED,08/11/2022," 1,946.00 ",6241-Hire of Vehicle with Driver,TRANSPORT,DIRECT TRANSPORT COSTS,REVENUE
Walsall Council,http://opendatacommunities.org/id/metropolitan-district-council/walsall ,WC144-589,30.11.2022,CHILDRENS,ALDRIDGE & BARONS LIMITED,08/11/2022," 2,887.60 ",6241-Hire of Vehicle with Driver,TRANSPORT,DIRECT TRANSPORT COSTS,REVENUE
Walsall Council,http://opendatacommunities.org/id/metropolitan-district-council/walsall ,WC144-590,30.11.2022,CHILDRENS,ALDRIDGE & BARONS LIMITED,08/11/2022," 3,600.00 ",6241-Hire of Vehicle with Driver,TRANSPORT,DIRECT TRANSPORT COSTS,REVENUE
Walsall Council,http://opendatacommunities.org/id/metropolitan-district-council/walsall ,WC144-591,30.11.2022,CHILDRENS,ALDRIDGE & BARONS LIMITED,08/11/2022," 2,232.00 ",6241-Hire of Vehicle with Driver,TRANSPORT,DIRECT TRANSPORT COSTS,REVENUE
Walsall Council,http://opendatacommunities.org/id/metropolitan-district-council/walsall ,WC144-592,30.11.2022,CHILDRENS,ALDRIDGE & BARONS LIMITED,08/11/2022," 2,760.00 ",6241-Hire of Vehicle with Driver,TRANSPORT,DIRECT TRANSPORT COSTS,REVENUE
Walsall Council,http://opendatacommunities.org/id/metropolitan-district-council/walsall ,WC144-593,30.11.2022,CHILDRENS,ALDRIDGE & BARONS LIMITED,08/11/2022," 2,000.00 ",6241-Hire of Vehicle with Driver,TRANSPORT,DIRECT TRANSPORT COSTS,REVENUE
Walsall Council,http://opendatacommunities.org/id/metropolitan-district-council/walsall ,WC144-594,30.11.2022,CHILDRENS,ALDRIDGE & BARONS LIMITED,08/11/2022," 3,172.00 ",6241-Hire of Vehicle with Driver,TRANSPORT,DIRECT TRANSPORT COSTS,REVENUE
Walsall Council,http://opendatacommunities.org/id/metropolitan-district-council/walsall ,WC144-595,30.11.2022,CHILDRENS,ALDRIDGE & BARONS LIMITED,08/11/2022," 2,092.00 ",6241-Hire of Vehicle with Driver,TRANSPORT,DIRECT TRANSPORT COSTS,REVENUE
Walsall Council,http://opendatacommunities.org/id/metropolitan-district-council/walsall ,WC144-596,30.11.2022,CHILDRENS,ALDRIDGE & BARONS LIMITED,08/11/2022," 3,000.00 ",6241-Hire of Vehicle with Driver,TRANSPORT,DIRECT TRANSPORT COSTS,REVENUE
Walsall Council,http://opendatacommunities.org/id/metropolitan-district-council/walsall ,WC144-597,30.11.2022,CHILDRENS,ALDRIDGE & BARONS LIMITED,08/11/2022, 900.00 ,6241-Hire of Vehicle with Driver,TRANSPORT,DIRECT TRANSPORT COSTS,REVENUE
Walsall Council,http://opendatacommunities.org/id/metropolitan-district-council/walsall ,WC144-598,30.11.2022,CHILDRENS,ALDRIDGE & BARONS LIMITED,08/11/2022," 2,800.00 ",6241-Hire of Vehicle with Driver,TRANSPORT,DIRECT TRANSPORT COSTS,REVENUE
Walsall Council,http://opendatacommunities.org/id/metropolitan-district-council/walsall ,WC144-599,30.11.2022,CHILDRENS,ALDRIDGE & BARONS LIMITED,08/11/2022," 2,600.00 ",6241-Hire of Vehicle with Driver,TRANSPORT,DIRECT TRANSPORT COSTS,REVENUE
Walsall Council,http://opendatacommunities.org/id/metropolitan-district-council/walsall ,WC144-600,30.11.2022,CHILDRENS,ALDRIDGE & BARONS LIMITED,08/11/2022," 3,000.00 ",6241-Hire of Vehicle with Driver,TRANSPORT,DIRECT TRANSPORT COSTS,REVENUE
Walsall Council,http://opendatacommunities.org/id/metropolitan-district-council/walsall ,WC144-601,30.11.2022,CHILDRENS,ALDRIDGE & BARONS LIMITED,08/11/2022," 2,200.00 ",6241-Hire of Vehicle with Driver,TRANSPORT,DIRECT TRANSPORT COSTS,REVENUE
Walsall Council,http://opendatacommunities.org/id/metropolitan-district-council/walsall ,WC144-602,30.11.2022,CHILDRENS,ALDRIDGE & BARONS LIMITED,08/11/2022," 1,911.60 ",6241-Hire of Vehicle with Driver,TRANSPORT,DIRECT TRANSPORT COSTS,REVENUE
Walsall Council,http://opendatacommunities.org/id/metropolitan-district-council/walsall ,WC144-603,30.11.2022,CHILDRENS,ALDRIDGE & BARONS LIMITED,08/11/2022," 1,914.00 ",6241-Hire of Vehicle with Driver,TRANSPORT,DIRECT TRANSPORT COSTS,REVENUE
Walsall Council,http://opendatacommunities.org/id/metropolitan-district-council/walsall ,WC144-604,30.11.2022,CHILDRENS,ALDRIDGE & BARONS LIMITED,08/11/2022," 1,188.00 ",6241-Hire of Vehicle with Driver,TRANSPORT,DIRECT TRANSPORT COSTS,REVENUE
Walsall Council,http://opendatacommunities.org/id/metropolitan-district-council/walsall ,WC144-605,30.11.2022,ADULT SOCIAL CARE,REDACTED,03/11/2022," 1,551.36 ",6541-Direct Payment,THIRD PARTY PAYMENTS,PRIVATE CONTRACTOR,REVENUE
Walsall Council,http://opendatacommunities.org/id/metropolitan-district-council/walsall ,WC144-606,30.11.2022,ADULT SOCIAL CARE,ALEXANDRA HOUSE CARE SERVICES LTD T/A STONEBRIDGE NURSING HOME,22/11/2022," 7,434.72 ",6541-Residential,THIRD PARTY PAYMENTS,PRIVATE CONTRACTOR,REVENUE
Walsall Council,http://opendatacommunities.org/id/metropolitan-district-council/walsall ,WC144-607,30.11.2022,ADULT SOCIAL CARE,REDACTED,03/11/2022, 993.52 ,6541-Direct Payment,THIRD PARTY PAYMENTS,PRIVATE CONTRACTOR,REVENUE
Walsall Council,http://opendatacommunities.org/id/metropolitan-district-council/walsall ,WC144-608,30.11.2022,CHILDRENS,REDACTED,17/11/2022, 341.72 ,6223-Special Guardianship Orders,TRANSFER PAYMENTS,CHILDREN SOCIAL SERVICES CLIENT,REVENUE
Walsall Council,http://opendatacommunities.org/id/metropolitan-district-council/walsall ,WC144-609,30.11.2022,CHILDRENS,ALL SAINTS NATIONAL ACADEMY #1,21/11/2022," 5,969.54 ",1220-Top Up Funding -Grants to Schools,SUPPLIES & SERVICES,GRANTS (EXP) & SUBSCRIPTIONS,REVENUE
Walsall Council,http://opendatacommunities.org/id/metropolitan-district-council/walsall ,WC144-610,30.11.2022,CHILDRENS,ALLIANCE CARE LTD,30/11/2022," 1,800.00 ",6220-Professional Fees & Services,SUPPLIES & SERVICES,SERVICES,REVENUE
Walsall Council,http://opendatacommunities.org/id/metropolitan-district-council/walsall ,WC144-611,30.11.2022,ECONOMY & ENVIRONMENT CAPITAL,ALLIANCE LEISURE SERVICES LTD,28/11/2022," 332,643.17 ",7200-Site Works Contractors,CAPITAL,"NEW CONSTRUCTION,CONVERSION & RENOVATION",CAPITAL
Walsall Council,http://opendatacommunities.org/id/metropolitan-district-council/walsall ,WC144-612,30.11.2022,RESOURCES AND TRANSFORMATION,ALLIED PUBLICITY SERVICES (MANCHESTER) LIMITED T/A APS GROUP,16/11/2022," 2,104.05 ",6312-External Printing Services,SUPPLIES & SERVICES,PRINTING STATIONERY & GENERAL OFFICE,REVENUE
Walsall Council,http://opendatacommunities.org/id/metropolitan-district-council/walsall ,WC144-613,30.11.2022,ADULT SOCIAL CARE,ALMA COURT,22/11/2022," 4,000.00 ",6541-Nursing EMI,THIRD PARTY PAYMENTS,PRIVATE CONTRACTOR,REVENUE
Walsall Council,http://opendatacommunities.org/id/metropolitan-district-council/walsall ,WC144-614,30.11.2022,ADULT SOCIAL CARE,ALMA COURT,22/11/2022," 6,718.40 ",6541-Residential,THIRD PARTY PAYMENTS,PRIVATE CONTRACTOR,REVENUE
Walsall Council,http://opendatacommunities.org/id/metropolitan-district-council/walsall ,WC144-615,30.11.2022,ADULT SOCIAL CARE,ALMA COURT,22/11/2022," 3,667.80 ",6541-Nursing EMI,THIRD PARTY PAYMENTS,PRIVATE CONTRACTOR,REVENUE
Walsall Council,http://opendatacommunities.org/id/metropolitan-district-council/walsall ,WC144-616,30.11.2022,ADULT SOCIAL CARE,ALMA COURT,22/11/2022," 4,805.72 ",6541-Nursing EMI,THIRD PARTY PAYMENTS,PRIVATE CONTRACTOR,REVENUE
Walsall Council,http://opendatacommunities.org/id/metropolitan-district-council/walsall ,WC144-617,30.11.2022,ADULT SOCIAL CARE,ALMA COURT,22/11/2022," 4,263.00 ",6541-Residential,THIRD PARTY PAYMENTS,PRIVATE CONTRACTOR,REVENUE
Walsall Council,http://opendatacommunities.org/id/metropolitan-district-council/walsall ,WC144-618,30.11.2022,CHILDRENS,ALMOZENE NURSERY & CHILDRENS CENTRE,21/11/2022," 1,947.96 ",1220-Top Up Funding -Grants to Schools,SUPPLIES & SERVICES,GRANTS (EXP) & SUBSCRIPTIONS,REVENUE
Walsall Council,http://opendatacommunities.org/id/metropolitan-district-council/walsall ,WC144-619,30.11.2022,ADULT SOCIAL CARE,ALPHA HEALTH CARE LTD,22/11/2022," 2,763.80 ",6541-Nursing EMI,THIRD PARTY PAYMENTS,PRIVATE CONTRACTOR,REVENUE
Walsall Council,http://opendatacommunities.org/id/metropolitan-district-council/walsall ,WC144-620,30.11.2022,ADULT SOCIAL CARE,ALPHA HEALTH CARE LTD,22/11/2022," 7,067.80 ",6541-Nursing EMI,THIRD PARTY PAYMENTS,PRIVATE CONTRACTOR,REVENUE
Walsall Council,http://opendatacommunities.org/id/metropolitan-district-council/walsall ,WC144-621,30.11.2022,ADULT SOCIAL CARE,ALPHA HEALTH CARE LTD,22/11/2022," 2,889.52 ",6541-Residential EMI,THIRD PARTY PAYMENTS,PRIVATE CONTRACTOR,REVENUE
Walsall Council,http://opendatacommunities.org/id/metropolitan-district-council/walsall ,WC144-622,30.11.2022,ADULT SOCIAL CARE,ALPHA HEALTH CARE LTD,22/11/2022," 6,343.36 ",6541-Residential,THIRD PARTY PAYMENTS,PRIVATE CONTRACTOR,REVENUE
Walsall Council,http://opendatacommunities.org/id/metropolitan-district-council/walsall ,WC144-623,30.11.2022,ADULT SOCIAL CARE,ALPHA HEALTH CARE LTD,22/11/2022," 2,366.04 ",6541-Residential EMI,THIRD PARTY PAYMENTS,PRIVATE CONTRACTOR,REVENUE
Walsall Council,http://opendatacommunities.org/id/metropolitan-district-council/walsall ,WC144-624,30.11.2022,ADULT SOCIAL CARE,ALPHA HEALTH CARE LTD,22/11/2022," 3,132.12 ",6541-Nursing EMI,THIRD PARTY PAYMENTS,PRIVATE CONTRACTOR,REVENUE
Walsall Council,http://opendatacommunities.org/id/metropolitan-district-council/walsall ,WC144-625,30.11.2022,ADULT SOCIAL CARE,ALPHA HEALTH CARE LTD,22/11/2022," 7,105.00 ",6541-Residential,THIRD PARTY PAYMENTS,PRIVATE CONTRACTOR,REVENUE
Walsall Council,http://opendatacommunities.org/id/metropolitan-district-council/walsall ,WC144-626,30.11.2022,ADULT SOCIAL CARE,ALPHA HEALTH CARE LTD,22/11/2022," 3,374.96 ",6541-Residential EMI,THIRD PARTY PAYMENTS,PRIVATE CONTRACTOR,REVENUE
Walsall Council,http://opendatacommunities.org/id/metropolitan-district-council/walsall ,WC144-627,30.11.2022,ADULT SOCIAL CARE,ALPHA HEALTH CARE LTD,22/11/2022," 3,132.12 ",6541-Nursing EMI,THIRD PARTY PAYMENTS,PRIVATE CONTRACTOR,REVENUE
Walsall Council,http://opendatacommunities.org/id/metropolitan-district-council/walsall ,WC144-628,30.11.2022,ADULT SOCIAL CARE,ALPHA HEALTH CARE LTD,22/11/2022," 3,398.04 ",6541-Residential EMI,THIRD PARTY PAYMENTS,PRIVATE CONTRACTOR,REVENUE
Walsall Council,http://opendatacommunities.org/id/metropolitan-district-council/walsall ,WC144-629,30.11.2022,ADULT SOCIAL CARE,ALPHA HEALTH CARE LTD,22/11/2022," 2,766.04 ",6541-Residential EMI,THIRD PARTY PAYMENTS,PRIVATE CONTRACTOR,REVENUE
Walsall Council,http://opendatacommunities.org/id/metropolitan-district-council/walsall ,WC144-630,30.11.2022,ADULT SOCIAL CARE,ALPHA HEALTH CARE LTD,22/11/2022," 3,980.00 ",6541-Residential,THIRD PARTY PAYMENTS,PRIVATE CONTRACTOR,REVENUE
Walsall Council,http://opendatacommunities.org/id/metropolitan-district-council/walsall ,WC144-631,30.11.2022,ADULT SOCIAL CARE,ALPHA HEALTH CARE LTD,22/11/2022," 2,366.04 ",6541-Residential EMI,THIRD PARTY PAYMENTS,PRIVATE CONTRACTOR,REVENUE
Walsall Council,http://opendatacommunities.org/id/metropolitan-district-council/walsall ,WC144-632,30.11.2022,ADULT SOCIAL CARE,ALPHA HEALTH CARE LTD,22/11/2022," 3,958.52 ",6541-Residential,THIRD PARTY PAYMENTS,PRIVATE CONTRACTOR,REVENUE
Walsall Council,http://opendatacommunities.org/id/metropolitan-district-council/walsall ,WC144-633,30.11.2022,ADULT SOCIAL CARE,ALPHA HEALTH CARE LTD,22/11/2022," 3,836.28 ",6541-Nursing,THIRD PARTY PAYMENTS,PRIVATE CONTRACTOR,REVENUE
Walsall Council,http://opendatacommunities.org/id/metropolitan-district-council/walsall ,WC144-634,30.11.2022,ADULT SOCIAL CARE,ALPHA HEALTH CARE LTD,22/11/2022," 4,800.00 ",6541-Nursing EMI,THIRD PARTY PAYMENTS,PRIVATE CONTRACTOR,REVENUE
Walsall Council,http://opendatacommunities.org/id/metropolitan-district-council/walsall ,WC144-635,30.11.2022,ADULT SOCIAL CARE,ALPHA HEALTH CARE LTD,22/11/2022," 3,090.44 ",6541-Nursing EMI,THIRD PARTY PAYMENTS,PRIVATE CONTRACTOR,REVENUE
Walsall Council,http://opendatacommunities.org/id/metropolitan-district-council/walsall ,WC144-636,30.11.2022,ADULT SOCIAL CARE,ALPHA HEALTH CARE LTD,22/11/2022," 7,600.00 ",6541-Professional Services-Priv Contractor & Other Agencies,THIRD PARTY PAYMENTS,PRIVATE CONTRACTOR,REVENUE
Walsall Council,http://opendatacommunities.org/id/metropolitan-district-council/walsall ,WC144-637,30.11.2022,ADULT SOCIAL CARE,ALPHA HEALTH CARE LTD,22/11/2022," 3,105.16 ",6541-Nursing EMI,THIRD PARTY PAYMENTS,PRIVATE CONTRACTOR,REVENUE
Walsall Council,http://opendatacommunities.org/id/metropolitan-district-council/walsall ,WC144-638,30.11.2022,ADULT SOCIAL CARE,ALPHA HEALTH CARE LTD,22/11/2022," 2,763.80 ",6541-Nursing EMI,THIRD PARTY PAYMENTS,PRIVATE CONTRACTOR,REVENUE
Walsall Council,http://opendatacommunities.org/id/metropolitan-district-council/walsall ,WC144-639,30.11.2022,ADULT SOCIAL CARE,ALPHA HEALTH CARE LTD,22/11/2022," 2,998.00 ",6541-Nursing,THIRD PARTY PAYMENTS,PRIVATE CONTRACTOR,REVENUE
Walsall Council,http://opendatacommunities.org/id/metropolitan-district-council/walsall ,WC144-640,30.11.2022,ADULT SOCIAL CARE,ALPHA HEALTH CARE LTD,22/11/2022," 3,667.80 ",6541-Nursing EMI,THIRD PARTY PAYMENTS,PRIVATE CONTRACTOR,REVENUE
Walsall Council,http://opendatacommunities.org/id/metropolitan-district-council/walsall ,WC144-641,30.11.2022,ADULT SOCIAL CARE,ALPHA HEALTH CARE LTD,22/11/2022," 2,630.96 ",6541-Residential,THIRD PARTY PAYMENTS,PRIVATE CONTRACTOR,REVENUE
Walsall Council,http://opendatacommunities.org/id/metropolitan-district-council/walsall ,WC144-642,30.11.2022,ADULT SOCIAL CARE,ALPHA HEALTH CARE LTD,22/11/2022," 3,085.88 ",6541-Nursing,THIRD PARTY PAYMENTS,PRIVATE CONTRACTOR,REVENUE
Walsall Council,http://opendatacommunities.org/id/metropolitan-district-council/walsall ,WC144-643,30.11.2022,ADULT SOCIAL CARE,ALPHA HEALTH CARE LTD,22/11/2022," 2,856.24 ",6541-Nursing,THIRD PARTY PAYMENTS,PRIVATE CONTRACTOR,REVENUE
Walsall Council,http://opendatacommunities.org/id/metropolitan-district-council/walsall ,WC144-644,30.11.2022,ADULT SOCIAL CARE,ALPHA HEALTH CARE LTD,22/11/2022," 4,120.00 ",6541-Nursing EMI,THIRD PARTY PAYMENTS,PRIVATE CONTRACTOR,REVENUE
Walsall Council,http://opendatacommunities.org/id/metropolitan-district-council/walsall ,WC144-645,30.11.2022,ADULT SOCIAL CARE,ALPHA HEALTH CARE LTD,22/11/2022," 3,374.96 ",6541-Residential EMI,THIRD PARTY PAYMENTS,PRIVATE CONTRACTOR,REVENUE
Walsall Council,http://opendatacommunities.org/id/metropolitan-district-council/walsall ,WC144-646,30.11.2022,CHILDRENS,ALPHA TRAINING ACADEMY UK LTD,16/11/2022," 1,111.00 ",1220-Top Up Funding -Grants to Schools,SUPPLIES & SERVICES,GRANTS (EXP) & SUBSCRIPTIONS,REVENUE
Walsall Council,http://opendatacommunities.org/id/metropolitan-district-council/walsall ,WC144-647,30.11.2022,CHILDRENS,AMANS TRAVEL LTD,08/11/2022," 4,200.00 ",6241-Hire of Vehicle with Driver,TRANSPORT,DIRECT TRANSPORT COSTS,REVENUE
Walsall Council,http://opendatacommunities.org/id/metropolitan-district-council/walsall ,WC144-648,30.11.2022,CHILDRENS,AMANS TRAVEL LTD,08/11/2022," 2,700.00 ",6241-Hire of Vehicle with Driver,TRANSPORT,DIRECT TRANSPORT COSTS,REVENUE
Walsall Council,http://opendatacommunities.org/id/metropolitan-district-council/walsall ,WC144-649,30.11.2022,CHILDRENS,AMANS TRAVEL LTD,08/11/2022," 3,656.00 ",6241-Hire of Vehicle with Driver,TRANSPORT,DIRECT TRANSPORT COSTS,REVENUE
Walsall Council,http://opendatacommunities.org/id/metropolitan-district-council/walsall ,WC144-650,30.11.2022,CHILDRENS,AMANS TRAVEL LTD,08/11/2022," 3,800.00 ",6241-Hire of Vehicle with Driver,TRANSPORT,DIRECT TRANSPORT COSTS,REVENUE
Walsall Council,http://opendatacommunities.org/id/metropolitan-district-council/walsall ,WC144-651,30.11.2022,CHILDRENS,AMANS TRAVEL LTD,08/11/2022," 3,800.00 ",6241-Hire of Vehicle with Driver,TRANSPORT,DIRECT TRANSPORT COSTS,REVENUE
Walsall Council,http://opendatacommunities.org/id/metropolitan-district-council/walsall ,WC144-652,30.11.2022,ADULT SOCIAL CARE,REDACTED,03/11/2022," 3,409.76 ",6541-Direct Payment,THIRD PARTY PAYMENTS,PRIVATE CONTRACTOR,REVENUE
Walsall Council,http://opendatacommunities.org/id/metropolitan-district-council/walsall ,WC144-653,30.11.2022,ADULT SOCIAL CARE,REDACTED,03/11/2022," 1,688.32 ",6541-Direct Payment,THIRD PARTY PAYMENTS,PRIVATE CONTRACTOR,REVENUE
Walsall Council,http://opendatacommunities.org/id/metropolitan-district-council/walsall ,WC144-654,30.11.2022,RESOURCES AND TRANSFORMATION,AMBUR RADIO,25/11/2022," 8,992.55 ",6312-Grants to Other Orgs,SUPPLIES & SERVICES,GRANTS (EXP) & SUBSCRIPTIONS,REVENUE
Walsall Council,http://opendatacommunities.org/id/metropolitan-district-council/walsall ,WC144-655,30.11.2022,ECONOMY & ENVIRONMENT CAPITAL,AMEY LG LIMITED,29/11/2022," 5,586.97 ",7200-Site Works Contractors,CAPITAL,"NEW CONSTRUCTION,CONVERSION & RENOVATION",CAPITAL
Walsall Council,http://opendatacommunities.org/id/metropolitan-district-council/walsall ,WC144-656,30.11.2022,"ECONOMY, ENVIRONMENT & COMMUNITIES",AMEY LG LIMITED,23/11/2022," 1,630.90 ",6430-Repair & Maintenance of Furniture & Equipment,SUPPLIES & SERVICES,EQUIPMENT FURNITURE & MATERIALS,REVENUE
Walsall Council,http://opendatacommunities.org/id/metropolitan-district-council/walsall ,WC144-657,30.11.2022,"ECONOMY, ENVIRONMENT & COMMUNITIES",AMEY LG LIMITED,23/11/2022," 2,010.98 ",6430-Repair & Maintenance of Furniture & Equipment,SUPPLIES & SERVICES,EQUIPMENT FURNITURE & MATERIALS,REVENUE
Walsall Council,http://opendatacommunities.org/id/metropolitan-district-council/walsall ,WC144-658,30.11.2022,"ECONOMY, ENVIRONMENT & COMMUNITIES",AMEY LG LIMITED,23/11/2022," 1,939.42 ",6430-Repair & Maintenance of Furniture & Equipment,SUPPLIES & SERVICES,EQUIPMENT FURNITURE & MATERIALS,REVENUE
Walsall Council,http://opendatacommunities.org/id/metropolitan-district-council/walsall ,WC144-659,30.11.2022,"ECONOMY, ENVIRONMENT & COMMUNITIES",AMEY LG LIMITED,28/11/2022,"-2,406.20 ",6411-Professional Services-Priv Contractor & Other Agencies,THIRD PARTY PAYMENTS,PRIVATE CONTRACTOR,REVENUE
Walsall Council,http://opendatacommunities.org/id/metropolitan-district-council/walsall ,WC144-660,30.11.2022,"ECONOMY, ENVIRONMENT & COMMUNITIES",AMEY LG LIMITED,28/11/2022," 2,406.20 ",6411-Professional Services-Priv Contractor & Other Agencies,THIRD PARTY PAYMENTS,PRIVATE CONTRACTOR,REVENUE
Walsall Council,http://opendatacommunities.org/id/metropolitan-district-council/walsall ,WC144-661,30.11.2022,ECONOMY & ENVIRONMENT CAPITAL,AMEY OW LTD,23/11/2022, 340.94 ,7200-Site Works Contractors,CAPITAL,"NEW CONSTRUCTION,CONVERSION & RENOVATION",CAPITAL
Walsall Council,http://opendatacommunities.org/id/metropolitan-district-council/walsall ,WC144-662,30.11.2022,ECONOMY & ENVIRONMENT CAPITAL,AMEY OW LTD,04/11/2022, 908.99 ,7200-Site Works Contractors,CAPITAL,"NEW CONSTRUCTION,CONVERSION & RENOVATION",CAPITAL
Walsall Council,http://opendatacommunities.org/id/metropolitan-district-council/walsall ,WC144-663,30.11.2022,ECONOMY & ENVIRONMENT CAPITAL,AMEY OW LTD,04/11/2022," 1,280.79 ",7200-Consultants Fees,CAPITAL,"NEW CONSTRUCTION,CONVERSION & RENOVATION",CAPITAL
Walsall Council,http://opendatacommunities.org/id/metropolitan-district-council/walsall ,WC144-664,30.11.2022,ECONOMY & ENVIRONMENT CAPITAL,AMEY OW LTD,02/11/2022," 3,697.31 ",7200-Site Works Contractors,CAPITAL,"NEW CONSTRUCTION,CONVERSION & RENOVATION",CAPITAL
Walsall Council,http://opendatacommunities.org/id/metropolitan-district-council/walsall ,WC144-665,30.11.2022,ECONOMY & ENVIRONMENT CAPITAL,AMEY OW LTD,04/11/2022," 3,068.46 ",7200-Site Works Contractors,CAPITAL,"NEW CONSTRUCTION,CONVERSION & RENOVATION",CAPITAL
Walsall Council,http://opendatacommunities.org/id/metropolitan-district-council/walsall ,WC144-666,30.11.2022,ECONOMY & ENVIRONMENT CAPITAL,AMEY OW LTD,10/11/2022," 3,385.92 ",7200-Project Fees,CAPITAL,"NEW CONSTRUCTION,CONVERSION & RENOVATION",CAPITAL
Walsall Council,http://opendatacommunities.org/id/metropolitan-district-council/walsall ,WC144-667,30.11.2022,CHILDRENS,AMG NURSING CARE SERVICES,04/11/2022, 406.60 ,6220-Professional Fees & Services,SUPPLIES & SERVICES,SERVICES,REVENUE
Walsall Council,http://opendatacommunities.org/id/metropolitan-district-council/walsall ,WC144-668,30.11.2022,CHILDRENS,AMG NURSING CARE SERVICES,17/11/2022, 325.28 ,6220-Professional Fees & Services,SUPPLIES & SERVICES,SERVICES,REVENUE
Walsall Council,http://opendatacommunities.org/id/metropolitan-district-council/walsall ,WC144-669,30.11.2022,CHILDRENS,AMG NURSING CARE SERVICES,17/11/2022," 1,227.01 ",6220-Professional Fees & Services,SUPPLIES & SERVICES,SERVICES,REVENUE
Walsall Council,http://opendatacommunities.org/id/metropolitan-district-council/walsall ,WC144-670,30.11.2022,CHILDRENS,AMG NURSING CARE SERVICES,17/11/2022, 325.28 ,6220-Professional Fees & Services,SUPPLIES & SERVICES,SERVICES,REVENUE
Walsall Council,http://opendatacommunities.org/id/metropolitan-district-council/walsall ,WC144-671,30.11.2022,CHILDRENS,AMG NURSING CARE SERVICES,17/11/2022," 1,368.20 ",6220-Professional Fees & Services,SUPPLIES & SERVICES,SERVICES,REVENUE
Walsall Council,http://opendatacommunities.org/id/metropolitan-district-council/walsall ,WC144-672,30.11.2022,CHILDRENS,REDACTED,17/11/2022, 614.40 ,6223-Foster Carers Maintenance Allowance,TRANSFER PAYMENTS,CHILDREN SOCIAL SERVICES CLIENT,REVENUE
Walsall Council,http://opendatacommunities.org/id/metropolitan-district-council/walsall ,WC144-673,30.11.2022,CHILDRENS,REDACTED,17/11/2022, 340.00 ,6223-Internal Foster Carers-Carer Fees,TRANSFER PAYMENTS,CHILDREN SOCIAL SERVICES CLIENT,REVENUE
Walsall Council,http://opendatacommunities.org/id/metropolitan-district-council/walsall ,WC144-674,30.11.2022,ADULT SOCIAL CARE,ANCHOR CARE HOMES LTD,22/11/2022," 2,366.04 ",6541-Residential EMI,THIRD PARTY PAYMENTS,PRIVATE CONTRACTOR,REVENUE
Walsall Council,http://opendatacommunities.org/id/metropolitan-district-council/walsall ,WC144-675,30.11.2022,ADULT SOCIAL CARE,ANCHOR CAREHOMES LTD - HARDEN HALL,22/11/2022," 2,366.04 ",6541-Residential EMI,THIRD PARTY PAYMENTS,PRIVATE CONTRACTOR,REVENUE
Walsall Council,http://opendatacommunities.org/id/metropolitan-district-council/walsall ,WC144-676,30.11.2022,ADULT SOCIAL CARE,ANCHOR CAREHOMES LTD - HARDEN HALL,22/11/2022," 2,366.04 ",6541-Residential EMI,THIRD PARTY PAYMENTS,PRIVATE CONTRACTOR,REVENUE
Walsall Council,http://opendatacommunities.org/id/metropolitan-district-council/walsall ,WC144-677,30.11.2022,ADULT SOCIAL CARE,ANCHOR CAREHOMES LTD - HARDEN HALL,22/11/2022," 2,366.04 ",6541-Residential EMI,THIRD PARTY PAYMENTS,PRIVATE CONTRACTOR,REVENUE
Walsall Council,http://opendatacommunities.org/id/metropolitan-district-council/walsall ,WC144-678,30.11.2022,ADULT SOCIAL CARE,ANCHOR CAREHOMES LTD - HARDEN HALL,22/11/2022," 2,366.04 ",6541-Residential EMI,THIRD PARTY PAYMENTS,PRIVATE CONTRACTOR,REVENUE
Walsall Council,http://opendatacommunities.org/id/metropolitan-district-council/walsall ,WC144-679,30.11.2022,ADULT SOCIAL CARE,ANCHOR CAREHOMES LTD - HARDEN HALL,22/11/2022," 2,417.00 ",6541-Residential EMI,THIRD PARTY PAYMENTS,PRIVATE CONTRACTOR,REVENUE
Walsall Council,http://opendatacommunities.org/id/metropolitan-district-council/walsall ,WC144-680,30.11.2022,ADULT SOCIAL CARE,ANCHOR CAREHOMES LTD - HARDEN HALL,22/11/2022," 2,366.04 ",6541-Residential EMI,THIRD PARTY PAYMENTS,PRIVATE CONTRACTOR,REVENUE
Walsall Council,http://opendatacommunities.org/id/metropolitan-district-council/walsall ,WC144-681,30.11.2022,ADULT SOCIAL CARE,ANCHOR CAREHOMES LTD - HARDEN HALL,22/11/2022," 2,366.04 ",6541-Residential EMI,THIRD PARTY PAYMENTS,PRIVATE CONTRACTOR,REVENUE
Walsall Council,http://opendatacommunities.org/id/metropolitan-district-council/walsall ,WC144-682,30.11.2022,ADULT SOCIAL CARE,ANCHOR CAREHOMES LTD - HARDEN HALL,22/11/2022," 2,566.04 ",6541-Residential EMI,THIRD PARTY PAYMENTS,PRIVATE CONTRACTOR,REVENUE
Walsall Council,http://opendatacommunities.org/id/metropolitan-district-council/walsall ,WC144-683,30.11.2022,ADULT SOCIAL CARE,ANCHOR CAREHOMES LTD - HARDEN HALL,22/11/2022," 2,095.40 ",6541-Residential,THIRD PARTY PAYMENTS,PRIVATE CONTRACTOR,REVENUE
Walsall Council,http://opendatacommunities.org/id/metropolitan-district-council/walsall ,WC144-684,30.11.2022,ADULT SOCIAL CARE,ANCHOR CAREHOMES LTD - HARDEN HALL,22/11/2022," 2,095.40 ",6541-Residential,THIRD PARTY PAYMENTS,PRIVATE CONTRACTOR,REVENUE
Walsall Council,http://opendatacommunities.org/id/metropolitan-district-council/walsall ,WC144-685,30.11.2022,ADULT SOCIAL CARE,ANCHOR CAREHOMES LTD - HARDEN HALL,22/11/2022," 2,566.04 ",6541-Residential EMI,THIRD PARTY PAYMENTS,PRIVATE CONTRACTOR,REVENUE
Walsall Council,http://opendatacommunities.org/id/metropolitan-district-council/walsall ,WC144-686,30.11.2022,ADULT SOCIAL CARE,ANCHOR CAREHOMES LTD - HARDEN HALL,22/11/2022," 2,726.04 ",6541-Residential EMI,THIRD PARTY PAYMENTS,PRIVATE CONTRACTOR,REVENUE
Walsall Council,http://opendatacommunities.org/id/metropolitan-district-council/walsall ,WC144-687,30.11.2022,ADULT SOCIAL CARE,ANCHOR CAREHOMES LTD - HARDEN HALL,22/11/2022," 2,366.04 ",6541-Residential EMI,THIRD PARTY PAYMENTS,PRIVATE CONTRACTOR,REVENUE
Walsall Council,http://opendatacommunities.org/id/metropolitan-district-council/walsall ,WC144-688,30.11.2022,ADULT SOCIAL CARE,ANCHOR CAREHOMES LTD - HARDEN HALL,22/11/2022," 2,366.04 ",6541-Residential EMI,THIRD PARTY PAYMENTS,PRIVATE CONTRACTOR,REVENUE
Walsall Council,http://opendatacommunities.org/id/metropolitan-district-council/walsall ,WC144-689,30.11.2022,ADULT SOCIAL CARE,ANCHOR CAREHOMES LTD - HARDEN HALL,22/11/2022," 2,366.04 ",6541-Residential EMI,THIRD PARTY PAYMENTS,PRIVATE CONTRACTOR,REVENUE
Walsall Council,http://opendatacommunities.org/id/metropolitan-district-council/walsall ,WC144-690,30.11.2022,ADULT SOCIAL CARE,ANCHOR CAREHOMES LTD - HARDEN HALL,22/11/2022," 2,366.04 ",6541-Residential EMI,THIRD PARTY PAYMENTS,PRIVATE CONTRACTOR,REVENUE
Walsall Council,http://opendatacommunities.org/id/metropolitan-district-council/walsall ,WC144-691,30.11.2022,ADULT SOCIAL CARE,ANCHOR CAREHOMES LTD - HARDEN HALL,22/11/2022," 2,726.04 ",6541-Residential EMI,THIRD PARTY PAYMENTS,PRIVATE CONTRACTOR,REVENUE
Walsall Council,http://opendatacommunities.org/id/metropolitan-district-council/walsall ,WC144-692,30.11.2022,ADULT SOCIAL CARE,ANCHOR CAREHOMES LTD - HARDEN HALL,22/11/2022," 2,726.04 ",6541-Residential EMI,THIRD PARTY PAYMENTS,PRIVATE CONTRACTOR,REVENUE
Walsall Council,http://opendatacommunities.org/id/metropolitan-district-council/walsall ,WC144-693,30.11.2022,ADULT SOCIAL CARE,ANCHOR CAREHOMES LTD - HARDEN HALL,22/11/2022," 2,726.04 ",6541-Residential EMI,THIRD PARTY PAYMENTS,PRIVATE CONTRACTOR,REVENUE
Walsall Council,http://opendatacommunities.org/id/metropolitan-district-council/walsall ,WC144-694,30.11.2022,ADULT SOCIAL CARE,ANCHOR CAREHOMES LTD - HARDEN HALL,22/11/2022," 2,726.04 ",6541-Residential EMI,THIRD PARTY PAYMENTS,PRIVATE CONTRACTOR,REVENUE
Walsall Council,http://opendatacommunities.org/id/metropolitan-district-council/walsall ,WC144-695,30.11.2022,ADULT SOCIAL CARE,ANCHOR CAREHOMES LTD - HARDEN HALL,22/11/2022," 2,726.04 ",6541-Residential EMI,THIRD PARTY PAYMENTS,PRIVATE CONTRACTOR,REVENUE
Walsall Council,http://opendatacommunities.org/id/metropolitan-district-council/walsall ,WC144-696,30.11.2022,ADULT SOCIAL CARE,ANCHOR CAREHOMES LTD - HARDEN HALL,22/11/2022," 2,646.04 ",6541-Residential EMI,THIRD PARTY PAYMENTS,PRIVATE CONTRACTOR,REVENUE
Walsall Council,http://opendatacommunities.org/id/metropolitan-district-council/walsall ,WC144-697,30.11.2022,ADULT SOCIAL CARE,ANCHOR CAREHOMES LTD - HARDEN HALL,22/11/2022," 2,095.40 ",6541-Residential,THIRD PARTY PAYMENTS,PRIVATE CONTRACTOR,REVENUE
Walsall Council,http://opendatacommunities.org/id/metropolitan-district-council/walsall ,WC144-698,30.11.2022,ADULT SOCIAL CARE,ANCHOR CAREHOMES LTD - HARDEN HALL,22/11/2022, 422.51 ,6541-Residential EMI,THIRD PARTY PAYMENTS,PRIVATE CONTRACTOR,REVENUE
Walsall Council,http://opendatacommunities.org/id/metropolitan-district-council/walsall ,WC144-699,30.11.2022,ADULT SOCIAL CARE,ANCHOR CAREHOMES LTD - HARDEN HALL,22/11/2022," 2,095.40 ",6541-Residential,THIRD PARTY PAYMENTS,PRIVATE CONTRACTOR,REVENUE
Walsall Council,http://opendatacommunities.org/id/metropolitan-district-council/walsall ,WC144-700,30.11.2022,CHILDRENS,REDACTED,17/11/2022, 341.72 ,6223-Special Guardianship Orders,TRANSFER PAYMENTS,CHILDREN SOCIAL SERVICES CLIENT,REVENUE
Walsall Council,http://opendatacommunities.org/id/metropolitan-district-council/walsall ,WC144-701,30.11.2022,ADULT SOCIAL CARE,REDACTED,03/11/2022," 2,811.84 ",6541-Direct Payment,THIRD PARTY PAYMENTS,PRIVATE CONTRACTOR,REVENUE
Walsall Council,http://opendatacommunities.org/id/metropolitan-district-council/walsall ,WC144-702,30.11.2022,RESOURCES AND TRANSFORMATION,ANDREWS ELECTRICAL LTD,15/11/2022, 286.00 ,6310-Planned Maintenance,PREMISES,REPAIRS & MAINTENANCE,REVENUE
Walsall Council,http://opendatacommunities.org/id/metropolitan-district-council/walsall ,WC144-703,30.11.2022,RESOURCES AND TRANSFORMATION,ANDREWS ELECTRICAL LTD,16/11/2022," 8,847.00 ",6310-Planned Maintenance,PREMISES,REPAIRS & MAINTENANCE,REVENUE
Walsall Council,http://opendatacommunities.org/id/metropolitan-district-council/walsall ,WC144-704,30.11.2022,CHILDRENS,REDACTED,17/11/2022, 537.08 ,6223-Special Guardianship Orders,TRANSFER PAYMENTS,CHILDREN SOCIAL SERVICES CLIENT,REVENUE
Walsall Council,http://opendatacommunities.org/id/metropolitan-district-council/walsall ,WC144-705,30.11.2022,CHILDRENS,REDACTED,17/11/2022, 396.20 ,6223-Special Guardianship Orders,TRANSFER PAYMENTS,CHILDREN SOCIAL SERVICES CLIENT,REVENUE
Walsall Council,http://opendatacommunities.org/id/metropolitan-district-council/walsall ,WC144-706,30.11.2022,CHILDRENS,REDACTED,17/11/2022, 338.16 ,6223-Special Guardianship Orders,TRANSFER PAYMENTS,CHILDREN SOCIAL SERVICES CLIENT,REVENUE
Walsall Council,http://opendatacommunities.org/id/metropolitan-district-council/walsall ,WC144-707,30.11.2022,CHILDRENS,REDACTED,17/11/2022, 340.00 ,6223-Internal Foster Carers-Carer Fees,TRANSFER PAYMENTS,CHILDREN SOCIAL SERVICES CLIENT,REVENUE
Walsall Council,http://opendatacommunities.org/id/metropolitan-district-council/walsall ,WC144-708,30.11.2022,CHILDRENS,REDACTED,17/11/2022, 725.44 ,6223-Foster Carers Maintenance Allowance,TRANSFER PAYMENTS,CHILDREN SOCIAL SERVICES CLIENT,REVENUE
Walsall Council,http://opendatacommunities.org/id/metropolitan-district-council/walsall ,WC144-709,30.11.2022,"ECONOMY, ENVIRONMENT & COMMUNITIES",REDACTED,15/11/2022, 400.00 ,6414-Professional Services-Priv Contractor & Other Agencies,THIRD PARTY PAYMENTS,PRIVATE CONTRACTOR,REVENUE
Walsall Council,http://opendatacommunities.org/id/metropolitan-district-council/walsall ,WC144-710,30.11.2022,"ECONOMY, ENVIRONMENT & COMMUNITIES",REDACTED,15/11/2022, 400.00 ,6414-Professional Fees & Services,SUPPLIES & SERVICES,SERVICES,REVENUE
Walsall Council,http://opendatacommunities.org/id/metropolitan-district-council/walsall ,WC144-711,30.11.2022,ADULT SOCIAL CARE,REDACTED,03/11/2022, 287.04 ,6541-Direct Payment,THIRD PARTY PAYMENTS,PRIVATE CONTRACTOR,REVENUE
Walsall Council,http://opendatacommunities.org/id/metropolitan-district-council/walsall ,WC144-712,30.11.2022,CHILDRENS,REDACTED,17/11/2022, 617.36 ,6223-Special Guardianship Orders,TRANSFER PAYMENTS,CHILDREN SOCIAL SERVICES CLIENT,REVENUE
Walsall Council,http://opendatacommunities.org/id/metropolitan-district-council/walsall ,WC144-713,30.11.2022,"ECONOMY, ENVIRONMENT & COMMUNITIES",REDACTED,28/11/2022, 500.00 ,6414-Professional Fees & Services,SUPPLIES & SERVICES,SERVICES,REVENUE
Walsall Council,http://opendatacommunities.org/id/metropolitan-district-council/walsall ,WC144-714,30.11.2022,"ECONOMY, ENVIRONMENT & COMMUNITIES",REDACTED,28/11/2022, 500.00 ,6414-Materials,SUPPLIES & SERVICES,EQUIPMENT FURNITURE & MATERIALS,REVENUE
Walsall Council,http://opendatacommunities.org/id/metropolitan-district-council/walsall ,WC144-715,30.11.2022,ADULT SOCIAL CARE,ANSON COURT RESIDENTIAL HOME,22/11/2022," 2,366.04 ",6541-Residential EMI,THIRD PARTY PAYMENTS,PRIVATE CONTRACTOR,REVENUE
Walsall Council,http://opendatacommunities.org/id/metropolitan-district-council/walsall ,WC144-716,30.11.2022,ADULT SOCIAL CARE,ANSON COURT RESIDENTIAL HOME,22/11/2022," 2,215.40 ",6541-Residential,THIRD PARTY PAYMENTS,PRIVATE CONTRACTOR,REVENUE
Walsall Council,http://opendatacommunities.org/id/metropolitan-district-council/walsall ,WC144-717,30.11.2022,ADULT SOCIAL CARE,ANSON COURT RESIDENTIAL HOME,22/11/2022," 2,366.04 ",6541-Residential EMI,THIRD PARTY PAYMENTS,PRIVATE CONTRACTOR,REVENUE
Walsall Council,http://opendatacommunities.org/id/metropolitan-district-council/walsall ,WC144-718,30.11.2022,ADULT SOCIAL CARE,ANSON COURT RESIDENTIAL HOME,22/11/2022," 2,366.04 ",6541-Residential EMI,THIRD PARTY PAYMENTS,PRIVATE CONTRACTOR,REVENUE
Walsall Council,http://opendatacommunities.org/id/metropolitan-district-council/walsall ,WC144-719,30.11.2022,ADULT SOCIAL CARE,ANSON COURT RESIDENTIAL HOME,22/11/2022," 2,366.04 ",6541-Residential EMI,THIRD PARTY PAYMENTS,PRIVATE CONTRACTOR,REVENUE
Walsall Council,http://opendatacommunities.org/id/metropolitan-district-council/walsall ,WC144-720,30.11.2022,ADULT SOCIAL CARE,ANSON COURT RESIDENTIAL HOME,22/11/2022," 2,366.04 ",6541-Residential EMI,THIRD PARTY PAYMENTS,PRIVATE CONTRACTOR,REVENUE
Walsall Council,http://opendatacommunities.org/id/metropolitan-district-council/walsall ,WC144-721,30.11.2022,ADULT SOCIAL CARE,ANSON COURT RESIDENTIAL HOME,22/11/2022," 2,366.04 ",6541-Residential EMI,THIRD PARTY PAYMENTS,PRIVATE CONTRACTOR,REVENUE
Walsall Council,http://opendatacommunities.org/id/metropolitan-district-council/walsall ,WC144-722,30.11.2022,ADULT SOCIAL CARE,ANSON COURT RESIDENTIAL HOME,22/11/2022," 2,095.40 ",6541-Residential,THIRD PARTY PAYMENTS,PRIVATE CONTRACTOR,REVENUE
Walsall Council,http://opendatacommunities.org/id/metropolitan-district-council/walsall ,WC144-723,30.11.2022,ADULT SOCIAL CARE,ANSON COURT RESIDENTIAL HOME,22/11/2022," 2,366.04 ",6541-Residential EMI,THIRD PARTY PAYMENTS,PRIVATE CONTRACTOR,REVENUE
Walsall Council,http://opendatacommunities.org/id/metropolitan-district-council/walsall ,WC144-724,30.11.2022,ADULT SOCIAL CARE,ANSON COURT RESIDENTIAL HOME,22/11/2022," 2,366.04 ",6541-Residential EMI,THIRD PARTY PAYMENTS,PRIVATE CONTRACTOR,REVENUE
Walsall Council,http://opendatacommunities.org/id/metropolitan-district-council/walsall ,WC144-725,30.11.2022,ADULT SOCIAL CARE,ANSON COURT RESIDENTIAL HOME,22/11/2022," 2,366.04 ",6541-Residential EMI,THIRD PARTY PAYMENTS,PRIVATE CONTRACTOR,REVENUE
Walsall Council,http://opendatacommunities.org/id/metropolitan-district-council/walsall ,WC144-726,30.11.2022,ADULT SOCIAL CARE,ANSON COURT RESIDENTIAL HOME,22/11/2022," 2,366.04 ",6541-Residential EMI,THIRD PARTY PAYMENTS,PRIVATE CONTRACTOR,REVENUE
Walsall Council,http://opendatacommunities.org/id/metropolitan-district-council/walsall ,WC144-727,30.11.2022,ADULT SOCIAL CARE,ANSON COURT RESIDENTIAL HOME,22/11/2022," 2,366.04 ",6541-Residential EMI,THIRD PARTY PAYMENTS,PRIVATE CONTRACTOR,REVENUE
Walsall Council,http://opendatacommunities.org/id/metropolitan-district-council/walsall ,WC144-728,30.11.2022,ADULT SOCIAL CARE,ANSON COURT RESIDENTIAL HOME,22/11/2022," 2,366.04 ",6541-Residential EMI,THIRD PARTY PAYMENTS,PRIVATE CONTRACTOR,REVENUE
Walsall Council,http://opendatacommunities.org/id/metropolitan-district-council/walsall ,WC144-729,30.11.2022,CHILDRENS,REDACTED,17/11/2022, 532.36 ,6223-Special Guardianship Orders,TRANSFER PAYMENTS,CHILDREN SOCIAL SERVICES CLIENT,REVENUE
Walsall Council,http://opendatacommunities.org/id/metropolitan-district-council/walsall ,WC144-730,30.11.2022,"ECONOMY, ENVIRONMENT & COMMUNITIES",APCOA PARKING SERVICES (UK) LTD,21/11/2022," 60,322.90 ",6411-Parking Enforcement Activity-Priv Contractor Fees,THIRD PARTY PAYMENTS,PRIVATE CONTRACTOR,REVENUE
Walsall Council,http://opendatacommunities.org/id/metropolitan-district-council/walsall ,WC144-731,30.11.2022,RESOURCES AND TRANSFORMATION,APCOA PARKING SERVICES (UK) LTD,24/11/2022,-814.36 ,6634-Oxygen Finance Rebates ,SUPPLIES & SERVICES,SERVICES,REVENUE
Walsall Council,http://opendatacommunities.org/id/metropolitan-district-council/walsall ,WC144-732,30.11.2022,CHILDRENS,APP CARZ,15/11/2022, 672.00 ,6314-Other Travel Allowances,TRANSPORT,CAR ALLOWANCES,REVENUE
Walsall Council,http://opendatacommunities.org/id/metropolitan-district-council/walsall ,WC144-733,30.11.2022,CHILDRENS,APP CARZ,28/11/2022, 393.00 ,6314-Other Travel Allowances,TRANSPORT,CAR ALLOWANCES,REVENUE
Walsall Council,http://opendatacommunities.org/id/metropolitan-district-council/walsall ,WC144-734,30.11.2022,CHILDRENS,APP CARZ,08/11/2022," 1,800.00 ",6241-Hire of Vehicle with Driver,TRANSPORT,DIRECT TRANSPORT COSTS,REVENUE
Walsall Council,http://opendatacommunities.org/id/metropolitan-district-council/walsall ,WC144-735,30.11.2022,CHILDRENS,APP CARZ,08/11/2022," 1,300.00 ",6241-Hire of Vehicle with Driver,TRANSPORT,DIRECT TRANSPORT COSTS,REVENUE
Walsall Council,http://opendatacommunities.org/id/metropolitan-district-council/walsall ,WC144-736,30.11.2022,CHILDRENS,APP CARZ,08/11/2022, 880.00 ,6241-Hire of Vehicle with Driver,TRANSPORT,DIRECT TRANSPORT COSTS,REVENUE
Walsall Council,http://opendatacommunities.org/id/metropolitan-district-council/walsall ,WC144-737,30.11.2022,CHILDRENS,APP CARZ,08/11/2022, 720.00 ,6241-Hire of Vehicle with Driver,TRANSPORT,DIRECT TRANSPORT COSTS,REVENUE
Walsall Council,http://opendatacommunities.org/id/metropolitan-district-council/walsall ,WC144-738,30.11.2022,CHILDRENS,APP CARZ,08/11/2022," 2,720.00 ",6241-Hire of Vehicle with Driver,TRANSPORT,DIRECT TRANSPORT COSTS,REVENUE
Walsall Council,http://opendatacommunities.org/id/metropolitan-district-council/walsall ,WC144-739,30.11.2022,CHILDRENS,APP CARZ,08/11/2022," 1,615.00 ",6241-Hire of Vehicle with Driver,TRANSPORT,DIRECT TRANSPORT COSTS,REVENUE
Walsall Council,http://opendatacommunities.org/id/metropolitan-district-council/walsall ,WC144-740,30.11.2022,CHILDRENS,APP CARZ,08/11/2022," 1,840.00 ",6241-Hire of Vehicle with Driver,TRANSPORT,DIRECT TRANSPORT COSTS,REVENUE
Walsall Council,http://opendatacommunities.org/id/metropolitan-district-council/walsall ,WC144-741,30.11.2022,CHILDRENS,APP CARZ,08/11/2022," 1,260.00 ",6241-Hire of Vehicle with Driver,TRANSPORT,DIRECT TRANSPORT COSTS,REVENUE
Walsall Council,http://opendatacommunities.org/id/metropolitan-district-council/walsall ,WC144-742,30.11.2022,CHILDRENS,APP CARZ,08/11/2022," 2,100.00 ",6241-Hire of Vehicle with Driver,TRANSPORT,DIRECT TRANSPORT COSTS,REVENUE
Walsall Council,http://opendatacommunities.org/id/metropolitan-district-council/walsall ,WC144-743,30.11.2022,"ECONOMY, ENVIRONMENT & COMMUNITIES",APSE 001,29/11/2022, 358.00 ,6413-External Training,INDIRECT EMPLOYEES,EXTERNAL TRAINING,REVENUE
Walsall Council,http://opendatacommunities.org/id/metropolitan-district-council/walsall ,WC144-744,30.11.2022,"ECONOMY, ENVIRONMENT & COMMUNITIES",AQUAMO LTD,08/11/2022, 295.00 ,6413-Repair & Maintenance of Furniture & Equipment,SUPPLIES & SERVICES,EQUIPMENT FURNITURE & MATERIALS,REVENUE
Walsall Council,http://opendatacommunities.org/id/metropolitan-district-council/walsall ,WC144-745,30.11.2022,"ECONOMY, ENVIRONMENT & COMMUNITIES",AQUAMO LTD,09/11/2022," 1,282.00 ",6413-Repair & Maintenance of Furniture & Equipment,SUPPLIES & SERVICES,EQUIPMENT FURNITURE & MATERIALS,REVENUE
Walsall Council,http://opendatacommunities.org/id/metropolitan-district-council/walsall ,WC144-746,30.11.2022,"ECONOMY, ENVIRONMENT & COMMUNITIES",AQUILA TRUCK CENTRES LTD,23/11/2022, 398.00 ,6410-Materials,SUPPLIES & SERVICES,EQUIPMENT FURNITURE & MATERIALS,REVENUE
Walsall Council,http://opendatacommunities.org/id/metropolitan-district-council/walsall ,WC144-747,30.11.2022,ADULT SOCIAL CARE,ARBORETUM NURSING HOME.,22/11/2022," 2,456.24 ",6541-Nursing,THIRD PARTY PAYMENTS,PRIVATE CONTRACTOR,REVENUE
Walsall Council,http://opendatacommunities.org/id/metropolitan-district-council/walsall ,WC144-748,30.11.2022,ADULT SOCIAL CARE,ARBORETUM NURSING HOME.,22/11/2022," 2,456.24 ",6541-Nursing,THIRD PARTY PAYMENTS,PRIVATE CONTRACTOR,REVENUE
Walsall Council,http://opendatacommunities.org/id/metropolitan-district-council/walsall ,WC144-749,30.11.2022,ADULT SOCIAL CARE,ARBORETUM NURSING HOME.,22/11/2022," 2,456.24 ",6541-Nursing,THIRD PARTY PAYMENTS,PRIVATE CONTRACTOR,REVENUE
Walsall Council,http://opendatacommunities.org/id/metropolitan-district-council/walsall ,WC144-750,30.11.2022,ADULT SOCIAL CARE,ARBORETUM NURSING HOME.,22/11/2022," 2,456.24 ",6541-Nursing,THIRD PARTY PAYMENTS,PRIVATE CONTRACTOR,REVENUE
Walsall Council,http://opendatacommunities.org/id/metropolitan-district-council/walsall ,WC144-751,30.11.2022,ADULT SOCIAL CARE,ARBORETUM NURSING HOME.,22/11/2022," 2,456.24 ",6541-Nursing,THIRD PARTY PAYMENTS,PRIVATE CONTRACTOR,REVENUE
Walsall Council,http://opendatacommunities.org/id/metropolitan-district-council/walsall ,WC144-752,30.11.2022,ADULT SOCIAL CARE,ARBORETUM NURSING HOME.,22/11/2022," 2,636.24 ",6541-Nursing,THIRD PARTY PAYMENTS,PRIVATE CONTRACTOR,REVENUE
Walsall Council,http://opendatacommunities.org/id/metropolitan-district-council/walsall ,WC144-753,30.11.2022,ADULT SOCIAL CARE,ARBORETUM NURSING HOME.,22/11/2022," 2,456.24 ",6541-Nursing,THIRD PARTY PAYMENTS,PRIVATE CONTRACTOR,REVENUE
Walsall Council,http://opendatacommunities.org/id/metropolitan-district-council/walsall ,WC144-754,30.11.2022,ADULT SOCIAL CARE,ARBORETUM NURSING HOME.,22/11/2022," 2,636.24 ",6541-Nursing,THIRD PARTY PAYMENTS,PRIVATE CONTRACTOR,REVENUE
Walsall Council,http://opendatacommunities.org/id/metropolitan-district-council/walsall ,WC144-755,30.11.2022,ADULT SOCIAL CARE,ARBORETUM NURSING HOME.,22/11/2022," 2,683.24 ",6541-Nursing,THIRD PARTY PAYMENTS,PRIVATE CONTRACTOR,REVENUE
Walsall Council,http://opendatacommunities.org/id/metropolitan-district-council/walsall ,WC144-756,30.11.2022,ADULT SOCIAL CARE,ARBORETUM NURSING HOME.,22/11/2022,"-5,100.00 ",6541-Residential & Nursing Care Placements,THIRD PARTY PAYMENTS,PRIVATE CONTRACTOR,REVENUE
Walsall Council,http://opendatacommunities.org/id/metropolitan-district-council/walsall ,WC144-757,30.11.2022,ADULT SOCIAL CARE,ARBORETUM NURSING HOME.,22/11/2022, 514.29 ,6553-Professional Services-Priv Contractor & Other Agencies,THIRD PARTY PAYMENTS,PRIVATE CONTRACTOR,REVENUE
Walsall Council,http://opendatacommunities.org/id/metropolitan-district-council/walsall ,WC144-758,30.11.2022,ADULT SOCIAL CARE,ARBORETUM NURSING HOME.,22/11/2022," 1,942.86 ",6554-Professional Services-Priv Contractor & Other Agencies,THIRD PARTY PAYMENTS,PRIVATE CONTRACTOR,REVENUE
Walsall Council,http://opendatacommunities.org/id/metropolitan-district-council/walsall ,WC144-759,30.11.2022,ADULT SOCIAL CARE,ARBORETUM NURSING HOME.,22/11/2022," 1,214.28 ",6554-Professional Services-Priv Contractor & Other Agencies,THIRD PARTY PAYMENTS,PRIVATE CONTRACTOR,REVENUE
Walsall Council,http://opendatacommunities.org/id/metropolitan-district-council/walsall ,WC144-760,30.11.2022,ADULT SOCIAL CARE,ARBORETUM NURSING HOME.,22/11/2022," 2,636.24 ",6541-Nursing,THIRD PARTY PAYMENTS,PRIVATE CONTRACTOR,REVENUE
Walsall Council,http://opendatacommunities.org/id/metropolitan-district-council/walsall ,WC144-761,30.11.2022,ADULT SOCIAL CARE,ARBORETUM NURSING HOME.,22/11/2022," 1,214.29 ",6541-Residential & Nursing Care Placements,THIRD PARTY PAYMENTS,PRIVATE CONTRACTOR,REVENUE
Walsall Council,http://opendatacommunities.org/id/metropolitan-district-council/walsall ,WC144-762,30.11.2022,ADULT SOCIAL CARE,ARBORETUM NURSING HOME.,22/11/2022," 2,185.71 ",6541-Professional Services-Priv Contractor & Other Agencies,THIRD PARTY PAYMENTS,PRIVATE CONTRACTOR,REVENUE
Walsall Council,http://opendatacommunities.org/id/metropolitan-district-council/walsall ,WC144-763,30.11.2022,ADULT SOCIAL CARE,ARBORETUM NURSING HOME.,22/11/2022," 2,307.14 ",6554-Professional Services-Priv Contractor & Other Agencies,THIRD PARTY PAYMENTS,PRIVATE CONTRACTOR,REVENUE
Walsall Council,http://opendatacommunities.org/id/metropolitan-district-council/walsall ,WC144-764,30.11.2022,ADULT SOCIAL CARE,ARBORETUM NURSING HOME.,22/11/2022, 474.32 ,6541-Nursing,THIRD PARTY PAYMENTS,PRIVATE CONTRACTOR,REVENUE
Walsall Council,http://opendatacommunities.org/id/metropolitan-district-council/walsall ,WC144-765,30.11.2022,ADULT SOCIAL CARE,ARBORETUM NURSING HOME.,22/11/2022," 2,064.29 ",6541-Residential & Nursing Care Placements,THIRD PARTY PAYMENTS,PRIVATE CONTRACTOR,REVENUE
Walsall Council,http://opendatacommunities.org/id/metropolitan-district-council/walsall ,WC144-766,30.11.2022,ADULT SOCIAL CARE,ARBORETUM NURSING HOME.,22/11/2022," 2,307.14 ",6554-Professional Services-Priv Contractor & Other Agencies,THIRD PARTY PAYMENTS,PRIVATE CONTRACTOR,REVENUE
Walsall Council,http://opendatacommunities.org/id/metropolitan-district-council/walsall ,WC144-767,30.11.2022,ADULT SOCIAL CARE,ARBORETUM NURSING HOME.,22/11/2022," 2,550.00 ",6554-Professional Services-Priv Contractor & Other Agencies,THIRD PARTY PAYMENTS,PRIVATE CONTRACTOR,REVENUE
Walsall Council,http://opendatacommunities.org/id/metropolitan-district-council/walsall ,WC144-768,30.11.2022,ADULT SOCIAL CARE,ARBORETUM NURSING HOME.,22/11/2022, 385.71 ,6554-Professional Services-Priv Contractor & Other Agencies,THIRD PARTY PAYMENTS,PRIVATE CONTRACTOR,REVENUE
Walsall Council,http://opendatacommunities.org/id/metropolitan-district-council/walsall ,WC144-769,30.11.2022,ADULT SOCIAL CARE,ARBORETUM NURSING HOME.,22/11/2022," 2,307.14 ",6554-Professional Services-Priv Contractor & Other Agencies,THIRD PARTY PAYMENTS,PRIVATE CONTRACTOR,REVENUE
Walsall Council,http://opendatacommunities.org/id/metropolitan-district-council/walsall ,WC144-770,30.11.2022,ADULT SOCIAL CARE,ARBORETUM NURSING HOME.,22/11/2022, 607.14 ,6554-Professional Services-Priv Contractor & Other Agencies,THIRD PARTY PAYMENTS,PRIVATE CONTRACTOR,REVENUE
Walsall Council,http://opendatacommunities.org/id/metropolitan-district-council/walsall ,WC144-771,30.11.2022,ADULT SOCIAL CARE,ARBORETUM NURSING HOME.,22/11/2022," 17,455.30 ",6541-Nursing,THIRD PARTY PAYMENTS,PRIVATE CONTRACTOR,REVENUE
Walsall Council,http://opendatacommunities.org/id/metropolitan-district-council/walsall ,WC144-772,30.11.2022,ADULT SOCIAL CARE,ARBORETUM NURSING HOME.,22/11/2022," 1,578.57 ",6554-Professional Services-Priv Contractor & Other Agencies,THIRD PARTY PAYMENTS,PRIVATE CONTRACTOR,REVENUE
Walsall Council,http://opendatacommunities.org/id/metropolitan-district-council/walsall ,WC144-773,30.11.2022,ADULT SOCIAL CARE,ARBORETUM NURSING HOME.,22/11/2022," 2,456.24 ",6541-Nursing,THIRD PARTY PAYMENTS,PRIVATE CONTRACTOR,REVENUE
Walsall Council,http://opendatacommunities.org/id/metropolitan-district-council/walsall ,WC144-774,30.11.2022,ADULT SOCIAL CARE,ARBORETUM NURSING HOME.,22/11/2022," 2,456.24 ",6541-Nursing,THIRD PARTY PAYMENTS,PRIVATE CONTRACTOR,REVENUE
Walsall Council,http://opendatacommunities.org/id/metropolitan-district-council/walsall ,WC144-775,30.11.2022,ADULT SOCIAL CARE,ARBORETUM NURSING HOME.,22/11/2022," 6,071.40 ",6541-Nursing,THIRD PARTY PAYMENTS,PRIVATE CONTRACTOR,REVENUE
Walsall Council,http://opendatacommunities.org/id/metropolitan-district-council/walsall ,WC144-776,30.11.2022,ADULT SOCIAL CARE,ARBORETUM NURSING HOME.,22/11/2022," 2,871.69 ",6541-Nursing,THIRD PARTY PAYMENTS,PRIVATE CONTRACTOR,REVENUE
Walsall Council,http://opendatacommunities.org/id/metropolitan-district-council/walsall ,WC144-777,30.11.2022,ADULT SOCIAL CARE,ARBORETUM NURSING HOME.,22/11/2022," 5,221.43 ",6554-Professional Services-Priv Contractor & Other Agencies,THIRD PARTY PAYMENTS,PRIVATE CONTRACTOR,REVENUE
Walsall Council,http://opendatacommunities.org/id/metropolitan-district-council/walsall ,WC144-778,30.11.2022,ADULT SOCIAL CARE,ARBORETUM NURSING HOME.,22/11/2022, 485.71 ,6554-Professional Services-Priv Contractor & Other Agencies,THIRD PARTY PAYMENTS,PRIVATE CONTRACTOR,REVENUE
Walsall Council,http://opendatacommunities.org/id/metropolitan-district-council/walsall ,WC144-779,30.11.2022,ADULT SOCIAL CARE,ARBORETUM NURSING HOME.,22/11/2022," 2,500.00 ",6541-Nursing,THIRD PARTY PAYMENTS,PRIVATE CONTRACTOR,REVENUE
Walsall Council,http://opendatacommunities.org/id/metropolitan-district-council/walsall ,WC144-780,30.11.2022,ADULT SOCIAL CARE,ARBORETUM NURSING HOME.,22/11/2022," 1,457.14 ",6541-Professional Services-Priv Contractor & Other Agencies,THIRD PARTY PAYMENTS,PRIVATE CONTRACTOR,REVENUE
Walsall Council,http://opendatacommunities.org/id/metropolitan-district-council/walsall ,WC144-781,30.11.2022,ADULT SOCIAL CARE,ARBORETUM NURSING HOME.,22/11/2022," 1,942.85 ",6554-Professional Services-Priv Contractor & Other Agencies,THIRD PARTY PAYMENTS,PRIVATE CONTRACTOR,REVENUE
Walsall Council,http://opendatacommunities.org/id/metropolitan-district-council/walsall ,WC144-782,30.11.2022,ADULT SOCIAL CARE,ARBORETUM NURSING HOME.,22/11/2022," 2,636.24 ",6541-Nursing,THIRD PARTY PAYMENTS,PRIVATE CONTRACTOR,REVENUE
Walsall Council,http://opendatacommunities.org/id/metropolitan-district-council/walsall ,WC144-783,30.11.2022,ADULT SOCIAL CARE,ARBORETUM NURSING HOME.,22/11/2022," 2,656.24 ",6541-Nursing,THIRD PARTY PAYMENTS,PRIVATE CONTRACTOR,REVENUE
Walsall Council,http://opendatacommunities.org/id/metropolitan-district-council/walsall ,WC144-784,30.11.2022,ADULT SOCIAL CARE,ARBORETUM NURSING HOME.,22/11/2022," 2,171.43 ",6554-Professional Services-Priv Contractor & Other Agencies,THIRD PARTY PAYMENTS,PRIVATE CONTRACTOR,REVENUE
Walsall Council,http://opendatacommunities.org/id/metropolitan-district-council/walsall ,WC144-785,30.11.2022,ADULT SOCIAL CARE,ARBORETUM NURSING HOME.,22/11/2022," 1,285.71 ",6554-Professional Services-Priv Contractor & Other Agencies,THIRD PARTY PAYMENTS,PRIVATE CONTRACTOR,REVENUE
Walsall Council,http://opendatacommunities.org/id/metropolitan-district-council/walsall ,WC144-786,30.11.2022,ADULT SOCIAL CARE,ARBORETUM NURSING HOME.,22/11/2022, 850.00 ,6554-Professional Services-Priv Contractor & Other Agencies,THIRD PARTY PAYMENTS,PRIVATE CONTRACTOR,REVENUE
Walsall Council,http://opendatacommunities.org/id/metropolitan-district-council/walsall ,WC144-787,30.11.2022,ECONOMY & ENVIRONMENT CAPITAL,ARCADIS,09/11/2022," 22,660.00 ",7200-Engineers Assistants Time - Design,CAPITAL,"NEW CONSTRUCTION,CONVERSION & RENOVATION",CAPITAL
Walsall Council,http://opendatacommunities.org/id/metropolitan-district-council/walsall ,WC144-788,30.11.2022,ECONOMY & ENVIRONMENT CAPITAL,ARCADIS,08/11/2022," 43,753.96 ",7200-Project Fees,CAPITAL,"NEW CONSTRUCTION,CONVERSION & RENOVATION",CAPITAL
Walsall Council,http://opendatacommunities.org/id/metropolitan-district-council/walsall ,WC144-789,30.11.2022,RESOURCES AND TRANSFORMATION CAPITAL,ARCADIS,03/11/2022,"-30,154.00 ",7300-Consultants Fees,CAPITAL,"NEW CONSTRUCTION,CONVERSION & RENOVATION",CAPITAL
Walsall Council,http://opendatacommunities.org/id/metropolitan-district-council/walsall ,WC144-790,30.11.2022,RESOURCES AND TRANSFORMATION CAPITAL,ARCADIS,03/11/2022," 30,154.00 ",7300-Consultants Fees,CAPITAL,"NEW CONSTRUCTION,CONVERSION & RENOVATION",CAPITAL
Walsall Council,http://opendatacommunities.org/id/metropolitan-district-council/walsall ,WC144-791,30.11.2022,RESOURCES AND TRANSFORMATION CAPITAL,ARCADIS,03/11/2022," 49,373.00 ",7300-Consultants Fees,CAPITAL,"NEW CONSTRUCTION,CONVERSION & RENOVATION",CAPITAL
Walsall Council,http://opendatacommunities.org/id/metropolitan-district-council/walsall ,WC144-792,30.11.2022,HOLDING ACCOUNTS,ARTHUR J GALLAGHER T/A HEATH LAMBERT LIMITED,29/11/2022," 3,000.00 ",2877-Insurance Premium,SUPPLIES & SERVICES,INSURANCE,REVENUE
Walsall Council,http://opendatacommunities.org/id/metropolitan-district-council/walsall ,WC144-793,30.11.2022,ADULT SOCIAL CARE,ASH GRANGE CARE HOME,22/11/2022," 2,456.24 ",6541-Nursing,THIRD PARTY PAYMENTS,PRIVATE CONTRACTOR,REVENUE
Walsall Council,http://opendatacommunities.org/id/metropolitan-district-council/walsall ,WC144-794,30.11.2022,ADULT SOCIAL CARE,ASH GRANGE CARE HOME,22/11/2022," 2,763.80 ",6541-Nursing EMI,THIRD PARTY PAYMENTS,PRIVATE CONTRACTOR,REVENUE
Walsall Council,http://opendatacommunities.org/id/metropolitan-district-council/walsall ,WC144-795,30.11.2022,ADULT SOCIAL CARE,ASH GRANGE CARE HOME,22/11/2022," 2,095.40 ",6541-Residential,THIRD PARTY PAYMENTS,PRIVATE CONTRACTOR,REVENUE
Walsall Council,http://opendatacommunities.org/id/metropolitan-district-council/walsall ,WC144-796,30.11.2022,ADULT SOCIAL CARE,ASH GRANGE CARE HOME,22/11/2022," 2,456.24 ",6541-Nursing,THIRD PARTY PAYMENTS,PRIVATE CONTRACTOR,REVENUE
Walsall Council,http://opendatacommunities.org/id/metropolitan-district-council/walsall ,WC144-797,30.11.2022,ADULT SOCIAL CARE,ASH GRANGE CARE HOME,22/11/2022," 2,430.96 ",6541-Residential,THIRD PARTY PAYMENTS,PRIVATE CONTRACTOR,REVENUE
